Dept/Family,Entity,Expense Type,Expense Area,Supplier,Payment Date,Amount,SME,UNSPCC Code,UNSPCC Description
"Ministry of Housing, Communities and Local Government",Homes England,ESTATE GENERAL MAINTENANCE,Programmes,BARTON GRANGE LANDSCAPES,10/09/2020, 300.00 ,L,72101500,Building maintenance and repair services
"Ministry of Housing, Communities and Local Government",Homes England,ESTATE GENERAL MAINTENANCE,Programmes,BARTON GRANGE LANDSCAPES,30/09/2020, 794.30 ,L,72101500,Building maintenance and repair services
"Ministry of Housing, Communities and Local Government",Homes England,LEGAL FEES (ADMIN ONLY),Finance & Corporate Services,HM LAND REGISTRY,04/09/2020, 318.00 ,G,80131500,Lease and rental of property or building
"Ministry of Housing, Communities and Local Government",Homes England,CAPITAL GRANTS TO LOCAL AUTHORITIES,North West,WIGAN COUNCIL,10/09/2020," 371,250.00 ",G,,Grants
"Ministry of Housing, Communities and Local Government",Homes England,CAPITAL GRANTS TO LOCAL AUTHORITIES,North West,WIGAN COUNCIL,10/09/2020," 60,000.00 ",G,,Grants
"Ministry of Housing, Communities and Local Government",Homes England,CAPITAL GRANTS TO LOCAL AUTHORITIES,"North East, Yorkshire & the Humber",BARNSLEY METROPOLITAN BOROUGH COUNCIL,23/09/2020," 6,250.00 ",G,,Grants
"Ministry of Housing, Communities and Local Government",Homes England,CAPITAL GRANTS TO LOCAL AUTHORITIES,"North East, Yorkshire & the Humber",NEWCASTLE CITY COUNCIL,24/09/2020," 1,034,200.00 ",G,,Grants
"Ministry of Housing, Communities and Local Government",Homes England,CAPITAL GRANTS TO LOCAL AUTHORITIES,"North East, Yorkshire & the Humber",HARTLEPOOL BOROUGH COUNCIL,28/09/2020," 9,250.00 ",G,,Grants
"Ministry of Housing, Communities and Local Government",Homes England,CAPITAL GRANTS TO LOCAL AUTHORITIES,"North East, Yorkshire & the Humber",HARTLEPOOL BOROUGH COUNCIL,28/09/2020," 9,250.00 ",G,,Grants
"Ministry of Housing, Communities and Local Government",Homes England,CAPITAL GRANTS TO LOCAL AUTHORITIES,"North East, Yorkshire & the Humber",NORTHUMBERLAND COUNTY COUNCIL,21/09/2020," 18,750.00 ",G,,Grants
"Ministry of Housing, Communities and Local Government",Homes England,CAPITAL GRANTS TO LOCAL AUTHORITIES,"North East, Yorkshire & the Humber",NORTHUMBERLAND COUNTY COUNCIL,28/09/2020," 22,500.00 ",G,,Grants
"Ministry of Housing, Communities and Local Government",Homes England,CAPITAL GRANTS TO LOCAL AUTHORITIES,"North East, Yorkshire & the Humber",NORTHUMBERLAND COUNTY COUNCIL,28/09/2020," 22,500.00 ",G,,Grants
"Ministry of Housing, Communities and Local Government",Homes England,CAPITAL GRANTS TO LOCAL AUTHORITIES,"North East, Yorkshire & the Humber",NORTHUMBERLAND COUNTY COUNCIL,28/09/2020," 22,500.00 ",G,,Grants
"Ministry of Housing, Communities and Local Government",Homes England,CAPITAL GRANTS TO LOCAL AUTHORITIES,"North East, Yorkshire & the Humber",NORTHUMBERLAND COUNTY COUNCIL,29/09/2020," 7,500.00 ",G,,Grants
"Ministry of Housing, Communities and Local Government",Homes England,CAPITAL GRANTS TO LOCAL AUTHORITIES,"North East, Yorkshire & the Humber",EAST RIDING OF YORKSHIRE COUNCIL,18/09/2020," 7,500.00 ",G,,Grants
"Ministry of Housing, Communities and Local Government",Homes England,CAPITAL GRANTS TO LOCAL AUTHORITIES,"North East, Yorkshire & the Humber",EAST RIDING OF YORKSHIRE COUNCIL,18/09/2020," 7,500.00 ",G,,Grants
"Ministry of Housing, Communities and Local Government",Homes England,CAPITAL GRANTS TO LOCAL AUTHORITIES,"North East, Yorkshire & the Humber",EAST RIDING OF YORKSHIRE COUNCIL,25/09/2020," 12,000.00 ",G,,Grants
"Ministry of Housing, Communities and Local Government",Homes England,CAPITAL GRANTS TO LOCAL AUTHORITIES,"North East, Yorkshire & the Humber",CITY OF YORK COUNCIL,30/09/2020," 14,875.00 ",G,,Grants
"Ministry of Housing, Communities and Local Government",Homes England,CAPITAL GRANTS TO LOCAL AUTHORITIES,"North East, Yorkshire & the Humber",CITY OF YORK COUNCIL,30/09/2020," 10,625.00 ",G,,Grants
"Ministry of Housing, Communities and Local Government",Homes England,CAPITAL GRANTS TO LOCAL AUTHORITIES,"North East, Yorkshire & the Humber",CITY OF YORK COUNCIL,30/09/2020," 14,875.00 ",G,,Grants
"Ministry of Housing, Communities and Local Government",Homes England,SERVICE CHARGE,Programmes,ASDA STORES LTD,17/09/2020, 411.83 ,L,80131500,Lease and rental of property or building
"Ministry of Housing, Communities and Local Government",Homes England,SERVICE CHARGE,Programmes,ASDA STORES LTD,17/09/2020, 908.79 ,L,80131500,Lease and rental of property or building
"Ministry of Housing, Communities and Local Government",Homes England,SERVICE CHARGE,Programmes,ASDA STORES LTD,30/09/2020, 371.93 ,L,80131500,Lease and rental of property or building
"Ministry of Housing, Communities and Local Government",Homes England,RENT,Finance & Corporate Services,COVENTRY CITY COUNCIL,29/09/2020," 68,137.25 ",S,72101500,Building maintenance and repair services
"Ministry of Housing, Communities and Local Government",Homes England,CAPITAL GRANTS TO LOCAL AUTHORITIES,Programmes,EASTBOURNE BOROUGH COUNCIL,28/09/2020," 684,415.43 ",S,72101500,Building maintenance and repair services
"Ministry of Housing, Communities and Local Government",Homes England,OTHER PROFESSIONAL FEES,Programmes,R D LANDSCAPES LTD,01/09/2020," 2,200.00 ",S,72101500,Building maintenance and repair services
"Ministry of Housing, Communities and Local Government",Homes England,OTHER PROFESSIONAL FEES,Programmes,R D LANDSCAPES LTD,10/09/2020, 650.00 ,S,72101500,Building maintenance and repair services
"Ministry of Housing, Communities and Local Government",Homes England,FENCE MAINTENANCE,East And South East,R D LANDSCAPES LTD,10/09/2020, 800.00 ,S,72101500,Building maintenance and repair services
"Ministry of Housing, Communities and Local Government",Homes England,FENCE MAINTENANCE,East And South East,R D LANDSCAPES LTD,10/09/2020, 940.00 ,S,72101500,Building maintenance and repair services
"Ministry of Housing, Communities and Local Government",Homes England,ESTATE GENERAL MAINTENANCE,East And South East,R D LANDSCAPES LTD,14/09/2020," 2,800.00 ",S,72101500,Building maintenance and repair services
"Ministry of Housing, Communities and Local Government",Homes England,ESTATE GENERAL MAINTENANCE,Programmes,R D LANDSCAPES LTD,14/09/2020," 2,845.00 ",S,72101500,Building maintenance and repair services
"Ministry of Housing, Communities and Local Government",Homes England,LEGAL FEES,Programmes,NORTHUMBRIAN WATER,28/09/2020, 780.00 ,L,77101500,Environmental auditing
"Ministry of Housing, Communities and Local Government",Homes England,ESTATE GENERAL MAINTENANCE,Programmes,SIMON TRANTER LANDSCAPE CONTRACTORS,01/09/2020," 3,600.00 ",S,72101500,Building maintenance and repair services
"Ministry of Housing, Communities and Local Government",Homes England,STAFF WELFARE,Finance & Corporate Services,OFFICE TEAM LIMITED,03/09/2020," 1,779.92 ",L,44120000,Office supplies
"Ministry of Housing, Communities and Local Government",Homes England,FURNITURE & EQUIPMENT-MAINTENANCE,Finance & Corporate Services,OFFICE TEAM LIMITED,29/09/2020," 3,100.00 ",L,44120000,Office supplies
"Ministry of Housing, Communities and Local Government",Homes England,PLANNED PREVENTATIVE MAINTENANCE,Finance & Corporate Services,OFFICE TEAM LIMITED,29/09/2020," 1,080.00 ",L,44120000,Office supplies
"Ministry of Housing, Communities and Local Government",Homes England,ESTATE GENERAL MAINTENANCE,Programmes,IDVERDE LIMITED,14/09/2020, 862.86 ,L,72101500,Building maintenance and repair services
"Ministry of Housing, Communities and Local Government",Homes England,ESTATE GENERAL MAINTENANCE,Programmes,IDVERDE LIMITED,14/09/2020, 862.86 ,L,72101500,Building maintenance and repair services
"Ministry of Housing, Communities and Local Government",Homes England,ESTATE GENERAL MAINTENANCE,Programmes,IDVERDE LIMITED,14/09/2020, 862.86 ,L,72101500,Building maintenance and repair services
"Ministry of Housing, Communities and Local Government",Homes England,PROGRAMME RELATED EXPENSES,Programmes,ENVIRONMENT AGENCY,08/09/2020," 1,447.80 ",G,72101500,Building maintenance and repair services
"Ministry of Housing, Communities and Local Government",Homes England,PROGRAMME RELATED EXPENSES,Programmes,ENVIRONMENT AGENCY,08/09/2020, 665.00 ,G,72101500,Building maintenance and repair services
"Ministry of Housing, Communities and Local Government",Homes England,DISPOSAL FEES - LEGAL,North East And Yorkshire,ENVIRONMENT AGENCY,15/09/2020, 665.00 ,G,72101500,Building maintenance and repair services
"Ministry of Housing, Communities and Local Government",Homes England,LAND REMEDIATION,South West,ENVIRONMENT AGENCY,21/09/2020," 2,035.00 ",G,72101500,Building maintenance and repair services
"Ministry of Housing, Communities and Local Government",Homes England,LEGAL FEES,East And South East,ENVIRONMENT AGENCY,30/09/2020," 2,100.00 ",G,72101500,Building maintenance and repair services
"Ministry of Housing, Communities and Local Government",Homes England,LANDSCAPE MAINT-BUILT ESTATE,South East,LOWTHER FORESTRY GROUP,28/09/2020," 2,424.27 ",S,72101500,Building maintenance and repair services
"Ministry of Housing, Communities and Local Government",Homes England,ESTATE GENERAL MAINTENANCE,Programmes,LOWTHER FORESTRY GROUP,29/09/2020, 510.00 ,S,72101500,Building maintenance and repair services
"Ministry of Housing, Communities and Local Government",Homes England,FENCE MAINTENANCE,Midlands,LOWTHER FORESTRY GROUP,29/09/2020," 2,487.33 ",S,72101500,Building maintenance and repair services
"Ministry of Housing, Communities and Local Government",Homes England,FENCE MAINTENANCE,East And South East,LOWTHER FORESTRY GROUP,29/09/2020," 1,511.25 ",S,72101500,Building maintenance and repair services
"Ministry of Housing, Communities and Local Government",Homes England,IRON-MOUNTAIN ARCHIVE STORAGE ,Finance & Corporate Services,IRON MOUNTAIN (UK) LTD,14/09/2020," 6,217.85 ",L,78131800,Specialized warehousing and storage
"Ministry of Housing, Communities and Local Government",Homes England,IRON-MOUNTAIN ARCHIVE STORAGE ,Finance & Corporate Services,IRON MOUNTAIN (UK) LTD,14/09/2020," 5,443.79 ",L,78131800,Specialized warehousing and storage
"Ministry of Housing, Communities and Local Government",Homes England,IRON-MOUNTAIN ARCHIVE STORAGE ,Finance & Corporate Services,IRON MOUNTAIN (UK) LTD,22/09/2020," 3,815.65 ",L,78131800,Specialized warehousing and storage
"Ministry of Housing, Communities and Local Government",Homes England,IRON-MOUNTAIN ARCHIVE STORAGE ,Finance & Corporate Services,IRON MOUNTAIN (UK) LTD,22/09/2020," 4,389.22 ",L,78131800,Specialized warehousing and storage
"Ministry of Housing, Communities and Local Government",Homes England,IRON-MOUNTAIN ARCHIVE STORAGE ,Finance & Corporate Services,IRON MOUNTAIN (UK) LTD,22/09/2020," 4,466.24 ",L,78131800,Specialized warehousing and storage
"Ministry of Housing, Communities and Local Government",Homes England,ESTATE GENERAL MAINTENANCE,Programmes,PETERBOROUGH TREE SERVICES LTD,25/09/2020," 4,000.00 ",S,72101500,Building maintenance and repair services
"Ministry of Housing, Communities and Local Government",Homes England,ESTATE GENERAL MAINTENANCE,Programmes,PETERBOROUGH TREE SERVICES LTD,25/09/2020," 2,800.00 ",S,72101500,Building maintenance and repair services
"Ministry of Housing, Communities and Local Government",Homes England,DRAINS & SEWERS,Programmes,XYLEM WATER SOULTIONS UK LTD,14/09/2020, 426.65 ,L,72101500,Building maintenance and repair services
"Ministry of Housing, Communities and Local Government",Homes England,DRAINS & SEWERS,Programmes,XYLEM WATER SOULTIONS UK LTD,29/09/2020, 552.75 ,L,72101500,Building maintenance and repair services
"Ministry of Housing, Communities and Local Government",Homes England,POSTAGE/COURIERS,Finance & Corporate Services,MK LONDON LINK,03/09/2020," 2,606.81 ",S,78102200,Postal and small parcel and courier services
"Ministry of Housing, Communities and Local Government",Homes England,POSTAGE/COURIERS,Finance & Corporate Services,MK LONDON LINK,10/09/2020," 7,013.30 ",S,78102200,Postal and small parcel and courier services
"Ministry of Housing, Communities and Local Government",Homes England,LANDSCAPE MAINT-BUILT ESTATE,South West,GROUND CONTROL LIMITED,14/09/2020, 409.79 ,L,72101500,Building maintenance and repair services
"Ministry of Housing, Communities and Local Government",Homes England,CAPITAL GRANTS TO LOCAL AUTHORITIES,Programmes,LEICESTERSHIRE COUNTY COUNCIL,29/09/2020," 61,485.30 ",G,,Grants
"Ministry of Housing, Communities and Local Government",Homes England,CAPITAL GRANTS TO LOCAL AUTHORITIES,Programmes,CORNWALL COUNCIL,30/09/2020," 1,822,999.16 ",G,,Grants
"Ministry of Housing, Communities and Local Government",Homes England,CAPITAL GRANTS TO LOCAL AUTHORITIES,Programmes,MEDWAY COUNCIL,23/09/2020," 353,888.70 ",G,,Grants
"Ministry of Housing, Communities and Local Government",Homes England,CAPITAL GRANTS TO LOCAL AUTHORITIES,Programmes,MEDWAY COUNCIL,23/09/2020," 416,893.44 ",G,,Grants
"Ministry of Housing, Communities and Local Government",Homes England,CAPITAL GRANTS TO LOCAL AUTHORITIES,Programmes,SOUTHAMPTON CITY COUNCIL,29/09/2020," 1,068,927.00 ",G,,Grants
"Ministry of Housing, Communities and Local Government",Homes England,CAPITAL GRANTS TO LOCAL AUTHORITIES,Programmes,DEVON COUNTY COUNCIL,30/09/2020," 571,624.38 ",G,,Grants
"Ministry of Housing, Communities and Local Government",Homes England,CAPITAL GRANTS TO LOCAL AUTHORITIES,Programmes,NEWCASTLE CITY COUNCIL,28/09/2020," 2,554,802.08 ",G,,Grants
"Ministry of Housing, Communities and Local Government",Homes England,CAPITAL GRANTS TO LOCAL AUTHORITIES,Programmes,CAMBRIDGE CITY COUNCIL,25/09/2020," 194,293.69 ",G,,Grants
"Ministry of Housing, Communities and Local Government",Homes England,CAPITAL GRANTS TO RPs (NOT LA),South West,GLOUCESTER CITY HOMES,14/09/2020," 655,500.00 ",G,,Grants
"Ministry of Housing, Communities and Local Government",Homes England,CAPITAL GRANTS TO RPs (NOT LA),South West,GLOUCESTER CITY HOMES,15/09/2020," 391,500.00 ",G,,Grants
"Ministry of Housing, Communities and Local Government",Homes England,CAPITAL GRANTS TO LOCAL AUTHORITIES,Programmes,ADUR DISTRICT COUNCIL,17/09/2020," 2,500,000.00 ",G,,Grants
"Ministry of Housing, Communities and Local Government",Homes England,CAPITAL GRANTS TO RPs (NOT LA),"North East, Yorkshire & the Humber",RYKNELD HOMES LTD,18/09/2020," 9,000.00 ",,,Grants
"Ministry of Housing, Communities and Local Government",Homes England,CAPITAL GRANTS TO RPs (NOT LA),"North East, Yorkshire & the Humber",RYKNELD HOMES LTD,18/09/2020," 9,000.00 ",,,Grants
"Ministry of Housing, Communities and Local Government",Homes England,CAPITAL GRANTS TO RPs (NOT LA),South West,SAGE HOUSING LIMITED,23/09/2020," 58,500.00 ",,,Grants
"Ministry of Housing, Communities and Local Government",Homes England,CAPITAL GRANTS TO RPs (NOT LA),South West,SAGE HOUSING LIMITED,25/09/2020," 93,600.00 ",,,Grants
"Ministry of Housing, Communities and Local Government",Homes England,CAPITAL GRANTS TO RPs (NOT LA),South West,SAGE HOUSING LIMITED,29/09/2020," 81,900.00 ",,,Grants
"Ministry of Housing, Communities and Local Government",Homes England,CAPITAL GRANTS TO RPs (NOT LA),South West,SAGE HOUSING LIMITED,30/09/2020," 78,400.00 ",,,Grants
"Ministry of Housing, Communities and Local Government",Homes England,CAPITAL GRANTS TO RPs (NOT LA),East & South East,YMCA DOWNSLINK GROUP,29/09/2020," 162,948.00 ",,,Grants
"Ministry of Housing, Communities and Local Government",Homes England,CAPITAL GRANTS TO RPs (NOT LA),"North East, Yorkshire & the Humber",KARBON HOMES LIMITED - ISOS HOUSING LIMITED,25/09/2020," 185,250.00 ",L,,Grants
"Ministry of Housing, Communities and Local Government",Homes England,CAPITAL GRANTS TO RPs (NOT LA),"North East, Yorkshire & the Humber",KEELMAN HOMES,08/09/2020," 26,250.00 ",L,,Grants
"Ministry of Housing, Communities and Local Government",Homes England,CAPITAL GRANTS TO RPs (NOT LA),"North East, Yorkshire & the Humber",KEELMAN HOMES,15/09/2020," 5,000.00 ",L,,Grants
"Ministry of Housing, Communities and Local Government",Homes England,CAPITAL GRANTS TO RPs (NOT LA),"North East, Yorkshire & the Humber",KEELMAN HOMES,29/09/2020," 10,625.00 ",L,,Grants
"Ministry of Housing, Communities and Local Government",Homes England,CAPITAL GRANTS TO RPs (NOT LA),"North East, Yorkshire & the Humber",KEELMAN HOMES,29/09/2020," 6,500.00 ",L,,Grants
"Ministry of Housing, Communities and Local Government",Homes England,CAPITAL GRANTS TO RPs (NOT LA),Midlands,BROMFORD HOME OWNERSHIP LTD,11/09/2020," 9,000.00 ",,,Grants
"Ministry of Housing, Communities and Local Government",Homes England,CAPITAL GRANTS TO RPs (NOT LA),"North East, Yorkshire & the Humber",HUMANKIND CHARITY,10/09/2020," 17,063.00 ",,,Grants
"Ministry of Housing, Communities and Local Government",Homes England,CAPITAL GRANTS TO RPs (NOT LA),"North East, Yorkshire & the Humber",THE GUINNESS PARTNERSHIP LIMITED,14/09/2020," 29,359.00 ",L,,Grants
"Ministry of Housing, Communities and Local Government",Homes England,CAPITAL GRANTS TO RPs (NOT LA),North West,THE GUINNESS PARTNERSHIP LIMITED,16/09/2020," 9,000.00 ",L,,Grants
"Ministry of Housing, Communities and Local Government",Homes England,REVENUE GRANTS TO RPs,Midlands,THE GUINNESS PARTNERSHIP LIMITED,18/09/2020," 53,300.00 ",L,,Grants
"Ministry of Housing, Communities and Local Government",Homes England,CAPITAL GRANTS TO RPs (NOT LA),North West,J & M RESIDENTIAL LETTINGS LIMITED,11/09/2020," 12,600.00 ",,,Grants
"Ministry of Housing, Communities and Local Government",Homes England,CAPITAL GRANTS TO RPs (NOT LA),North West,PARTNERS FOUNDATION,28/09/2020," 568,366.00 ",,,Grants
"Ministry of Housing, Communities and Local Government",Homes England,CAPITAL GRANTS TO RPs (NOT LA),Midlands,PLATFORM HOUSING GROUP LIMITED,29/09/2020," 13,000.00 ",,,Grants
"Ministry of Housing, Communities and Local Government",Homes England,CAPITAL GRANTS TO RPs (NOT LA),"North East, Yorkshire & the Humber",BELIEVE HOUSING LIMITED,22/09/2020," 548,250.00 ",,,Grants
"Ministry of Housing, Communities and Local Government",Homes England,CAPITAL GRANTS TO RPs (NOT LA),South West,DEVON AND CORNWALL HOUSING LIMITED,28/09/2020," 176,995.00 ",L,,Grants
"Ministry of Housing, Communities and Local Government",Homes England,CAPITAL GRANTS TO RPs (NOT LA),South West,DEVON AND CORNWALL HOUSING LIMITED,28/09/2020," 156,800.00 ",L,,Grants
"Ministry of Housing, Communities and Local Government",Homes England,REVENUE GRANTS TO RPs,Midlands,FORTIS LIVING LIMITED,10/09/2020," 77,840.00 ",,,Grants
"Ministry of Housing, Communities and Local Government",Homes England,REVENUE GRANTS TO RPs,East & South East,OPTIVO,10/09/2020," 61,500.00 ",,,Grants
"Ministry of Housing, Communities and Local Government",Homes England,CAPITAL GRANTS TO RPs (NOT LA),"North East, Yorkshire & the Humber",BERNICIA GROUP,25/09/2020," 110,000.00 ",,,Grants
"Ministry of Housing, Communities and Local Government",Homes England,CAPITAL GRANTS TO RPs (NOT LA),"North East, Yorkshire & the Humber",BERNICIA GROUP,28/09/2020," 9,000.00 ",,,Grants
"Ministry of Housing, Communities and Local Government",Homes England,CAPITAL GRANTS TO RPs (NOT LA),Midlands,LINCOLNSHIRE HOUSING PARTNERSHIP LTD,15/09/2020," 9,000.00 ",,,Grants
"Ministry of Housing, Communities and Local Government",Homes England,CAPITAL GRANTS TO RPs (NOT LA),South West,LEGAL & GENERAL AFFORDABLE HOMES LTD,08/09/2020," 576,000.00 ",L,,Grants
"Ministry of Housing, Communities and Local Government",Homes England,CAPITAL GRANTS TO RPs (NOT LA),South West,LEGAL & GENERAL AFFORDABLE HOMES LTD,09/09/2020," 504,000.00 ",L,,Grants
"Ministry of Housing, Communities and Local Government",Homes England,CAPITAL GRANTS TO RPs (NOT LA),Midlands,CITIZEN HOUSING GROUP LTD,17/09/2020," 52,500.00 ",,,Grants
"Ministry of Housing, Communities and Local Government",Homes England,CAPITAL GRANTS TO RPs (NOT LA),Midlands,CITIZEN HOUSING GROUP LTD,28/09/2020," 10,000.00 ",,,Grants
"Ministry of Housing, Communities and Local Government",Homes England,CAPITAL GRANTS TO RPs (NOT LA),Midlands,CITIZEN HOUSING GROUP LTD,28/09/2020," 11,000.00 ",,,Grants
"Ministry of Housing, Communities and Local Government",Homes England,CAPITAL GRANTS TO RPs (NOT LA),Midlands,CITIZEN HOUSING GROUP LTD,28/09/2020," 10,000.00 ",,,Grants
"Ministry of Housing, Communities and Local Government",Homes England,CAPITAL GRANTS TO RPs (NOT LA),Midlands,CITIZEN HOUSING GROUP LTD,28/09/2020," 10,000.00 ",,,Grants
"Ministry of Housing, Communities and Local Government",Homes England,CAPITAL GRANTS TO RPs (NOT LA),South West,STURTS COMMUNITY TRUST,15/09/2020," 187,500.00 ",,,Grants
"Ministry of Housing, Communities and Local Government",Homes England,CAPITAL GRANTS TO RPs (NOT LA),South West,STURTS COMMUNITY TRUST,15/09/2020," 187,500.00 ",,,Grants
"Ministry of Housing, Communities and Local Government",Homes England,MISC PROFESSIONAL FEES,Programmes,AMION CONSULTING LTD,03/09/2020," 4,283.52 ",S,81121500,Economic analysis
"Ministry of Housing, Communities and Local Government",Homes England,MISC PROFESSIONAL FEES,Programmes,AMION CONSULTING LTD,03/09/2020," 6,784.40 ",S,81121500,Economic analysis
"Ministry of Housing, Communities and Local Government",Homes England,PROPERTY SERVICES,Programmes,AMION CONSULTING LTD,28/09/2020," 1,430.00 ",S,81121500,Economic analysis
"Ministry of Housing, Communities and Local Government",Homes England,MISC PROFESSIONAL FEES,Programmes,AMION CONSULTING LTD,29/09/2020," 1,640.00 ",S,81121500,Economic analysis
"Ministry of Housing, Communities and Local Government",Homes England,CONTRACT WORKS,South West,ALUN GRIFFITHS (CONTRACTORS) LTD,23/09/2020," 92,405.51 ",L,72141000,Highway and road construction services
"Ministry of Housing, Communities and Local Government",Homes England,PROJECT MANAGEMENT,North West,ATKINS LTD,01/09/2020," 10,000.00 ",L,80131800,Real estate management services
"Ministry of Housing, Communities and Local Government",Homes England,PLANNING APPLICATIONS,North West,ATKINS LTD,08/09/2020," 14,195.03 ",L,80131800,Real estate management services
"Ministry of Housing, Communities and Local Government",Homes England,PROJECT MANAGEMENT,North West,ATKINS LTD,18/09/2020," 12,000.00 ",L,80131800,Real estate management services
"Ministry of Housing, Communities and Local Government",Homes England,OTHER PROFESSIONAL FEES,Programmes,ATKINS LTD,28/09/2020," 59,030.00 ",L,80131800,Real estate management services
"Ministry of Housing, Communities and Local Government",Homes England,CONTRACT WORKS,Programmes,WESTERN POWER DISTRIBUTION,18/09/2020," 3,234.67 ",L,72101500,Building maintenance and repair services
"Ministry of Housing, Communities and Local Government",Homes England,ESTATE GENERAL MAINTENANCE,North East And Yorkshire,ALPHA HEATING (CHESTERFIELD) LTD,21/09/2020," 1,732.37 ",S,72101500,Building maintenance and repair services
"Ministry of Housing, Communities and Local Government",Homes England,STAFF WELFARE,Finance & Corporate Services,AMBER SCREEN AND DISPLAY,09/09/2020, 756.00 ,S,72102900,Facility maintenance and repair services
"Ministry of Housing, Communities and Local Government",Homes England,STAFF WELFARE,Finance & Corporate Services,AMBER SCREEN AND DISPLAY,09/09/2020, 250.00 ,S,72102900,Facility maintenance and repair services
"Ministry of Housing, Communities and Local Government",Homes England,STAFF WELFARE,Finance & Corporate Services,AMBER SCREEN AND DISPLAY,09/09/2020, 250.00 ,S,72102900,Facility maintenance and repair services
"Ministry of Housing, Communities and Local Government",Homes England,STAFF WELFARE,Finance & Corporate Services,AMBER SCREEN AND DISPLAY,29/09/2020, 657.20 ,S,72102900,Facility maintenance and repair services
"Ministry of Housing, Communities and Local Government",Homes England,PRINTING & STATIONERY,Finance & Corporate Services,AMBER SCREEN AND DISPLAY,29/09/2020, 423.40 ,S,72102900,Facility maintenance and repair services
"Ministry of Housing, Communities and Local Government",Homes England,CONTRACT WORKS,North West,AE YATES LTD,01/09/2020," 284,085.88 ",M,72141500,Land preparation services
"Ministry of Housing, Communities and Local Government",Homes England,CONTRACT WORKS,North West,AE YATES LTD,23/09/2020," 93,264.95 ",M,72141500,Land preparation services
"Ministry of Housing, Communities and Local Government",Homes England,CAR LEASING - HIRE CHARGES,North East And Yorkshire,ARVAL UK LIMITED,08/09/2020," 2,204.76 ",L,25101500,Passenger motor vehicles
"Ministry of Housing, Communities and Local Government",Homes England,CAR LEASING - HIRE CHARGES,North East And Yorkshire,ARVAL UK LIMITED,08/09/2020," 3,018.97 ",L,25101500,Passenger motor vehicles
"Ministry of Housing, Communities and Local Government",Homes England,CAR LEASING - HIRE CHARGES,Midlands,ARVAL UK LIMITED,08/09/2020, 999.12 ,L,25101500,Passenger motor vehicles
"Ministry of Housing, Communities and Local Government",Homes England,CAR LEASING - HIRE CHARGES,Midlands,ARVAL UK LIMITED,08/09/2020," 1,493.51 ",L,25101500,Passenger motor vehicles
"Ministry of Housing, Communities and Local Government",Homes England,CAR LEASING - HIRE CHARGES,North East And Yorkshire,ARVAL UK LIMITED,08/09/2020, 904.00 ,L,25101500,Passenger motor vehicles
"Ministry of Housing, Communities and Local Government",Homes England,CAR LEASING - HIRE CHARGES,North East And Yorkshire,ARVAL UK LIMITED,08/09/2020," 1,366.83 ",L,25101500,Passenger motor vehicles
"Ministry of Housing, Communities and Local Government",Homes England,CAR LEASING - HIRE CHARGES,Programmes,ARVAL UK LIMITED,08/09/2020," 1,791.06 ",L,25101500,Passenger motor vehicles
"Ministry of Housing, Communities and Local Government",Homes England,CAR LEASING - HIRE CHARGES,Programmes,ARVAL UK LIMITED,08/09/2020," 2,524.98 ",L,25101500,Passenger motor vehicles
"Ministry of Housing, Communities and Local Government",Homes England,CAR LEASING - HIRE CHARGES,Programmes,ARVAL UK LIMITED,15/09/2020," 1,275.93 ",L,25101500,Passenger motor vehicles
"Ministry of Housing, Communities and Local Government",Homes England,CAR LEASING - HIRE CHARGES,Programmes,ARVAL UK LIMITED,15/09/2020," 1,805.00 ",L,25101500,Passenger motor vehicles
"Ministry of Housing, Communities and Local Government",Homes England,CAR LEASING - HIRE CHARGES,East And South East,ARVAL UK LIMITED,15/09/2020," 2,131.15 ",L,25101500,Passenger motor vehicles
"Ministry of Housing, Communities and Local Government",Homes England,CAR LEASING - HIRE CHARGES,East And South East,ARVAL UK LIMITED,15/09/2020," 2,978.69 ",L,25101500,Passenger motor vehicles
"Ministry of Housing, Communities and Local Government",Homes England,CAR LEASING - HIRE CHARGES,North West,ARVAL UK LIMITED,23/09/2020," 1,247.57 ",L,25101500,Passenger motor vehicles
"Ministry of Housing, Communities and Local Government",Homes England,CAR LEASING - HIRE CHARGES,North West,ARVAL UK LIMITED,23/09/2020," 1,948.12 ",L,25101500,Passenger motor vehicles
"Ministry of Housing, Communities and Local Government",Homes England,CAR LEASING - HIRE CHARGES,East And South East,ARVAL UK LIMITED,22/09/2020," 1,255.03 ",L,25101500,Passenger motor vehicles
"Ministry of Housing, Communities and Local Government",Homes England,CAR LEASING - HIRE CHARGES,East And South East,ARVAL UK LIMITED,22/09/2020," 1,979.35 ",L,25101500,Passenger motor vehicles
"Ministry of Housing, Communities and Local Government",Homes England,CAR LEASING - HIRE CHARGES,East And South East,ARVAL UK LIMITED,30/09/2020," 1,255.03 ",L,25101500,Passenger motor vehicles
"Ministry of Housing, Communities and Local Government",Homes England,CAR LEASING - HIRE CHARGES,East And South East,ARVAL UK LIMITED,30/09/2020," 1,979.35 ",L,25101500,Passenger motor vehicles
"Ministry of Housing, Communities and Local Government",Homes England,PROPERTY MAINTENANCE,South West,ALLIUM ENVIRONMENTAL LTD,28/09/2020, 480.00 ,S,77101500,Environmental auditing
"Ministry of Housing, Communities and Local Government",Homes England,PROPERTY MAINTENANCE,South West,ALLIUM ENVIRONMENTAL LTD,29/09/2020, 480.00 ,S,77101500,Environmental auditing
"Ministry of Housing, Communities and Local Government",Homes England,PROPERTY MAINTENANCE,East And South East,ALLIUM ENVIRONMENTAL LTD,29/09/2020, 480.00 ,S,77101500,Environmental auditing
"Ministry of Housing, Communities and Local Government",Homes England,ST Fund Loans Additions,Economic Assets Hub,ACROM HOLDINGS LTD & ACROM CONSTRUCTION,01/09/2020," 74,792.00 ",,,Loans
"Ministry of Housing, Communities and Local Government",Homes England,ST Fund Loans Additions,Economic Assets Hub,ACROM HOLDINGS LTD & ACROM CONSTRUCTION,30/09/2020," 65,622.00 ",,,Loans
"Ministry of Housing, Communities and Local Government",Homes England,ESTATE GENERAL MAINTENANCE,North West,ALBEN LANDSCAPES LIMITED,21/09/2020, 533.03 ,S,72101500,Building maintenance and repair services
"Ministry of Housing, Communities and Local Government",Homes England,ESTATE GENERAL MAINTENANCE,North West,ALBEN LANDSCAPES LIMITED,21/09/2020, 533.03 ,S,72101500,Building maintenance and repair services
"Ministry of Housing, Communities and Local Government",Homes England,ESTATE GENERAL MAINTENANCE,North West,ALBEN LANDSCAPES LIMITED,21/09/2020, 533.03 ,S,72101500,Building maintenance and repair services
"Ministry of Housing, Communities and Local Government",Homes England,ESTATE GENERAL MAINTENANCE,North West,ALBEN LANDSCAPES LIMITED,21/09/2020, 533.03 ,S,72101500,Building maintenance and repair services
"Ministry of Housing, Communities and Local Government",Homes England,ESTATE GENERAL MAINTENANCE,North West,ALBEN LANDSCAPES LIMITED,21/09/2020, 533.03 ,S,72101500,Building maintenance and repair services
"Ministry of Housing, Communities and Local Government",Homes England,MANAGEMENT COSTS,South West,ASBESTECH LIMITED,16/09/2020," 2,080.00 ",M,72101500,Building maintenance and repair services
"Ministry of Housing, Communities and Local Government",Homes England,AGENCY STAFF,Executive Office,ALLEN LANE LIMITED,07/09/2020," 3,162.50 ",M,80111600,Temporary personnel services
"Ministry of Housing, Communities and Local Government",Homes England,AGENCY STAFF,Executive Office,ALLEN LANE LIMITED,07/09/2020," 3,162.50 ",M,80111600,Temporary personnel services
"Ministry of Housing, Communities and Local Government",Homes England,AGENCY STAFF,Executive Office,ALLEN LANE LIMITED,07/09/2020," 2,530.00 ",M,80111600,Temporary personnel services
"Ministry of Housing, Communities and Local Government",Homes England,AGENCY STAFF,Executive Office,ALLEN LANE LIMITED,07/09/2020," 3,162.50 ",M,80111600,Temporary personnel services
"Ministry of Housing, Communities and Local Government",Homes England,AGENCY STAFF,Executive Office,ALLEN LANE LIMITED,07/09/2020," 3,575.00 ",M,80111600,Temporary personnel services
"Ministry of Housing, Communities and Local Government",Homes England,AGENCY STAFF,Executive Office,ALLEN LANE LIMITED,07/09/2020," 3,162.50 ",M,80111600,Temporary personnel services
"Ministry of Housing, Communities and Local Government",Homes England,AGENCY STAFF,Executive Office,ALLEN LANE LIMITED,07/09/2020," 3,162.50 ",M,80111600,Temporary personnel services
"Ministry of Housing, Communities and Local Government",Homes England,AGENCY STAFF,Executive Office,ALLEN LANE LIMITED,07/09/2020," 3,575.00 ",M,80111600,Temporary personnel services
"Ministry of Housing, Communities and Local Government",Homes England,AGENCY STAFF,Executive Office,ALLEN LANE LIMITED,10/09/2020," 2,860.00 ",M,80111600,Temporary personnel services
"Ministry of Housing, Communities and Local Government",Homes England,AGENCY STAFF,Executive Office,ALLEN LANE LIMITED,10/09/2020," 10,450.00 ",M,80111600,Temporary personnel services
"Ministry of Housing, Communities and Local Government",Homes England,AGENCY STAFF,Executive Office,ALLEN LANE LIMITED,10/09/2020," 3,162.50 ",M,80111600,Temporary personnel services
"Ministry of Housing, Communities and Local Government",Homes England,AGENCY STAFF,Executive Office,ALLEN LANE LIMITED,10/09/2020," 2,530.00 ",M,80111600,Temporary personnel services
"Ministry of Housing, Communities and Local Government",Homes England,AGENCY STAFF,Executive Office,ALLEN LANE LIMITED,17/09/2020," 3,162.50 ",M,80111600,Temporary personnel services
"Ministry of Housing, Communities and Local Government",Homes England,AGENCY STAFF,Executive Office,ALLEN LANE LIMITED,17/09/2020," 3,162.50 ",M,80111600,Temporary personnel services
"Ministry of Housing, Communities and Local Government",Homes England,AGENCY STAFF,Executive Office,ALLEN LANE LIMITED,17/09/2020," 3,162.50 ",M,80111600,Temporary personnel services
"Ministry of Housing, Communities and Local Government",Homes England,AGENCY STAFF,Executive Office,ALLEN LANE LIMITED,17/09/2020," 3,575.00 ",M,80111600,Temporary personnel services
"Ministry of Housing, Communities and Local Government",Homes England,AGENCY STAFF,Executive Office,ALLEN LANE LIMITED,17/09/2020," 1,650.00 ",M,80111600,Temporary personnel services
"Ministry of Housing, Communities and Local Government",Homes England,AGENCY STAFF,Executive Office,ALLEN LANE LIMITED,17/09/2020," 3,025.00 ",M,80111600,Temporary personnel services
"Ministry of Housing, Communities and Local Government",Homes England,AGENCY STAFF,Executive Office,ALLEN LANE LIMITED,17/09/2020," 3,162.50 ",M,80111600,Temporary personnel services
"Ministry of Housing, Communities and Local Government",Homes England,AGENCY STAFF,Executive Office,ALLEN LANE LIMITED,25/09/2020," 6,325.00 ",M,80111600,Temporary personnel services
"Ministry of Housing, Communities and Local Government",Homes England,AGENCY STAFF,Executive Office,ALLEN LANE LIMITED,25/09/2020," 3,162.50 ",M,80111600,Temporary personnel services
"Ministry of Housing, Communities and Local Government",Homes England,AGENCY STAFF,Executive Office,ALLEN LANE LIMITED,25/09/2020," 3,162.50 ",M,80111600,Temporary personnel services
"Ministry of Housing, Communities and Local Government",Homes England,AGENCY STAFF,Executive Office,ALLEN LANE LIMITED,25/09/2020," 2,530.00 ",M,80111600,Temporary personnel services
"Ministry of Housing, Communities and Local Government",Homes England,AGENCY STAFF,Executive Office,ALLEN LANE LIMITED,25/09/2020," 3,575.00 ",M,80111600,Temporary personnel services
"Ministry of Housing, Communities and Local Government",Homes England,AGENCY STAFF,Executive Office,ALLEN LANE LIMITED,25/09/2020," 1,650.00 ",M,80111600,Temporary personnel services
"Ministry of Housing, Communities and Local Government",Homes England,AGENCY STAFF,Executive Office,ALLEN LANE LIMITED,25/09/2020," 3,025.00 ",M,80111600,Temporary personnel services
"Ministry of Housing, Communities and Local Government",Homes England,AGENCY STAFF,Executive Office,ALLEN LANE LIMITED,25/09/2020," 3,162.50 ",M,80111600,Temporary personnel services
"Ministry of Housing, Communities and Local Government",Homes England,ESTATE GENERAL MAINTENANCE,North East And Yorkshire,AIREDALE FORESTRY,01/09/2020, 442.59 ,S,72101500,Building maintenance and repair services
"Ministry of Housing, Communities and Local Government",Homes England,ESTATE GENERAL MAINTENANCE,North East And Yorkshire,AIREDALE FORESTRY,01/09/2020, 507.02 ,S,72101500,Building maintenance and repair services
"Ministry of Housing, Communities and Local Government",Homes England,ESTATE GENERAL MAINTENANCE,North East And Yorkshire,AIREDALE FORESTRY,01/09/2020, 553.41 ,S,72101500,Building maintenance and repair services
"Ministry of Housing, Communities and Local Government",Homes England,ESTATE GENERAL MAINTENANCE,North East And Yorkshire,AIREDALE FORESTRY,14/09/2020, 694.00 ,S,72101500,Building maintenance and repair services
"Ministry of Housing, Communities and Local Government",Homes England,ESTATE GENERAL MAINTENANCE,North East And Yorkshire,AIREDALE FORESTRY,22/09/2020, 277.00 ,S,72101500,Building maintenance and repair services
"Ministry of Housing, Communities and Local Government",Homes England,ESTATE GENERAL MAINTENANCE,North East And Yorkshire,AIREDALE FORESTRY,23/09/2020, 442.59 ,S,72101500,Building maintenance and repair services
"Ministry of Housing, Communities and Local Government",Homes England,ESTATE GENERAL MAINTENANCE,North East And Yorkshire,AIREDALE FORESTRY,23/09/2020, 507.02 ,S,72101500,Building maintenance and repair services
"Ministry of Housing, Communities and Local Government",Homes England,ESTATE GENERAL MAINTENANCE,North East And Yorkshire,AIREDALE FORESTRY,23/09/2020, 553.41 ,S,72101500,Building maintenance and repair services
"Ministry of Housing, Communities and Local Government",Homes England,ESTATE GENERAL MAINTENANCE,North East And Yorkshire,AIREDALE FORESTRY,29/09/2020, 395.56 ,S,72101500,Building maintenance and repair services
"Ministry of Housing, Communities and Local Government",Homes England,HEALTH & SAFETY,North East And Yorkshire,AIREDALE FORESTRY,30/09/2020, 891.00 ,S,72101500,Building maintenance and repair services
"Ministry of Housing, Communities and Local Government",Homes England,ESTATE GENERAL MAINTENANCE,North East And Yorkshire,AIREDALE FORESTRY,30/09/2020, 335.00 ,S,72101500,Building maintenance and repair services
"Ministry of Housing, Communities and Local Government",Homes England,HEALTH & SAFETY,North East And Yorkshire,AIREDALE FORESTRY,30/09/2020, 587.00 ,S,72101500,Building maintenance and repair services
"Ministry of Housing, Communities and Local Government",Homes England,MISC PROFESSIONAL FEES,Programmes,AKINA SERVICES LIMITED,23/09/2020," 19,550.00 ",S,80101500,Business and corporate management consultation services 
"Ministry of Housing, Communities and Local Government",Homes England,COURSES & CONFERENCES,Economic Assets Hub,ASSIST KNOWLEDGE DEVELOPMENT LTD,04/09/2020," 1,095.00 ",S,86101800,In service training and manpower development
"Ministry of Housing, Communities and Local Government",Homes England,DISPOSAL FEES - LEGAL,South West,ASHFORDS,02/09/2020, 280.00 ,L,80121600,Business law services
"Ministry of Housing, Communities and Local Government",Homes England,LEGAL FEES,South West,ASHFORDS,02/09/2020, 324.00 ,L,80121600,Business law services
"Ministry of Housing, Communities and Local Government",Homes England,Professional Fees Loans Capitalised,Economic Assets Hub,ASHFORDS,03/09/2020," 7,700.00 ",L,80121600,Business law services
"Ministry of Housing, Communities and Local Government",Homes England,DISPOSAL FEES - LEGAL,South West,ASHFORDS,04/09/2020, 900.00 ,L,80121600,Business law services
"Ministry of Housing, Communities and Local Government",Homes England,DISPOSAL FEES - LEGAL,South West,ASHFORDS,11/09/2020, 296.00 ,L,80121600,Business law services
"Ministry of Housing, Communities and Local Government",Homes England,ENGINEERING CONSULTANTS,East And South East,APEX ENGINEERING SERVICES LTD,08/09/2020, 350.00 ,S,81101500,Civil Engineering
"Ministry of Housing, Communities and Local Government",Homes England,CAR LEASING - HIRE CHARGES,Programmes,ARNOLD CLARK FINANCE LIMITED,08/09/2020, 395.83 ,L,25101500,Passenger motor vehicles
"Ministry of Housing, Communities and Local Government",Homes England,CAR LEASING - HIRE CHARGES,Programmes,ARNOLD CLARK FINANCE LIMITED,08/09/2020, 487.47 ,L,25101500,Passenger motor vehicles
"Ministry of Housing, Communities and Local Government",Homes England,CAR LEASING - HIRE CHARGES,Programmes,ARNOLD CLARK FINANCE LIMITED,15/09/2020, 253.90 ,L,25101500,Passenger motor vehicles
"Ministry of Housing, Communities and Local Government",Homes England,CAR LEASING - HIRE CHARGES,Programmes,ARNOLD CLARK FINANCE LIMITED,30/09/2020," 1,947.90 ",L,25101500,Passenger motor vehicles
"Ministry of Housing, Communities and Local Government",Homes England,CAR LEASING - HIRE CHARGES,Programmes,ARNOLD CLARK FINANCE LIMITED,30/09/2020," 2,487.78 ",L,25101500,Passenger motor vehicles
"Ministry of Housing, Communities and Local Government",Homes England,Homebuy Agents Fees,Programmes,BERWIN LEIGHTON PAISNER,01/09/2020," 5,109.91 ",L,80121600,Business law services
"Ministry of Housing, Communities and Local Government",Homes England,LEGAL FEES,Economic Assets Hub,BERWIN LEIGHTON PAISNER,08/09/2020," 1,485.00 ",L,80121600,Business law services
"Ministry of Housing, Communities and Local Government",Homes England,LEGAL FEES,East And South East,BERWIN LEIGHTON PAISNER,09/09/2020, 792.00 ,L,80121600,Business law services
"Ministry of Housing, Communities and Local Government",Homes England,Professional Fees Loans Capitalised,Economic Assets Hub,BERWIN LEIGHTON PAISNER,10/09/2020, 750.00 ,L,80121600,Business law services
"Ministry of Housing, Communities and Local Government",Homes England,Homebuy Agents Fees,Programmes,BERWIN LEIGHTON PAISNER,10/09/2020," 5,241.00 ",L,80121600,Business law services
"Ministry of Housing, Communities and Local Government",Homes England,LEGAL FEES,Economic Assets Hub,BERWIN LEIGHTON PAISNER,10/09/2020," 11,477.50 ",L,80121600,Business law services
"Ministry of Housing, Communities and Local Government",Homes England,LEGAL FEES,Economic Assets Hub,BERWIN LEIGHTON PAISNER,10/09/2020," 22,177.50 ",L,80121600,Business law services
"Ministry of Housing, Communities and Local Government",Homes England,LEGAL FEES,Economic Assets Hub,BERWIN LEIGHTON PAISNER,15/09/2020," 2,600.00 ",L,80121600,Business law services
"Ministry of Housing, Communities and Local Government",Homes England,LEGAL FEES,South West,BERWIN LEIGHTON PAISNER,22/09/2020," 1,245.50 ",L,80121600,Business law services
"Ministry of Housing, Communities and Local Government",Homes England,LEGAL FEES,South West,BERWIN LEIGHTON PAISNER,23/09/2020," 1,971.00 ",L,80121600,Business law services
"Ministry of Housing, Communities and Local Government",Homes England,DATA CENTRE,Finance & Corporate Services,BUSINESS IT,11/09/2020, 254.80 ,S,81112300,Computer hardware maintenance and support
"Ministry of Housing, Communities and Local Government",Homes England,LEGAL FEES,Programmes,BROWNE JACOBSON LLP,01/09/2020," 10,739.50 ",L,80121600,Business law services
"Ministry of Housing, Communities and Local Government",Homes England,LEGAL FEES,South West,BROWNE JACOBSON LLP,04/09/2020," 1,206.00 ",L,80121600,Business law services
"Ministry of Housing, Communities and Local Government",Homes England,LEGAL FEES,Midlands,BROWNE JACOBSON LLP,07/09/2020," 1,500.00 ",L,80121600,Business law services
"Ministry of Housing, Communities and Local Government",Homes England,LEGAL FEES,South West,BROWNE JACOBSON LLP,09/09/2020, 385.00 ,L,80121600,Business law services
"Ministry of Housing, Communities and Local Government",Homes England,DISPOSAL FEES - LEGAL,North West,BROWNE JACOBSON LLP,10/09/2020," 1,018.00 ",L,80121600,Business law services
"Ministry of Housing, Communities and Local Government",Homes England,Professional Fees Loans Capitalised,Economic Assets Hub,BROWNE JACOBSON LLP,14/09/2020," 18,890.00 ",L,80121600,Business law services
"Ministry of Housing, Communities and Local Government",Homes England,LEGAL FEES,Economic Assets Hub,BROWNE JACOBSON LLP,15/09/2020," 3,755.00 ",L,80121600,Business law services
"Ministry of Housing, Communities and Local Government",Homes England,LEGAL FEES,South West,BROWNE JACOBSON LLP,15/09/2020, 734.00 ,L,80121600,Business law services
"Ministry of Housing, Communities and Local Government",Homes England,DISPOSAL FEES - LEGAL,East And South East,BROWNE JACOBSON LLP,17/09/2020," 1,003.00 ",L,80121600,Business law services
"Ministry of Housing, Communities and Local Government",Homes England,LEGAL FEES,North East And Yorkshire,BROWNE JACOBSON LLP,21/09/2020, 500.00 ,L,80121600,Business law services
"Ministry of Housing, Communities and Local Government",Homes England,DISPOSAL FEES - LEGAL,Midlands,BROWNE JACOBSON LLP,23/09/2020," 2,300.00 ",L,80121600,Business law services
"Ministry of Housing, Communities and Local Government",Homes England,DISPOSAL FEES - LEGAL,East And South East,BROWNE JACOBSON LLP,23/09/2020, 762.00 ,L,80121600,Business law services
"Ministry of Housing, Communities and Local Government",Homes England,DISPOSAL FEES - LEGAL,South West,BROWNE JACOBSON LLP,28/09/2020, 683.00 ,L,80121600,Business law services
"Ministry of Housing, Communities and Local Government",Homes England,Professional Fees Loans Capitalised,Economic Assets Hub,BROWNE JACOBSON LLP,28/09/2020," 3,606.00 ",L,80121600,Business law services
"Ministry of Housing, Communities and Local Government",Homes England,LEGAL FEES,Programmes,BROWNE JACOBSON LLP,29/09/2020, 850.00 ,L,80121600,Business law services
"Ministry of Housing, Communities and Local Government",Homes England,Other Professional Fees  (Non-asset & Non-land),Programmes,BROWNE JACOBSON LLP,30/09/2020," 2,003.00 ",L,80121600,Business law services
"Ministry of Housing, Communities and Local Government",Homes England,RI - MONITORING SURVEYOR FEES,Economic Assets Hub,BUILDING DESIGN PARTNERSHIP,29/09/2020," 1,925.00 ",L,80131800,Real estate management services
"Ministry of Housing, Communities and Local Government",Homes England,BUILDINGS-VACANT RATES,Midlands,BASSETLAW DISTRICT COUNCIL (NNDR),08/09/2020, 387.50 ,G,80131500,Lease and rental of property or building
"Ministry of Housing, Communities and Local Government",Homes England,RI - MONITORING SURVEYOR FEES,Economic Assets Hub,STANTEC UK LIMITED,09/09/2020," 5,000.00 ",L,80131800,Real estate management services
"Ministry of Housing, Communities and Local Government",Homes England,OTHER PROFESSIONAL FEES,South West,STANTEC UK LIMITED,11/09/2020," 3,450.00 ",L,80131800,Real estate management services
"Ministry of Housing, Communities and Local Government",Homes England,OTHER PROFESSIONAL FEES,South West,STANTEC UK LIMITED,17/09/2020," 1,140.00 ",L,80131800,Real estate management services
"Ministry of Housing, Communities and Local Government",Homes England,PROJECT MANAGEMENT,South West,STANTEC UK LIMITED,28/09/2020," 3,150.00 ",L,80131800,Real estate management services
"Ministry of Housing, Communities and Local Government",Homes England,OTHER PROFESSIONAL FEES,South West,STANTEC UK LIMITED,28/09/2020," 2,500.00 ",L,80131800,Real estate management services
"Ministry of Housing, Communities and Local Government",Homes England,OTHER PROFESSIONAL FEES,South West,STANTEC UK LIMITED,28/09/2020," 3,750.00 ",L,80131800,Real estate management services
"Ministry of Housing, Communities and Local Government",Homes England,MASTERPLANNING FEES,East And South East,STANTEC UK LIMITED,28/09/2020," 21,598.00 ",L,80131800,Real estate management services
"Ministry of Housing, Communities and Local Government",Homes England,ENGINEERING CONSULTANTS,South West,STANTEC UK LIMITED,29/09/2020," 2,000.00 ",L,80131800,Real estate management services
"Ministry of Housing, Communities and Local Government",Homes England,CLEANING,Finance & Corporate Services,BIFFA WASTE SERVICE LTD,07/09/2020, 390.90 ,L,76121500,Refuse collection and disposal
"Ministry of Housing, Communities and Local Government",Homes England,ESTATE GENERAL MAINTENANCE,Programmes,BIFFA WASTE SERVICE LTD,15/09/2020, 397.00 ,L,76121500,Refuse collection and disposal
"Ministry of Housing, Communities and Local Government",Homes England,CLEANING,Finance & Corporate Services,BIFFA WASTE SERVICE LTD,29/09/2020, 425.40 ,L,76121500,Refuse collection and disposal
"Ministry of Housing, Communities and Local Government",Homes England,AGENCY STAFF,Executive Office,BADENOCH & CLARK,10/09/2020," 3,628.99 ",L,80111600,Temporary personnel services
"Ministry of Housing, Communities and Local Government",Homes England,AGENCY STAFF,Executive Office,BADENOCH & CLARK,10/09/2020," 2,903.19 ",L,80111600,Temporary personnel services
"Ministry of Housing, Communities and Local Government",Homes England,HOME WORKERS,Finance & Corporate Services,BRITISH TELECOMMUNICATIONS PLC,10/09/2020, 957.00 ,L,83111500,Local and long distance telephone communications
"Ministry of Housing, Communities and Local Government",Homes England,HOME WORKERS,Finance & Corporate Services,BRITISH TELECOMMUNICATIONS PLC,25/09/2020, 589.89 ,L,83111500,Local and long distance telephone communications
"Ministry of Housing, Communities and Local Government",Homes England,HOME WORKERS,Finance & Corporate Services,BRITISH TELECOMMUNICATIONS PLC,28/09/2020, 957.00 ,L,83111500,Local and long distance telephone communications
"Ministry of Housing, Communities and Local Government",Homes England,TELEPHONES,Finance & Corporate Services,BRITISH TELECOMMUNICATIONS PLC,30/09/2020, 339.21 ,L,83111500,Local and long distance telephone communications
"Ministry of Housing, Communities and Local Government",Homes England,BUILDINGS-ELECTRICITY,Programmes,BRITISH GAS BUSINESS,02/09/2020, 751.40 ,L,83101800,Electric utilities
"Ministry of Housing, Communities and Local Government",Homes England,COURSES & CONFERENCES,Programmes,BRAVE PRODUCTIONS LIMITED,09/09/2020," 2,375.00 ",S,86101800,In service training and manpower development
"Ministry of Housing, Communities and Local Government",Homes England,COST OF ACQUISITION,Programmes,BROWNE JACOBSON,25/09/2020," 122,230.00 ",L,,Acquisition
"Ministry of Housing, Communities and Local Government",Homes England,BUILDINGS-VACANT RATES,Programmes,BROMSGROVE DISTRICT COUNCIL,10/09/2020," 3,060.66 ",G,80131500,Lease and rental of property or building
"Ministry of Housing, Communities and Local Government",Homes England,ST Fund Loans Additions,Economic Assets Hub,BOOTHAM DEVELOPMENTS LLP,16/09/2020," 159,915.00 ",,,Loans
"Ministry of Housing, Communities and Local Government",Homes England,ST Fund Loans Additions,Economic Assets Hub,BUCHANAN ESTATES LIMITED,18/09/2020," 249,084.60 ",,,Loans
"Ministry of Housing, Communities and Local Government",Homes England,CONTRACT WORKS,South West,BOND DEMOLITION LIMITED,11/09/2020," 24,999.29 ",S,72141500,Land preparation services
"Ministry of Housing, Communities and Local Government",Homes England,CONTRACT WORKS,South West,BOND DEMOLITION LIMITED,11/09/2020," 6,924.60 ",S,72141500,Land preparation services
"Ministry of Housing, Communities and Local Government",Homes England,CONTRACT WORKS,South West,BOND DEMOLITION LIMITED,11/09/2020," 5,634.54 ",S,72141500,Land preparation services
"Ministry of Housing, Communities and Local Government",Homes England,ST Fund Loans Additions,Economic Assets Hub,BATTY DEVELOPMENTS LIMITED,01/09/2020," 89,392.94 ",,,Loans
"Ministry of Housing, Communities and Local Government",Homes England,ST Fund Loans Additions,Economic Assets Hub,BARCLAYS BANK PLC,18/09/2020," 1,524,382.31 ",,,Loans
"Ministry of Housing, Communities and Local Government",Homes England,ST Fund Loans Repayments,Economic Assets Hub,BROTHER DEVELOPMENTS LTD,25/09/2020," 1,472.00 ",,,Loans
"Ministry of Housing, Communities and Local Government",Homes England,ESTATE GENERAL MAINTENANCE,Midlands,BIRMINGHAM CITY COUNCIL,22/09/2020, 386.40 ,G,76121500,Refuse collection and disposal
"Ministry of Housing, Communities and Local Government",Homes England,RI - MONITORING SURVEYOR FEES,Economic Assets Hub,BNP PARIBAS REAL ESTATE,02/09/2020, 600.00 ,L,80131800,Real estate management services
"Ministry of Housing, Communities and Local Government",Homes England,Professional Fees Loans Capitalised,Economic Assets Hub,BNP PARIBAS REAL ESTATE,02/09/2020, 900.00 ,L,80131800,Real estate management services
"Ministry of Housing, Communities and Local Government",Homes England,RI - MONITORING SURVEYOR FEES,Economic Assets Hub,BNP PARIBAS REAL ESTATE,02/09/2020, 850.00 ,L,80131800,Real estate management services
"Ministry of Housing, Communities and Local Government",Homes England,Professional Fees Loans Capitalised,Economic Assets Hub,BNP PARIBAS REAL ESTATE,02/09/2020," 3,750.00 ",L,80131800,Real estate management services
"Ministry of Housing, Communities and Local Government",Homes England,OPEN MARKET VALUATION FEE,East And South East,BNP PARIBAS REAL ESTATE,03/09/2020," 2,500.00 ",L,80131800,Real estate management services
"Ministry of Housing, Communities and Local Government",Homes England,RI - MONITORING SURVEYOR FEES,Economic Assets Hub,BNP PARIBAS REAL ESTATE,04/09/2020, 600.00 ,L,80131800,Real estate management services
"Ministry of Housing, Communities and Local Government",Homes England,RI - MONITORING SURVEYOR FEES,Economic Assets Hub,BNP PARIBAS REAL ESTATE,07/09/2020, 850.00 ,L,80131800,Real estate management services
"Ministry of Housing, Communities and Local Government",Homes England,DISPOSAL FEES - PROPERTY AGENTS & ADVERTISING,North East And Yorkshire,BNP PARIBAS REAL ESTATE,07/09/2020, 595.00 ,L,80131800,Real estate management services
"Ministry of Housing, Communities and Local Government",Homes England,RI - MONITORING SURVEYOR FEES,Economic Assets Hub,BNP PARIBAS REAL ESTATE,08/09/2020, 700.00 ,L,80131800,Real estate management services
"Ministry of Housing, Communities and Local Government",Homes England,RI - MONITORING SURVEYOR FEES,Economic Assets Hub,BNP PARIBAS REAL ESTATE,08/09/2020, 700.00 ,L,80131800,Real estate management services
"Ministry of Housing, Communities and Local Government",Homes England,RI - MONITORING SURVEYOR FEES,Economic Assets Hub,BNP PARIBAS REAL ESTATE,08/09/2020, 700.00 ,L,80131800,Real estate management services
"Ministry of Housing, Communities and Local Government",Homes England,RI - MONITORING SURVEYOR FEES,Economic Assets Hub,BNP PARIBAS REAL ESTATE,10/09/2020, 600.00 ,L,80131800,Real estate management services
"Ministry of Housing, Communities and Local Government",Homes England,Professional Fees Loans Capitalised,Economic Assets Hub,BNP PARIBAS REAL ESTATE,17/09/2020," 1,400.00 ",L,80131800,Real estate management services
"Ministry of Housing, Communities and Local Government",Homes England,OPEN MARKET VALUATION FEE,Programmes,BNP PARIBAS REAL ESTATE,23/09/2020," 4,475.00 ",L,80131800,Real estate management services
"Ministry of Housing, Communities and Local Government",Homes England,RI - MONITORING SURVEYOR FEES,Economic Assets Hub,BNP PARIBAS REAL ESTATE,23/09/2020, 500.00 ,L,80131800,Real estate management services
"Ministry of Housing, Communities and Local Government",Homes England,RI - MONITORING SURVEYOR FEES,Economic Assets Hub,BNP PARIBAS REAL ESTATE,23/09/2020, 650.00 ,L,80131800,Real estate management services
"Ministry of Housing, Communities and Local Government",Homes England,RI - MONITORING SURVEYOR FEES,Economic Assets Hub,BNP PARIBAS REAL ESTATE,23/09/2020, 850.00 ,L,80131800,Real estate management services
"Ministry of Housing, Communities and Local Government",Homes England,RI - MONITORING SURVEYOR FEES,Economic Assets Hub,BNP PARIBAS REAL ESTATE,28/09/2020, 650.00 ,L,80131800,Real estate management services
"Ministry of Housing, Communities and Local Government",Homes England,RI - MONITORING SURVEYOR FEES,Economic Assets Hub,BNP PARIBAS REAL ESTATE,28/09/2020, 850.00 ,L,80131800,Real estate management services
"Ministry of Housing, Communities and Local Government",Homes England,RI - MONITORING SURVEYOR FEES,Economic Assets Hub,BNP PARIBAS REAL ESTATE,28/09/2020, 850.00 ,L,80131800,Real estate management services
"Ministry of Housing, Communities and Local Government",Homes England,RI - MONITORING SURVEYOR FEES,Economic Assets Hub,BNP PARIBAS REAL ESTATE,29/09/2020, 850.00 ,L,80131800,Real estate management services
"Ministry of Housing, Communities and Local Government",Homes England,RI - MONITORING SURVEYOR FEES,Economic Assets Hub,BNP PARIBAS REAL ESTATE,29/09/2020, 850.00 ,L,80131800,Real estate management services
"Ministry of Housing, Communities and Local Government",Homes England,RI - MONITORING SURVEYOR FEES,Economic Assets Hub,BNP PARIBAS REAL ESTATE,30/09/2020, 700.00 ,L,80131800,Real estate management services
"Ministry of Housing, Communities and Local Government",Homes England,RI - MONITORING SURVEYOR FEES,Economic Assets Hub,BNP PARIBAS REAL ESTATE,30/09/2020, 700.00 ,L,80131800,Real estate management services
"Ministry of Housing, Communities and Local Government",Homes England,RI - MONITORING SURVEYOR FEES,Economic Assets Hub,BNP PARIBAS REAL ESTATE,30/09/2020, 700.00 ,L,80131800,Real estate management services
"Ministry of Housing, Communities and Local Government",Homes England,Professional Fees Loans Capitalised,Economic Assets Hub,BNP PARIBAS REAL ESTATE,30/09/2020," 1,950.00 ",L,80131800,Real estate management services
"Ministry of Housing, Communities and Local Government",Homes England,LEGAL FEES,Programmes,BOND DICKINSON LLP,08/09/2020," 14,000.00 ",L,80121600,Business law services
"Ministry of Housing, Communities and Local Government",Homes England,DISPOSAL FEES - LEGAL,South West,BOND DICKINSON LLP,14/09/2020," 9,000.00 ",L,80121600,Business law services
"Ministry of Housing, Communities and Local Government",Homes England,DISPOSAL FEES - LEGAL,South West,BOND DICKINSON LLP,14/09/2020," 7,000.00 ",L,80121600,Business law services
"Ministry of Housing, Communities and Local Government",Homes England,DISPOSAL FEES - LEGAL,South West,BOND DICKINSON LLP,14/09/2020," 11,974.80 ",L,80121600,Business law services
"Ministry of Housing, Communities and Local Government",Homes England,DISPOSAL FEES - LEGAL,South West,BOND DICKINSON LLP,14/09/2020," 2,048.00 ",L,80121600,Business law services
"Ministry of Housing, Communities and Local Government",Homes England,LEGAL FEES,Programmes,BOND DICKINSON LLP,23/09/2020," 36,000.00 ",L,80121600,Business law services
"Ministry of Housing, Communities and Local Government",Homes England,LEGAL FEES,Programmes,BOND DICKINSON LLP,28/09/2020, 695.00 ,L,80121600,Business law services
"Ministry of Housing, Communities and Local Government",Homes England,LEGAL FEES,Programmes,BOND DICKINSON LLP,28/09/2020," 4,350.00 ",L,80121600,Business law services
"Ministry of Housing, Communities and Local Government",Homes England,LANDSCAPE MAINT-BUILT ESTATE,North East And Yorkshire,G BURLEY & SONS LTD,03/09/2020, 281.41 ,S,72101500,Building maintenance and repair services
"Ministry of Housing, Communities and Local Government",Homes England,ESTATE GENERAL MAINTENANCE,Programmes,G BURLEY & SONS LTD,04/09/2020," 2,260.00 ",S,72101500,Building maintenance and repair services
"Ministry of Housing, Communities and Local Government",Homes England,LANDSCAPE MAINT-BUILT ESTATE,Programmes,G BURLEY & SONS LTD,23/09/2020, 254.71 ,S,72101500,Building maintenance and repair services
"Ministry of Housing, Communities and Local Government",Homes England,MANAGEMENT COSTS,South East,BERRYS,08/09/2020, 625.00 ,S,80131800,Real estate management services
"Ministry of Housing, Communities and Local Government",Homes England,MANAGEMENT COSTS,Programmes,BERRYS,28/09/2020, 720.00 ,S,80131800,Real estate management services
"Ministry of Housing, Communities and Local Government",Homes England,MANAGEMENT COSTS,Programmes,BERRYS,29/09/2020," 3,833.33 ",S,80131800,Real estate management services
"Ministry of Housing, Communities and Local Government",Homes England,OTHER PROFESSIONAL FEES,South West,CAMPBELL REITH,02/09/2020," 5,987.50 ",M,77101500,Environmental auditing
"Ministry of Housing, Communities and Local Government",Homes England,RI - MONITORING SURVEYOR FEES,Economic Assets Hub,CAMPBELL REITH,03/09/2020," 1,900.00 ",M,77101500,Environmental auditing
"Ministry of Housing, Communities and Local Government",Homes England,ENGINEERING FEES,Midlands,CAMPBELL REITH,10/09/2020," 5,910.00 ",M,77101500,Environmental auditing
"Ministry of Housing, Communities and Local Government",Homes England,RI - MONITORING SURVEYOR FEES,Economic Assets Hub,CAMPBELL REITH,11/09/2020," 1,085.00 ",M,77101500,Environmental auditing
"Ministry of Housing, Communities and Local Government",Homes England,MISC PROFESSIONAL FEES,Programmes,CAMPBELL REITH,14/09/2020," 10,566.33 ",M,77101500,Environmental auditing
"Ministry of Housing, Communities and Local Government",Homes England,MASTERPLANNING FEES,South West,CAMPBELL REITH,15/09/2020," 64,372.14 ",M,77101500,Environmental auditing
"Ministry of Housing, Communities and Local Government",Homes England,ENVIRONMENTAL IMPACT ASSESMENTS,North West,CAMPBELL REITH,16/09/2020, 801.48 ,M,77101500,Environmental auditing
"Ministry of Housing, Communities and Local Government",Homes England,PLANNING APPLICATIONS,North East And Yorkshire,CAMPBELL REITH,16/09/2020," 2,686.00 ",M,77101500,Environmental auditing
"Ministry of Housing, Communities and Local Government",Homes England,ENGINEERING CONSULTANTS,East And South East,CAMPBELL REITH,17/09/2020," 1,750.00 ",M,77101500,Environmental auditing
"Ministry of Housing, Communities and Local Government",Homes England,ENGINEERING CONSULTANTS,East And South East,CAMPBELL REITH,21/09/2020," 12,000.00 ",M,77101500,Environmental auditing
"Ministry of Housing, Communities and Local Government",Homes England,DISPOSAL FEES - PROPERTY AGENTS & ADVERTISING,South West,CARTER JONAS,01/09/2020, 440.00 ,L,80131800,Real estate management services
"Ministry of Housing, Communities and Local Government",Homes England,OPEN MARKET VALUATION FEE,Programmes,CARTER JONAS,02/09/2020," 2,500.00 ",L,80131800,Real estate management services
"Ministry of Housing, Communities and Local Government",Homes England,SECONDED STAFF COSTS,Programmes,CARTER JONAS,14/09/2020," 5,771.25 ",L,80131800,Real estate management services
"Ministry of Housing, Communities and Local Government",Homes England,PROPERTY SERVICES,South West,CARTER JONAS,17/09/2020," 1,575.00 ",L,80131800,Real estate management services
"Ministry of Housing, Communities and Local Government",Homes England,GAS,Finance & Corporate Services,CORONA ENERGY,14/09/2020, 264.66 ,L,83101600,Oil and gas utilities
"Ministry of Housing, Communities and Local Government",Homes England,GAS,Finance & Corporate Services,CORONA ENERGY,14/09/2020, 432.40 ,L,83101600,Oil and gas utilities
"Ministry of Housing, Communities and Local Government",Homes England,MISC PROFESSIONAL FEES,Programmes,LANDMARK ANALYTICS LTD,08/09/2020," 26,184.00 ",M,94101600,Professional associations
"Ministry of Housing, Communities and Local Government",Homes England,DATA CENTRE,Finance & Corporate Services,CROWN HOSTING DATA CENTRES LIMITED,02/09/2020," 1,550.00 ",L,81112100,Internet services
"Ministry of Housing, Communities and Local Government",Homes England,DATA CENTRE,Finance & Corporate Services,CROWN HOSTING DATA CENTRES LIMITED,02/09/2020," 2,249.43 ",L,81112100,Internet services
"Ministry of Housing, Communities and Local Government",Homes England,DATA CENTRE,Finance & Corporate Services,CROWN HOSTING DATA CENTRES LIMITED,02/09/2020," 1,012.24 ",L,81112100,Internet services
"Ministry of Housing, Communities and Local Government",Homes England,ESTATE GENERAL MAINTENANCE,East And South East,CABLE TRACING SERVICES LTD,09/09/2020, 582.50 ,S,72101500,Building maintenance and repair services
"Ministry of Housing, Communities and Local Government",Homes England,ST Fund Loans Additions,Economic Assets Hub,CLL (HOLLINS LANE) LTD,17/09/2020," 80,234.75 ",,,Loans
"Ministry of Housing, Communities and Local Government",Homes England,COURSES & CONFERENCES,Programmes,CAMBRIDGE FINANCE,23/09/2020, 995.00 ,S,80131800,Real estate management services
"Ministry of Housing, Communities and Local Government",Homes England,SECURITY,South West,COAST 2 COAST SECURITY LTD,18/09/2020," 8,928.00 ",M,92121500,Guard services
"Ministry of Housing, Communities and Local Government",Homes England,RENT PAYABLE,Programmes,COMBINED PROPERTY CONTROL,28/09/2020," 88,750.00 ",S,80131500,Lease and rental of property or building
"Ministry of Housing, Communities and Local Government",Homes England,RI - MONITORING SURVEYOR FEES,Economic Assets Hub,COLLIERS INTERNATIONAL PROPERTY CONSULTANTS,14/09/2020, 750.00 ,S,80131800,Real estate management services
"Ministry of Housing, Communities and Local Government",Homes England,RI - MONITORING SURVEYOR FEES,Economic Assets Hub,COLLIERS INTERNATIONAL PROPERTY CONSULTANTS,15/09/2020, 675.00 ,S,80131800,Real estate management services
"Ministry of Housing, Communities and Local Government",Homes England,RI - MONITORING SURVEYOR FEES,Economic Assets Hub,COLLIERS INTERNATIONAL PROPERTY CONSULTANTS,15/09/2020, 675.00 ,S,80131800,Real estate management services
"Ministry of Housing, Communities and Local Government",Homes England,RI - MONITORING SURVEYOR FEES,Economic Assets Hub,COLLIERS INTERNATIONAL PROPERTY CONSULTANTS,30/09/2020, 675.00 ,S,80131800,Real estate management services
"Ministry of Housing, Communities and Local Government",Homes England,RI - MONITORING SURVEYOR FEES,Economic Assets Hub,COLLIERS INTERNATIONAL PROPERTY CONSULTANTS,30/09/2020, 675.00 ,S,80131800,Real estate management services
"Ministry of Housing, Communities and Local Government",Homes England,LEGAL FEES,Economic Assets Hub,CLARKE WILLMOTT LLP,28/09/2020, 408.54 ,M,80121600,Business law services
"Ministry of Housing, Communities and Local Government",Homes England,DISPOSAL FEES - LEGAL,North West,CLARKE WILLMOTT LLP,30/09/2020," 5,808.91 ",M,80121600,Business law services
"Ministry of Housing, Communities and Local Government",Homes England,LEGAL FEES,Economic Assets Hub,CLARKE WILLMOTT LLP,30/09/2020, 400.00 ,M,80121600,Business law services
"Ministry of Housing, Communities and Local Government",Homes England,CLEANING,Finance & Corporate Services,CHURCHILL CLEANING SERVICES LTD,08/09/2020," 3,537.43 ",S,76111504,Window or window blind cleaning services
"Ministry of Housing, Communities and Local Government",Homes England,CLEANING,Finance & Corporate Services,CHURCHILL CLEANING SERVICES LTD,18/09/2020," 3,537.43 ",S,76111504,Window or window blind cleaning services
"Ministry of Housing, Communities and Local Government",Homes England,COURSES & CONFERENCES,North East And Yorkshire,CHARTERED INSTITUTE OF HOUSING,10/09/2020," 2,520.00 ",L,94101600,Professional associations
"Ministry of Housing, Communities and Local Government",Homes England,CAPITAL GRANTS TO LOCAL AUTHORITIES,Programmes,CENTRAL BEDFORDSHIRE COUNCIL,28/09/2020," 947,718.00 ",G,,Grants
"Ministry of Housing, Communities and Local Government",Homes England,CONTRACT WORKS,Programmes,CITY DEMOLITION CONTRACTORS (BIRMINGHAM) LTD,15/09/2020," 138,720.99 ",S,72141500,Land preparation services
"Ministry of Housing, Communities and Local Government",Homes England,ESTATE GENERAL MAINTENANCE,South West,C.M.A. (NEMESIS) LTD,22/09/2020, 308.00 ,S,72102100,Pest control
"Ministry of Housing, Communities and Local Government",Homes England,SECONDED STAFF COSTS,Finance & Corporate Services,CIVIL SERVICE RESOURCING,07/09/2020," 12,967.43 ",G,80141600,Sales and business promotion activities
"Ministry of Housing, Communities and Local Government",Homes England,LANDSCAPE MAINT-BUILT ESTATE,South West,COUNTRYWIDE GROUNDS MAINTENANCE LTD,16/09/2020, 273.33 ,L,72101500,Building maintenance and repair services
"Ministry of Housing, Communities and Local Government",Homes England,LANDSCAPE MAINT-BUILT ESTATE,South West,COUNTRYWIDE GROUNDS MAINTENANCE LTD,16/09/2020, 273.33 ,L,72101500,Building maintenance and repair services
"Ministry of Housing, Communities and Local Government",Homes England,CONTRACT WORKS,Programmes,K D CHILDS STONEWORK DEVELOPMENTS,16/09/2020," 4,000.00 ",S,72101500,Building maintenance and repair services
"Ministry of Housing, Communities and Local Government",Homes England,CONTRACT WORKS,Programmes,K D CHILDS STONEWORK DEVELOPMENTS,16/09/2020," 5,000.00 ",S,72101500,Building maintenance and repair services
"Ministry of Housing, Communities and Local Government",Homes England,CONTRIBUTIONS,Midlands,CWC GROUP,22/09/2020," 312,703.16 ",,,Grants
"Ministry of Housing, Communities and Local Government",Homes England,BUILDINGS-FIRE PREVENTION,East And South East,C-ELECT ASSOCIATES LIMITED,01/09/2020," 1,242.81 ",S,72101500,Building maintenance and repair services
"Ministry of Housing, Communities and Local Government",Homes England,PROPERTY MAINTENANCE,East And South East,C-ELECT ASSOCIATES LIMITED,14/09/2020," 3,105.00 ",S,72101500,Building maintenance and repair services
"Ministry of Housing, Communities and Local Government",Homes England,CONTRACT WORKS,South West,CHURNGOLD REMEDIATION LIMITED,17/09/2020," 50,750.81 ",S,72141500,Land preparation services
"Ministry of Housing, Communities and Local Government",Homes England,CAR ALLOWANCES,Programmes,CONCUR TRUST ACCOUNT,17/09/2020, 252.96 ,L,43231500,Business function specific software
"Ministry of Housing, Communities and Local Government",Homes England,RAIL TRAVEL,Executive Office,CONCUR TRUST ACCOUNT,17/09/2020, 254.30 ,L,43231500,Business function specific software
"Ministry of Housing, Communities and Local Government",Homes England,SUBSISTENCE-ACCOMODATION,Executive Office,CONCUR TRUST ACCOUNT,17/09/2020, 360.00 ,L,43231500,Business function specific software
"Ministry of Housing, Communities and Local Government",Homes England,ESTATE GENERAL MAINTENANCE,East And South East,CONTINENTAL LANDSCAPES - GREENHAND,01/09/2020," 3,165.22 ",L,72101500,Building maintenance and repair services
"Ministry of Housing, Communities and Local Government",Homes England,ESTATE GENERAL MAINTENANCE,Programmes,CONTINENTAL LANDSCAPES - GREENHAND,01/09/2020, 255.00 ,L,72101500,Building maintenance and repair services
"Ministry of Housing, Communities and Local Government",Homes England,ESTATE GENERAL MAINTENANCE,East And South East,CONTINENTAL LANDSCAPES - GREENHAND,14/09/2020," 3,165.22 ",L,72101500,Building maintenance and repair services
"Ministry of Housing, Communities and Local Government",Homes England,RI - MONITORING SURVEYOR FEES,Economic Assets Hub,CB RICHARD ELLIS,14/09/2020," 1,650.00 ",L,80131800,Real estate management services
"Ministry of Housing, Communities and Local Government",Homes England,RI - MONITORING SURVEYOR FEES,Economic Assets Hub,CB RICHARD ELLIS,14/09/2020," 1,650.00 ",L,80131800,Real estate management services
"Ministry of Housing, Communities and Local Government",Homes England,ST Fund Loans Additions,Economic Assets Hub,COLN AT THE KNOLL LTD,25/09/2020," 191,615.00 ",,,Loans
"Ministry of Housing, Communities and Local Government",Homes England,SERVICE RENTS & ESTATE CHARGES,Midlands,COLLIERS INTERNATIONAL,14/09/2020," 1,497.50 ",L,80131500,Lease and rental of property or building
"Ministry of Housing, Communities and Local Government",Homes England,LEGAL FEES,South West,CURTINS,02/09/2020," 4,577.50 ",L,81102200,Transport Engineering
"Ministry of Housing, Communities and Local Government",Homes England,LEGAL FEES,South West,CURTINS,14/09/2020," 13,492.50 ",L,81102200,Transport Engineering
"Ministry of Housing, Communities and Local Government",Homes England,CAR LEASING - OTHER COSTS,Programmes,CHIPSAWAY ANDREW HARE,11/09/2020, 325.00 ,S,78180100,Vehicle maintenance and repairs services
"Ministry of Housing, Communities and Local Government",Homes England,ST Fund Loans Additions,Economic Assets Hub,CHARDALE COUNTRY HOMES LIMITED,25/09/2020," 281,409.52 ",,,Loans
"Ministry of Housing, Communities and Local Government",Homes England,ESTATE GENERAL MAINTENANCE,East And South East,CHANNEL ENGINEERING LTD,08/09/2020, 775.00 ,S,72101500,Building maintenance and repair services
"Ministry of Housing, Communities and Local Government",Homes England,PROPERTY MAINTENANCE,East And South East,CHANNEL ENGINEERING LTD,09/09/2020, 450.00 ,S,72101500,Building maintenance and repair services
"Ministry of Housing, Communities and Local Government",Homes England,PROPERTY MAINTENANCE,East And South East,CHANNEL ENGINEERING LTD,09/09/2020, 450.00 ,S,72101500,Building maintenance and repair services
"Ministry of Housing, Communities and Local Government",Homes England,PROPERTY MAINTENANCE,East And South East,CHANNEL ENGINEERING LTD,09/09/2020, 450.00 ,S,72101500,Building maintenance and repair services
"Ministry of Housing, Communities and Local Government",Homes England,ESTATE GENERAL MAINTENANCE,East And South East,CHANNEL ENGINEERING LTD,29/09/2020, 450.00 ,S,72101500,Building maintenance and repair services
"Ministry of Housing, Communities and Local Government",Homes England,ESTATE GENERAL MAINTENANCE,Programmes,CHANNEL ENGINEERING LTD,30/09/2020, 450.00 ,S,72101500,Building maintenance and repair services
"Ministry of Housing, Communities and Local Government",Homes England,WATER,Finance & Corporate Services,CAMBRIDGE WATER COMPANY,30/09/2020, 960.94 ,L,83101500,Water and sewer utilities
"Ministry of Housing, Communities and Local Government",Homes England,ESTATE GENERAL MAINTENANCE,South West,CEDARDALE ARBORICULTURAL SPECIALISTS,08/09/2020," 4,635.00 ",S,72101500,Building maintenance and repair services
"Ministry of Housing, Communities and Local Government",Homes England,ESTATE GENERAL MAINTENANCE,Programmes,CARTWRIGHT LANDSCAPES,01/09/2020, 354.03 ,S,72101500,Building maintenance and repair services
"Ministry of Housing, Communities and Local Government",Homes England,ESTATE GENERAL MAINTENANCE,Programmes,CARTWRIGHT LANDSCAPES,01/09/2020, 992.00 ,S,72101500,Building maintenance and repair services
"Ministry of Housing, Communities and Local Government",Homes England,LANDSCAPE MAINT-BUILT ESTATE,East And South East,CARTWRIGHT LANDSCAPES,01/09/2020, 514.34 ,S,72101500,Building maintenance and repair services
"Ministry of Housing, Communities and Local Government",Homes England,ESTATE GENERAL MAINTENANCE,East And South East,CARTWRIGHT LANDSCAPES,01/09/2020, 303.69 ,S,72101500,Building maintenance and repair services
"Ministry of Housing, Communities and Local Government",Homes England,ESTATE GENERAL MAINTENANCE,Programmes,CARTWRIGHT LANDSCAPES,16/09/2020, 404.12 ,S,72101500,Building maintenance and repair services
"Ministry of Housing, Communities and Local Government",Homes England,ESTATE GENERAL MAINTENANCE,Programmes,CARTWRIGHT LANDSCAPES,16/09/2020, 404.13 ,S,72101500,Building maintenance and repair services
"Ministry of Housing, Communities and Local Government",Homes England,PLANNED PREVENTATIVE MAINTENANCE,Finance & Corporate Services,ENGIE FM LIMITED,23/09/2020, 629.48 ,L,72102900,Facility maintenance and repair services
"Ministry of Housing, Communities and Local Government",Homes England,PLANNED PREVENTATIVE MAINTENANCE,Finance & Corporate Services,ENGIE FM LIMITED,23/09/2020, 651.80 ,L,72102900,Facility maintenance and repair services
"Ministry of Housing, Communities and Local Government",Homes England,PLANNED PREVENTATIVE MAINTENANCE,Finance & Corporate Services,ENGIE FM LIMITED,23/09/2020, 501.00 ,L,72102900,Facility maintenance and repair services
"Ministry of Housing, Communities and Local Government",Homes England,PLANNED PREVENTATIVE MAINTENANCE,Finance & Corporate Services,ENGIE FM LIMITED,23/09/2020, 278.93 ,L,72102900,Facility maintenance and repair services
"Ministry of Housing, Communities and Local Government",Homes England,PLANNED PREVENTATIVE MAINTENANCE,Finance & Corporate Services,ENGIE FM LIMITED,23/09/2020, 534.81 ,L,72102900,Facility maintenance and repair services
"Ministry of Housing, Communities and Local Government",Homes England,PLANNED PREVENTATIVE MAINTENANCE,Finance & Corporate Services,ENGIE FM LIMITED,23/09/2020, 377.46 ,L,72102900,Facility maintenance and repair services
"Ministry of Housing, Communities and Local Government",Homes England,PLANNED PREVENTATIVE MAINTENANCE,Finance & Corporate Services,ENGIE FM LIMITED,23/09/2020," 1,736.50 ",L,72102900,Facility maintenance and repair services
"Ministry of Housing, Communities and Local Government",Homes England,PLANNED PREVENTATIVE MAINTENANCE,Finance & Corporate Services,ENGIE FM LIMITED,28/09/2020, 409.20 ,L,72102900,Facility maintenance and repair services
"Ministry of Housing, Communities and Local Government",Homes England,PLANNED PREVENTATIVE MAINTENANCE,Finance & Corporate Services,ENGIE FM LIMITED,28/09/2020," 2,252.20 ",L,72102900,Facility maintenance and repair services
"Ministry of Housing, Communities and Local Government",Homes England,ENGINEERING FEES,Programmes,VODAFONE LIMITED,29/09/2020," 4,000.00 ",L,81112000,Data services
"Ministry of Housing, Communities and Local Government",Homes England,Homebuy Agents Fees,Programmes,MILLS & REEVE,03/09/2020," 10,000.00 ",S,80121600,Business law services
"Ministry of Housing, Communities and Local Government",Homes England,HEALTH & SAFETY SURVEYS,South West,WYG ENVIRONMENT PLANNING TRANSPORT LTD,28/09/2020, 570.00 ,L,81101500,Civil Engineering
"Ministry of Housing, Communities and Local Government",Homes England,PROPERTY SERVICES,South West,WYG ENVIRONMENT PLANNING TRANSPORT LTD,28/09/2020," 1,400.00 ",L,81101500,Civil Engineering
"Ministry of Housing, Communities and Local Government",Homes England,LEGAL FEES,North East And Yorkshire,DERBYSHIRE COUNTY COUNCIL,14/09/2020, 750.00 ,G,80121600,Business law services
"Ministry of Housing, Communities and Local Government",Homes England,MISC PROFESSIONAL FEES,Programmes,DRIVERS JONAS DELOITTE,18/09/2020," 65,625.00 ",L,80131800,Real estate management services
"Ministry of Housing, Communities and Local Government",Homes England,MISC PROFESSIONAL FEES (ADMIN ONLY),Executive Office,DRIVERS JONAS DELOITTE,22/09/2020," 113,951.88 ",L,80131800,Real estate management services
"Ministry of Housing, Communities and Local Government",Homes England,PROPERTY SERVICES,Programmes,DRIVERS JONAS DELOITTE,30/09/2020," 2,437.50 ",L,80131800,Real estate management services
"Ministry of Housing, Communities and Local Government",Homes England,MISC PROFESSIONAL FEES (ADMIN ONLY),North East And Yorkshire,DELOITTE & TOUCHE,16/09/2020," 100,373.00 ",L,84111700,Corporate Finance
"Ministry of Housing, Communities and Local Government",Homes England,STAFF RECRUITMENT COSTS,Finance & Corporate Services,VERCIDA LIMITED,30/09/2020," 4,750.00 ",S,94101500,Business associations
"Ministry of Housing, Communities and Local Government",Homes England,RI - MONITORING SURVEYOR FEES,Economic Assets Hub,CUSHMAN & WAKEFIELD DEBENHAM TIE LEUNG,01/09/2020, 800.00 ,L,80131800,Real estate management services
"Ministry of Housing, Communities and Local Government",Homes England,RI - MONITORING SURVEYOR FEES,Economic Assets Hub,CUSHMAN & WAKEFIELD DEBENHAM TIE LEUNG,02/09/2020, 750.00 ,L,80131800,Real estate management services
"Ministry of Housing, Communities and Local Government",Homes England,RI - MONITORING SURVEYOR FEES,Economic Assets Hub,CUSHMAN & WAKEFIELD DEBENHAM TIE LEUNG,02/09/2020, 700.00 ,L,80131800,Real estate management services
"Ministry of Housing, Communities and Local Government",Homes England,RI - MONITORING SURVEYOR FEES,Economic Assets Hub,CUSHMAN & WAKEFIELD DEBENHAM TIE LEUNG,02/09/2020, 700.00 ,L,80131800,Real estate management services
"Ministry of Housing, Communities and Local Government",Homes England,RI - MONITORING SURVEYOR FEES,Economic Assets Hub,CUSHMAN & WAKEFIELD DEBENHAM TIE LEUNG,02/09/2020, 700.00 ,L,80131800,Real estate management services
"Ministry of Housing, Communities and Local Government",Homes England,RI - MONITORING SURVEYOR FEES,Economic Assets Hub,CUSHMAN & WAKEFIELD DEBENHAM TIE LEUNG,02/09/2020, 700.00 ,L,80131800,Real estate management services
"Ministry of Housing, Communities and Local Government",Homes England,RI - MONITORING SURVEYOR FEES,Economic Assets Hub,CUSHMAN & WAKEFIELD DEBENHAM TIE LEUNG,03/09/2020, 700.00 ,L,80131800,Real estate management services
"Ministry of Housing, Communities and Local Government",Homes England,RI - MONITORING SURVEYOR FEES,Economic Assets Hub,CUSHMAN & WAKEFIELD DEBENHAM TIE LEUNG,03/09/2020, 890.00 ,L,80131800,Real estate management services
"Ministry of Housing, Communities and Local Government",Homes England,RI - MONITORING SURVEYOR FEES,Economic Assets Hub,CUSHMAN & WAKEFIELD DEBENHAM TIE LEUNG,03/09/2020, 650.00 ,L,80131800,Real estate management services
"Ministry of Housing, Communities and Local Government",Homes England,RI - MONITORING SURVEYOR FEES,Economic Assets Hub,CUSHMAN & WAKEFIELD DEBENHAM TIE LEUNG,03/09/2020, 700.00 ,L,80131800,Real estate management services
"Ministry of Housing, Communities and Local Government",Homes England,RI - MONITORING SURVEYOR FEES,Economic Assets Hub,CUSHMAN & WAKEFIELD DEBENHAM TIE LEUNG,04/09/2020, 800.00 ,L,80131800,Real estate management services
"Ministry of Housing, Communities and Local Government",Homes England,RI - MONITORING SURVEYOR FEES,Programmes,CUSHMAN & WAKEFIELD DEBENHAM TIE LEUNG,04/09/2020, 750.00 ,L,80131800,Real estate management services
"Ministry of Housing, Communities and Local Government",Homes England,RI - MONITORING SURVEYOR FEES,Programmes,CUSHMAN & WAKEFIELD DEBENHAM TIE LEUNG,04/09/2020, 750.00 ,L,80131800,Real estate management services
"Ministry of Housing, Communities and Local Government",Homes England,RI - MONITORING SURVEYOR FEES,Programmes,CUSHMAN & WAKEFIELD DEBENHAM TIE LEUNG,04/09/2020, 700.00 ,L,80131800,Real estate management services
"Ministry of Housing, Communities and Local Government",Homes England,RI - MONITORING SURVEYOR FEES,Economic Assets Hub,CUSHMAN & WAKEFIELD DEBENHAM TIE LEUNG,04/09/2020, 700.00 ,L,80131800,Real estate management services
"Ministry of Housing, Communities and Local Government",Homes England,RI - MONITORING SURVEYOR FEES,Economic Assets Hub,CUSHMAN & WAKEFIELD DEBENHAM TIE LEUNG,04/09/2020, 800.00 ,L,80131800,Real estate management services
"Ministry of Housing, Communities and Local Government",Homes England,RI - MONITORING SURVEYOR FEES,Economic Assets Hub,CUSHMAN & WAKEFIELD DEBENHAM TIE LEUNG,04/09/2020, 750.00 ,L,80131800,Real estate management services
"Ministry of Housing, Communities and Local Government",Homes England,RI - MONITORING SURVEYOR FEES,Economic Assets Hub,CUSHMAN & WAKEFIELD DEBENHAM TIE LEUNG,04/09/2020, 700.00 ,L,80131800,Real estate management services
"Ministry of Housing, Communities and Local Government",Homes England,PROPERTY SERVICES,South West,CUSHMAN & WAKEFIELD DEBENHAM TIE LEUNG,07/09/2020, 250.00 ,L,80131800,Real estate management services
"Ministry of Housing, Communities and Local Government",Homes England,PROPERTY SERVICES,East And South East,CUSHMAN & WAKEFIELD DEBENHAM TIE LEUNG,07/09/2020, 250.00 ,L,80131800,Real estate management services
"Ministry of Housing, Communities and Local Government",Homes England,PROPERTY SERVICES,Programmes,CUSHMAN & WAKEFIELD DEBENHAM TIE LEUNG,07/09/2020, 250.00 ,L,80131800,Real estate management services
"Ministry of Housing, Communities and Local Government",Homes England,PROPERTY SERVICES,South West,CUSHMAN & WAKEFIELD DEBENHAM TIE LEUNG,07/09/2020, 250.00 ,L,80131800,Real estate management services
"Ministry of Housing, Communities and Local Government",Homes England,PROPERTY SERVICES,Programmes,CUSHMAN & WAKEFIELD DEBENHAM TIE LEUNG,07/09/2020, 250.00 ,L,80131800,Real estate management services
"Ministry of Housing, Communities and Local Government",Homes England,PROPERTY SERVICES,South West,CUSHMAN & WAKEFIELD DEBENHAM TIE LEUNG,07/09/2020, 250.00 ,L,80131800,Real estate management services
"Ministry of Housing, Communities and Local Government",Homes England,MISC PROFESSIONAL FEES (ADMIN ONLY),Programmes,CUSHMAN & WAKEFIELD DEBENHAM TIE LEUNG,08/09/2020," 7,910.00 ",L,80131800,Real estate management services
"Ministry of Housing, Communities and Local Government",Homes England,MISC PROFESSIONAL FEES,Programmes,CUSHMAN & WAKEFIELD DEBENHAM TIE LEUNG,08/09/2020," 22,086.00 ",L,80131800,Real estate management services
"Ministry of Housing, Communities and Local Government",Homes England,RI - MONITORING SURVEYOR FEES,Economic Assets Hub,CUSHMAN & WAKEFIELD DEBENHAM TIE LEUNG,09/09/2020, 800.00 ,L,80131800,Real estate management services
"Ministry of Housing, Communities and Local Government",Homes England,LEGAL FEES,North West,CUSHMAN & WAKEFIELD DEBENHAM TIE LEUNG,10/09/2020, 750.00 ,L,80131800,Real estate management services
"Ministry of Housing, Communities and Local Government",Homes England,RI - MONITORING SURVEYOR FEES,Economic Assets Hub,CUSHMAN & WAKEFIELD DEBENHAM TIE LEUNG,10/09/2020, 800.00 ,L,80131800,Real estate management services
"Ministry of Housing, Communities and Local Government",Homes England,RI - MONITORING SURVEYOR FEES,Economic Assets Hub,CUSHMAN & WAKEFIELD DEBENHAM TIE LEUNG,14/09/2020," 2,100.00 ",L,80131800,Real estate management services
"Ministry of Housing, Communities and Local Government",Homes England,RI - MONITORING SURVEYOR FEES,Economic Assets Hub,CUSHMAN & WAKEFIELD DEBENHAM TIE LEUNG,14/09/2020, 700.00 ,L,80131800,Real estate management services
"Ministry of Housing, Communities and Local Government",Homes England,PROPERTY SERVICES,South West,CUSHMAN & WAKEFIELD DEBENHAM TIE LEUNG,14/09/2020," 2,581.80 ",L,80131800,Real estate management services
"Ministry of Housing, Communities and Local Government",Homes England,RI - MONITORING SURVEYOR FEES,Economic Assets Hub,CUSHMAN & WAKEFIELD DEBENHAM TIE LEUNG,15/09/2020, 700.00 ,L,80131800,Real estate management services
"Ministry of Housing, Communities and Local Government",Homes England,RI - MONITORING SURVEYOR FEES,Economic Assets Hub,CUSHMAN & WAKEFIELD DEBENHAM TIE LEUNG,21/09/2020, 700.00 ,L,80131800,Real estate management services
"Ministry of Housing, Communities and Local Government",Homes England,PLANNING APPLICATIONS,Midlands,CUSHMAN & WAKEFIELD DEBENHAM TIE LEUNG,22/09/2020," 4,000.00 ",L,80131800,Real estate management services
"Ministry of Housing, Communities and Local Government",Homes England,PROPERTY SERVICES,South West,CUSHMAN & WAKEFIELD DEBENHAM TIE LEUNG,23/09/2020," 4,000.00 ",L,80131800,Real estate management services
"Ministry of Housing, Communities and Local Government",Homes England,MISC PROFESSIONAL FEES,East And South East,CUSHMAN & WAKEFIELD DEBENHAM TIE LEUNG,28/09/2020," 1,925.00 ",L,80131800,Real estate management services
"Ministry of Housing, Communities and Local Government",Homes England,MASTERPLANNING FEES,Midlands,CUSHMAN & WAKEFIELD DEBENHAM TIE LEUNG,28/09/2020," 11,110.00 ",L,80131800,Real estate management services
"Ministry of Housing, Communities and Local Government",Homes England,MASTERPLANNING FEES,Midlands,CUSHMAN & WAKEFIELD DEBENHAM TIE LEUNG,28/09/2020," 11,500.00 ",L,80131800,Real estate management services
"Ministry of Housing, Communities and Local Government",Homes England,PROPERTY SERVICES,South West,CUSHMAN & WAKEFIELD DEBENHAM TIE LEUNG,28/09/2020," 1,799.00 ",L,80131800,Real estate management services
"Ministry of Housing, Communities and Local Government",Homes England,PROPERTY SERVICES,East And South East,CUSHMAN & WAKEFIELD DEBENHAM TIE LEUNG,28/09/2020," 1,233.60 ",L,80131800,Real estate management services
"Ministry of Housing, Communities and Local Government",Homes England,PROPERTY SERVICES,East And South East,CUSHMAN & WAKEFIELD DEBENHAM TIE LEUNG,28/09/2020," 1,542.00 ",L,80131800,Real estate management services
"Ministry of Housing, Communities and Local Government",Homes England,PROPERTY SERVICES,South West,CUSHMAN & WAKEFIELD DEBENHAM TIE LEUNG,28/09/2020, 642.50 ,L,80131800,Real estate management services
"Ministry of Housing, Communities and Local Government",Homes England,PROPERTY SERVICES,South West,CUSHMAN & WAKEFIELD DEBENHAM TIE LEUNG,28/09/2020," 4,328.85 ",L,80131800,Real estate management services
"Ministry of Housing, Communities and Local Government",Homes England,PROPERTY SERVICES,South West,CUSHMAN & WAKEFIELD DEBENHAM TIE LEUNG,28/09/2020, 771.00 ,L,80131800,Real estate management services
"Ministry of Housing, Communities and Local Government",Homes England,PROPERTY SERVICES,North East And Yorkshire,CUSHMAN & WAKEFIELD DEBENHAM TIE LEUNG,28/09/2020," 1,687.50 ",L,80131800,Real estate management services
"Ministry of Housing, Communities and Local Government",Homes England,PROPERTY SERVICES,North West,CUSHMAN & WAKEFIELD DEBENHAM TIE LEUNG,28/09/2020, 562.50 ,L,80131800,Real estate management services
"Ministry of Housing, Communities and Local Government",Homes England,PROPERTY SERVICES,East And South East,CUSHMAN & WAKEFIELD DEBENHAM TIE LEUNG,28/09/2020," 1,285.00 ",L,80131800,Real estate management services
"Ministry of Housing, Communities and Local Government",Homes England,PROPERTY SERVICES,North East And Yorkshire,CUSHMAN & WAKEFIELD DEBENHAM TIE LEUNG,28/09/2020," 1,927.50 ",L,80131800,Real estate management services
"Ministry of Housing, Communities and Local Government",Homes England,PROPERTY SERVICES,South West,CUSHMAN & WAKEFIELD DEBENHAM TIE LEUNG,28/09/2020," 2,300.15 ",L,80131800,Real estate management services
"Ministry of Housing, Communities and Local Government",Homes England,PROPERTY SERVICES,East And South East,CUSHMAN & WAKEFIELD DEBENHAM TIE LEUNG,28/09/2020," 2,375.00 ",L,80131800,Real estate management services
"Ministry of Housing, Communities and Local Government",Homes England,PROPERTY SERVICES,Programmes,CUSHMAN & WAKEFIELD DEBENHAM TIE LEUNG,28/09/2020," 2,875.00 ",L,80131800,Real estate management services
"Ministry of Housing, Communities and Local Government",Homes England,PROPERTY SERVICES,South West,CUSHMAN & WAKEFIELD DEBENHAM TIE LEUNG,28/09/2020," 1,028.00 ",L,80131800,Real estate management services
"Ministry of Housing, Communities and Local Government",Homes England,PROPERTY SERVICES,Programmes,CUSHMAN & WAKEFIELD DEBENHAM TIE LEUNG,28/09/2020," 1,973.76 ",L,80131800,Real estate management services
"Ministry of Housing, Communities and Local Government",Homes England,PROPERTY SERVICES,South West,CUSHMAN & WAKEFIELD DEBENHAM TIE LEUNG,28/09/2020, 706.75 ,L,80131800,Real estate management services
"Ministry of Housing, Communities and Local Government",Homes England,PROPERTY SERVICES,South West,CUSHMAN & WAKEFIELD DEBENHAM TIE LEUNG,28/09/2020, 822.40 ,L,80131800,Real estate management services
"Ministry of Housing, Communities and Local Government",Homes England,PROPERTY SERVICES,Programmes,CUSHMAN & WAKEFIELD DEBENHAM TIE LEUNG,28/09/2020, 860.95 ,L,80131800,Real estate management services
"Ministry of Housing, Communities and Local Government",Homes England,PROPERTY SERVICES,South West,CUSHMAN & WAKEFIELD DEBENHAM TIE LEUNG,28/09/2020," 1,991.75 ",L,80131800,Real estate management services
"Ministry of Housing, Communities and Local Government",Homes England,PROPERTY SERVICES,East And South East,CUSHMAN & WAKEFIELD DEBENHAM TIE LEUNG,28/09/2020," 1,028.00 ",L,80131800,Real estate management services
"Ministry of Housing, Communities and Local Government",Homes England,PROPERTY SERVICES,South West,CUSHMAN & WAKEFIELD DEBENHAM TIE LEUNG,28/09/2020, 706.75 ,L,80131800,Real estate management services
"Ministry of Housing, Communities and Local Government",Homes England,Professional Fees Loans Capitalised,Economic Assets Hub,CUSHMAN & WAKEFIELD DEBENHAM TIE LEUNG,28/09/2020, 750.00 ,L,80131800,Real estate management services
"Ministry of Housing, Communities and Local Government",Homes England,RI - MONITORING SURVEYOR FEES,Economic Assets Hub,CUSHMAN & WAKEFIELD DEBENHAM TIE LEUNG,28/09/2020," 2,500.00 ",L,80131800,Real estate management services
"Ministry of Housing, Communities and Local Government",Homes England,DISPOSAL FEES - PROPERTY AGENTS & ADVERTISING,North West,CUSHMAN & WAKEFIELD DEBENHAM TIE LEUNG,28/09/2020, 550.00 ,L,80131800,Real estate management services
"Ministry of Housing, Communities and Local Government",Homes England,PROPERTY SERVICES,East And South East,CUSHMAN & WAKEFIELD DEBENHAM TIE LEUNG,29/09/2020," 2,175.00 ",L,80131800,Real estate management services
"Ministry of Housing, Communities and Local Government",Homes England,RI - MONITORING SURVEYOR FEES,Programmes,CUSHMAN & WAKEFIELD DEBENHAM TIE LEUNG,30/09/2020, 750.00 ,L,80131800,Real estate management services
"Ministry of Housing, Communities and Local Government",Homes England,RI - MONITORING SURVEYOR FEES,Economic Assets Hub,CUSHMAN & WAKEFIELD DEBENHAM TIE LEUNG,30/09/2020, 700.00 ,L,80131800,Real estate management services
"Ministry of Housing, Communities and Local Government",Homes England,MANAGEMENT COSTS,Midlands,CUSHMAN & WAKEFIELD DEBENHAM TIE LEUNG,30/09/2020," 1,065.01 ",L,80131800,Real estate management services
"Ministry of Housing, Communities and Local Government",Homes England,PROPERTY SERVICES,Programmes,CUSHMAN & WAKEFIELD DEBENHAM TIE LEUNG,30/09/2020," 1,156.50 ",L,80131800,Real estate management services
"Ministry of Housing, Communities and Local Government",Homes England,LANDSCAPE ARCHITECT FEES,East And South East,CUSHMAN & WAKEFIELD DEBENHAM TIE LEUNG,30/09/2020," 1,413.50 ",L,80131800,Real estate management services
"Ministry of Housing, Communities and Local Government",Homes England,LANDSCAPING & PLANTS,Finance & Corporate Services,DEEDMAN TROPICAL PLANT HIRE COMPANY,01/09/2020, 265.00 ,S,72102900,Facility maintenance and repair services
"Ministry of Housing, Communities and Local Government",Homes England,LANDSCAPING & PLANTS,Finance & Corporate Services,DEEDMAN TROPICAL PLANT HIRE COMPANY,01/09/2020, 273.00 ,S,72102900,Facility maintenance and repair services
"Ministry of Housing, Communities and Local Government",Homes England,LANDSCAPING & PLANTS,Finance & Corporate Services,DEEDMAN TROPICAL PLANT HIRE COMPANY,29/09/2020, 273.00 ,S,72102900,Facility maintenance and repair services
"Ministry of Housing, Communities and Local Government",Homes England,LANDSCAPING & PLANTS,Finance & Corporate Services,DEEDMAN TROPICAL PLANT HIRE COMPANY,29/09/2020, 265.00 ,S,72102900,Facility maintenance and repair services
"Ministry of Housing, Communities and Local Government",Homes England,BRANDING & REPORTS,Executive Office,DARWIN PRESS,01/09/2020," 4,550.00 ",S,80141600,Sales and business promotion activities
"Ministry of Housing, Communities and Local Government",Homes England,PROMOTIONAL EVENTS,Executive Office,DARWIN PRESS,07/09/2020," 2,859.00 ",S,80141600,Sales and business promotion activities
"Ministry of Housing, Communities and Local Government",Homes England,PROMOTIONAL EVENTS,Executive Office,DARWIN PRESS,22/09/2020, 497.00 ,S,80141600,Sales and business promotion activities
"Ministry of Housing, Communities and Local Government",Homes England,COURSES & CONFERENCES,Programmes,DESIGNLAB LEARNING INC,18/09/2020, 315.34 ,M,86101800,In service training and manpower development
"Ministry of Housing, Communities and Local Government",Homes England,COURSES & CONFERENCES,Programmes,DNA COACH,22/09/2020," 1,158.00 ",S,86101800,In service training and manpower development
"Ministry of Housing, Communities and Local Government",Homes England,ST Fund Loans Additions,Economic Assets Hub,DEVELOPMENTS BY BOUTIQUE (HEYSHAM GREEN) LTD,22/09/2020," 71,641.00 ",,,Loans
"Ministry of Housing, Communities and Local Government",Homes England,LEGAL FEES,North East And Yorkshire,DWF LLP,03/09/2020," 1,360.50 ",L,80121600,Business law services
"Ministry of Housing, Communities and Local Government",Homes England,LEGAL FEES,Programmes,DWF LLP,03/09/2020," 1,450.00 ",L,80121600,Business law services
"Ministry of Housing, Communities and Local Government",Homes England,DISPOSAL FEES - LEGAL,Programmes,DWF LLP,03/09/2020," 1,991.00 ",L,80121600,Business law services
"Ministry of Housing, Communities and Local Government",Homes England,LEGAL FEES,North East And Yorkshire,DWF LLP,03/09/2020," 2,000.00 ",L,80121600,Business law services
"Ministry of Housing, Communities and Local Government",Homes England,LEGAL FEES,Midlands,DWF LLP,03/09/2020," 1,434.10 ",L,80121600,Business law services
"Ministry of Housing, Communities and Local Government",Homes England,LEGAL FEES,Programmes,DWF LLP,03/09/2020," 1,500.00 ",L,80121600,Business law services
"Ministry of Housing, Communities and Local Government",Homes England,LEGAL FEES,East And South East,DWF LLP,04/09/2020," 5,021.46 ",L,80121600,Business law services
"Ministry of Housing, Communities and Local Government",Homes England,DISPOSAL FEES - LEGAL,Midlands,DWF LLP,08/09/2020, 950.00 ,L,80121600,Business law services
"Ministry of Housing, Communities and Local Government",Homes England,LEGAL FEES,Midlands,DWF LLP,08/09/2020, 500.00 ,L,80121600,Business law services
"Ministry of Housing, Communities and Local Government",Homes England,DISPOSAL FEES - LEGAL,Midlands,DWF LLP,08/09/2020, 549.00 ,L,80121600,Business law services
"Ministry of Housing, Communities and Local Government",Homes England,LEGAL FEES,Midlands,DWF LLP,11/09/2020," 1,757.50 ",L,80121600,Business law services
"Ministry of Housing, Communities and Local Government",Homes England,DISPOSAL FEES - LEGAL,Midlands,DWF LLP,11/09/2020," 2,534.92 ",L,80121600,Business law services
"Ministry of Housing, Communities and Local Government",Homes England,LEGAL FEES,Programmes,DWF LLP,14/09/2020, 503.00 ,L,80121600,Business law services
"Ministry of Housing, Communities and Local Government",Homes England,LEGAL FEES,Programmes,DWF LLP,14/09/2020," 1,226.10 ",L,80121600,Business law services
"Ministry of Housing, Communities and Local Government",Homes England,LEGAL FEES,North East And Yorkshire,DWF LLP,14/09/2020, 821.50 ,L,80121600,Business law services
"Ministry of Housing, Communities and Local Government",Homes England,LEGAL FEES,North East And Yorkshire,DWF LLP,14/09/2020, 842.50 ,L,80121600,Business law services
"Ministry of Housing, Communities and Local Government",Homes England,LEGAL FEES,South West,DWF LLP,14/09/2020, 775.00 ,L,80121600,Business law services
"Ministry of Housing, Communities and Local Government",Homes England,LEGAL FEES,North East And Yorkshire,DWF LLP,14/09/2020," 1,147.00 ",L,80121600,Business law services
"Ministry of Housing, Communities and Local Government",Homes England,DISPOSAL FEES - LEGAL,Programmes,DWF LLP,14/09/2020," 1,306.00 ",L,80121600,Business law services
"Ministry of Housing, Communities and Local Government",Homes England,LEGAL FEES,Programmes,DWF LLP,14/09/2020, 681.50 ,L,80121600,Business law services
"Ministry of Housing, Communities and Local Government",Homes England,LEGAL FEES,Programmes,DWF LLP,14/09/2020," 1,003.00 ",L,80121600,Business law services
"Ministry of Housing, Communities and Local Government",Homes England,DISPOSAL FEES - LEGAL,Programmes,DWF LLP,14/09/2020, 748.50 ,L,80121600,Business law services
"Ministry of Housing, Communities and Local Government",Homes England,DISPOSAL FEES - LEGAL,North West,DWF LLP,14/09/2020," 3,500.00 ",L,80121600,Business law services
"Ministry of Housing, Communities and Local Government",Homes England,LEGAL FEES,North East And Yorkshire,DWF LLP,14/09/2020, 938.50 ,L,80121600,Business law services
"Ministry of Housing, Communities and Local Government",Homes England,LEGAL FEES,Programmes,DWF LLP,14/09/2020, 425.00 ,L,80121600,Business law services
"Ministry of Housing, Communities and Local Government",Homes England,LEGAL FEES,Programmes,DWF LLP,14/09/2020, 914.00 ,L,80121600,Business law services
"Ministry of Housing, Communities and Local Government",Homes England,LEGAL FEES,Midlands,DWF LLP,14/09/2020," 2,112.60 ",L,80121600,Business law services
"Ministry of Housing, Communities and Local Government",Homes England,LEGAL FEES,North East And Yorkshire,DWF LLP,14/09/2020," 1,500.00 ",L,80121600,Business law services
"Ministry of Housing, Communities and Local Government",Homes England,LEGAL FEES,Midlands,DWF LLP,15/09/2020, 295.00 ,L,80121600,Business law services
"Ministry of Housing, Communities and Local Government",Homes England,LEGAL FEES,Programmes,DWF LLP,15/09/2020," 2,615.00 ",L,80121600,Business law services
"Ministry of Housing, Communities and Local Government",Homes England,LEGAL FEES,Midlands,DWF LLP,15/09/2020," 1,923.18 ",L,80121600,Business law services
"Ministry of Housing, Communities and Local Government",Homes England,LEGAL FEES,Programmes,DWF LLP,15/09/2020," 1,800.00 ",L,80121600,Business law services
"Ministry of Housing, Communities and Local Government",Homes England,LEGAL FEES,Programmes,DWF LLP,15/09/2020," 2,044.36 ",L,80121600,Business law services
"Ministry of Housing, Communities and Local Government",Homes England,DISPOSAL FEES - LEGAL,North West,DWF LLP,16/09/2020," 2,500.00 ",L,80121600,Business law services
"Ministry of Housing, Communities and Local Government",Homes England,LEGAL FEES,North East And Yorkshire,DWF LLP,16/09/2020," 1,400.00 ",L,80121600,Business law services
"Ministry of Housing, Communities and Local Government",Homes England,LEGAL FEES,North East And Yorkshire,DWF LLP,16/09/2020, 263.70 ,L,80121600,Business law services
"Ministry of Housing, Communities and Local Government",Homes England,LEGAL FEES,Programmes,DWF LLP,17/09/2020, 570.50 ,L,80121600,Business law services
"Ministry of Housing, Communities and Local Government",Homes England,LEGAL FEES,Programmes,DWF LLP,17/09/2020, 265.00 ,L,80121600,Business law services
"Ministry of Housing, Communities and Local Government",Homes England,LEGAL FEES,Programmes,DWF LLP,17/09/2020, 606.00 ,L,80121600,Business law services
"Ministry of Housing, Communities and Local Government",Homes England,DISPOSAL FEES - LEGAL,Midlands,DWF LLP,17/09/2020," 2,495.00 ",L,80121600,Business law services
"Ministry of Housing, Communities and Local Government",Homes England,LEGAL FEES,Midlands,DWF LLP,23/09/2020, 474.46 ,L,80121600,Business law services
"Ministry of Housing, Communities and Local Government",Homes England,DISPOSAL FEES - LEGAL,North East And Yorkshire,DWF LLP,25/09/2020," 1,162.50 ",L,80121600,Business law services
"Ministry of Housing, Communities and Local Government",Homes England,LEGAL FEES,North East And Yorkshire,DWF LLP,25/09/2020, 850.00 ,L,80121600,Business law services
"Ministry of Housing, Communities and Local Government",Homes England,LEGAL FEES,North East And Yorkshire,DWF LLP,25/09/2020, 850.00 ,L,80121600,Business law services
"Ministry of Housing, Communities and Local Government",Homes England,LEGAL FEES,North East And Yorkshire,DWF LLP,25/09/2020, 873.00 ,L,80121600,Business law services
"Ministry of Housing, Communities and Local Government",Homes England,LEGAL FEES,North East And Yorkshire,DWF LLP,25/09/2020, 250.00 ,L,80121600,Business law services
"Ministry of Housing, Communities and Local Government",Homes England,LEGAL FEES,North East And Yorkshire,DWF LLP,25/09/2020, 300.00 ,L,80121600,Business law services
"Ministry of Housing, Communities and Local Government",Homes England,LEGAL FEES,North East And Yorkshire,DWF LLP,25/09/2020," 2,850.00 ",L,80121600,Business law services
"Ministry of Housing, Communities and Local Government",Homes England,LEGAL FEES,North East And Yorkshire,DWF LLP,25/09/2020, 353.00 ,L,80121600,Business law services
"Ministry of Housing, Communities and Local Government",Homes England,LEGAL FEES,North East And Yorkshire,DWF LLP,29/09/2020, 400.00 ,L,80121600,Business law services
"Ministry of Housing, Communities and Local Government",Homes England,TAXIS,Finance & Corporate Services,DEAN TAXI LIMITED,10/09/2020, 349.20 ,S,78111800,Passenger road transportation
"Ministry of Housing, Communities and Local Government",Homes England,ESTATE GENERAL MAINTENANCE,Programmes,THE WATT GROUP (NORTH EAST) LTD,21/09/2020, 920.00 ,S,72101500,Building maintenance and repair services
"Ministry of Housing, Communities and Local Government",Homes England,COURSES & CONFERENCES,Finance & Corporate Services,DO-IT SOLUTIONS LIMITED,01/09/2020, 700.00 ,S,86101800,In service training and manpower development
"Ministry of Housing, Communities and Local Government",Homes England,BUILDINGS-VACANT RATES,Programmes,DURHAM COUNTY COUNCIL,16/09/2020," 1,170.30 ",G,72101500,Building maintenance and repair services
"Ministry of Housing, Communities and Local Government",Homes England,BUILDINGS-VACANT RATES,Programmes,DURHAM COUNTY COUNCIL,16/09/2020," 7,440.84 ",G,72101500,Building maintenance and repair services
"Ministry of Housing, Communities and Local Government",Homes England,BUILDINGS-VACANT RATES,Programmes,DURHAM COUNTY COUNCIL,16/09/2020," 2,745.16 ",G,80131500,Lease and rental of property or building
"Ministry of Housing, Communities and Local Government",Homes England,BUILDINGS-VACANT RATES,Programmes,DURHAM COUNTY COUNCIL,16/09/2020," 1,126.96 ",G,80131500,Lease and rental of property or building
"Ministry of Housing, Communities and Local Government",Homes England,BUILDINGS-VACANT RATES,Programmes,DURHAM COUNTY COUNCIL,16/09/2020," 2,456.19 ",G,80131500,Lease and rental of property or building
"Ministry of Housing, Communities and Local Government",Homes England,LEGAL FEES,Programmes,DURHAM COUNTY COUNCIL,18/09/2020, 825.00 ,G,80131500,Lease and rental of property or building
"Ministry of Housing, Communities and Local Government",Homes England,ENGINEERING FEES,Programmes,DURHAM COUNTY COUNCIL,18/09/2020," 29,285.72 ",G,80131500,Lease and rental of property or building
"Ministry of Housing, Communities and Local Government",Homes England,CAPITAL GRANTS TO LOCAL AUTHORITIES,Programmes,DURHAM COUNTY COUNCIL,18/09/2020," 81,394.00 ",G,80121600,Business law services
"Ministry of Housing, Communities and Local Government",Homes England,LEGAL FEES,Programmes,DURHAM COUNTY COUNCIL,18/09/2020, 825.00 ,G,80121600,Business law services
"Ministry of Housing, Communities and Local Government",Homes England,CAPITAL GRANTS TO LOCAL AUTHORITIES,Programmes,DERBY CITY COUNCIL,28/09/2020," 1,101,677.04 ",G,,Grants
"Ministry of Housing, Communities and Local Government",Homes England,OTHER PROFESSIONAL FEES,Programmes,DM SAFETY & HEALTH SERVICES LIMITED,16/09/2020," 2,084.41 ",S,77101500,Environmental auditing
"Ministry of Housing, Communities and Local Government",Homes England,NETWORKS,Finance & Corporate Services,DAISY CORPORATE SERVICES TRADING LIMITED,09/09/2020," 5,548.47 ",L,81112105,World wide web WWW site operation host services�
"Ministry of Housing, Communities and Local Government",Homes England,NETWORKS,Finance & Corporate Services,DAISY CORPORATE SERVICES TRADING LIMITED,23/09/2020," 1,140.00 ",L,81112105,World wide web WWW site operation host services�
"Ministry of Housing, Communities and Local Government",Homes England,CONTRACT WORKS,Programmes,DDS (DEMOLITION) LTD,29/09/2020," 35,274.33 ",M,72141500,Land preparation services
"Ministry of Housing, Communities and Local Government",Homes England,LEGAL FEES,Programmes,DWF LAW LLP,07/09/2020," 1,500.00 ",L,80121600,Business law services
"Ministry of Housing, Communities and Local Government",Homes England,PACKAGE MAINTENANCE & SUBSCRIPTIONS,Finance & Corporate Services,DB GROUP LTD T/A ESUASIVE,15/09/2020," 4,950.00 ",S,43231500,Business function specific software
"Ministry of Housing, Communities and Local Government",Homes England,MISC PROFESSIONAL FEES,Midlands,WOOD ENVIRONMENT & INFRASTRUCTURE SOLUTIONS,01/09/2020," 1,380.75 ",L,80131800,Real estate management services
"Ministry of Housing, Communities and Local Government",Homes England,MISC PROFESSIONAL FEES,East And South East,WOOD ENVIRONMENT & INFRASTRUCTURE SOLUTIONS,01/09/2020," 3,698.29 ",L,80131800,Real estate management services
"Ministry of Housing, Communities and Local Government",Homes England,PLANNING APPLICATIONS,South East,WOOD ENVIRONMENT & INFRASTRUCTURE SOLUTIONS,01/09/2020," 1,560.00 ",L,80131800,Real estate management services
"Ministry of Housing, Communities and Local Government",Homes England,PROPERTY SERVICES,East And South East,WOOD ENVIRONMENT & INFRASTRUCTURE SOLUTIONS,01/09/2020," 3,206.75 ",L,80131800,Real estate management services
"Ministry of Housing, Communities and Local Government",Homes England,PROPERTY SERVICES,East And South East,WOOD ENVIRONMENT & INFRASTRUCTURE SOLUTIONS,01/09/2020," 12,587.68 ",L,80131800,Real estate management services
"Ministry of Housing, Communities and Local Government",Homes England,CONTRACT WORKS,East And South East,WOOD ENVIRONMENT & INFRASTRUCTURE SOLUTIONS,01/09/2020, 707.00 ,L,80131800,Real estate management services
"Ministry of Housing, Communities and Local Government",Homes England,PROPERTY SERVICES,East And South East,WOOD ENVIRONMENT & INFRASTRUCTURE SOLUTIONS,01/09/2020, 606.00 ,L,80131800,Real estate management services
"Ministry of Housing, Communities and Local Government",Homes England,PROPERTY SERVICES,East And South East,WOOD ENVIRONMENT & INFRASTRUCTURE SOLUTIONS,01/09/2020," 1,306.74 ",L,80131800,Real estate management services
"Ministry of Housing, Communities and Local Government",Homes England,PROPERTY SERVICES,East And South East,WOOD ENVIRONMENT & INFRASTRUCTURE SOLUTIONS,01/09/2020, 435.00 ,L,80131800,Real estate management services
"Ministry of Housing, Communities and Local Government",Homes England,PROPERTY SERVICES,East And South East,WOOD ENVIRONMENT & INFRASTRUCTURE SOLUTIONS,01/09/2020," 1,609.83 ",L,80131800,Real estate management services
"Ministry of Housing, Communities and Local Government",Homes England,PROPERTY SERVICES,East And South East,WOOD ENVIRONMENT & INFRASTRUCTURE SOLUTIONS,01/09/2020," 3,645.55 ",L,80131800,Real estate management services
"Ministry of Housing, Communities and Local Government",Homes England,MISC PROFESSIONAL FEES,East And South East,WOOD ENVIRONMENT & INFRASTRUCTURE SOLUTIONS,02/09/2020," 4,482.47 ",L,80131800,Real estate management services
"Ministry of Housing, Communities and Local Government",Homes England,MISC PROFESSIONAL FEES,Midlands,WOOD ENVIRONMENT & INFRASTRUCTURE SOLUTIONS,02/09/2020," 4,289.22 ",L,80131800,Real estate management services
"Ministry of Housing, Communities and Local Government",Homes England,OTHER PROFESSIONAL FEES,Midlands,WOOD ENVIRONMENT & INFRASTRUCTURE SOLUTIONS,02/09/2020," 15,167.91 ",L,80131800,Real estate management services
"Ministry of Housing, Communities and Local Government",Homes England,MASTERPLANNING FEES,Midlands,WOOD ENVIRONMENT & INFRASTRUCTURE SOLUTIONS,04/09/2020, 725.00 ,L,80131800,Real estate management services
"Ministry of Housing, Communities and Local Government",Homes England,ENGINEERING FEES,South East,WOOD ENVIRONMENT & INFRASTRUCTURE SOLUTIONS,07/09/2020," 18,572.13 ",L,80131800,Real estate management services
"Ministry of Housing, Communities and Local Government",Homes England,OTHER PROFESSIONAL FEES,Midlands,WOOD ENVIRONMENT & INFRASTRUCTURE SOLUTIONS,21/09/2020," 17,426.57 ",L,80131800,Real estate management services
"Ministry of Housing, Communities and Local Government",Homes England,PROPERTY SERVICES,East And South East,WOOD ENVIRONMENT & INFRASTRUCTURE SOLUTIONS,28/09/2020," 3,787.82 ",L,80131800,Real estate management services
"Ministry of Housing, Communities and Local Government",Homes England,PROPERTY SERVICES,East And South East,WOOD ENVIRONMENT & INFRASTRUCTURE SOLUTIONS,28/09/2020," 1,010.00 ",L,80131800,Real estate management services
"Ministry of Housing, Communities and Local Government",Homes England,PROPERTY SERVICES,East And South East,WOOD ENVIRONMENT & INFRASTRUCTURE SOLUTIONS,28/09/2020, 858.55 ,L,80131800,Real estate management services
"Ministry of Housing, Communities and Local Government",Homes England,PROPERTY SERVICES,East And South East,WOOD ENVIRONMENT & INFRASTRUCTURE SOLUTIONS,28/09/2020, 303.00 ,L,80131800,Real estate management services
"Ministry of Housing, Communities and Local Government",Homes England,PROPERTY SERVICES,East And South East,WOOD ENVIRONMENT & INFRASTRUCTURE SOLUTIONS,28/09/2020," 1,994.75 ",L,80131800,Real estate management services
"Ministry of Housing, Communities and Local Government",Homes England,PROPERTY SERVICES,East And South East,WOOD ENVIRONMENT & INFRASTRUCTURE SOLUTIONS,28/09/2020," 22,950.00 ",L,80131800,Real estate management services
"Ministry of Housing, Communities and Local Government",Homes England,PROPERTY SERVICES,East And South East,WOOD ENVIRONMENT & INFRASTRUCTURE SOLUTIONS,28/09/2020, 865.00 ,L,80131800,Real estate management services
"Ministry of Housing, Communities and Local Government",Homes England,PROPERTY SERVICES,East And South East,WOOD ENVIRONMENT & INFRASTRUCTURE SOLUTIONS,28/09/2020," 1,060.51 ",L,80131800,Real estate management services
"Ministry of Housing, Communities and Local Government",Homes England,CONTRACT WORKS,East And South East,WOOD ENVIRONMENT & INFRASTRUCTURE SOLUTIONS,28/09/2020, 303.00 ,L,80131800,Real estate management services
"Ministry of Housing, Communities and Local Government",Homes England,MASTERPLANNING FEES,East And South East,WOOD ENVIRONMENT & INFRASTRUCTURE SOLUTIONS,30/09/2020," 1,500.00 ",L,80131800,Real estate management services
"Ministry of Housing, Communities and Local Government",Homes England,PLANNING APPLICATIONS,East And South East,WOOD ENVIRONMENT & INFRASTRUCTURE SOLUTIONS,30/09/2020," 12,107.00 ",L,80131800,Real estate management services
"Ministry of Housing, Communities and Local Government",Homes England,MISC PROFESSIONAL FEES,Programmes,WOOD ENVIRONMENT & INFRASTRUCTURE SOLUTIONS,30/09/2020," 8,000.00 ",L,80131800,Real estate management services
"Ministry of Housing, Communities and Local Government",Homes England,MISC PROFESSIONAL FEES,Programmes,WOOD ENVIRONMENT & INFRASTRUCTURE SOLUTIONS,30/09/2020," 10,000.00 ",L,80131800,Real estate management services
"Ministry of Housing, Communities and Local Government",Homes England,ST Fund Loans Additions,Economic Assets Hub,EAST WICK AND SWEETWATER PROJECTS (PHASE 1) L,11/09/2020," 4,186,803.50 ",,,Loans
"Ministry of Housing, Communities and Local Government",Homes England,ST Fund Loans Additions,Economic Assets Hub,EAST CHALLOWS LLP,02/09/2020," 212,493.00 ",,,Loans
"Ministry of Housing, Communities and Local Government",Homes England,ENGINEERING FEES,Programmes,EGNIOL CONSULTING LIMITED,07/09/2020," 4,000.00 ",S,81101500,Civil Engineering
"Ministry of Housing, Communities and Local Government",Homes England,PEOPLE PLAN / INSTANT RECOGNITION,Finance & Corporate Services,EDENRED (UK GROUP) LTD,03/09/2020, 425.00 ,L,14111803,Vouchers
"Ministry of Housing, Communities and Local Government",Homes England,TELEPHONES,Finance & Corporate Services,EE LTD,08/09/2020," 16,777.80 ",L,83101600,Mobile communications services
"Ministry of Housing, Communities and Local Government",Homes England,LEGAL FEES,North West,EVERSHEDS CLIENT ACCOUNT,02/09/2020," 2,777.99 ",L,80121600,Business law services
"Ministry of Housing, Communities and Local Government",Homes England,LEGAL FEES,Programmes,EVERSHEDS CLIENT ACCOUNT,02/09/2020, 750.00 ,L,80121600,Business law services
"Ministry of Housing, Communities and Local Government",Homes England,LEGAL FEES,Programmes,EVERSHEDS CLIENT ACCOUNT,03/09/2020, 700.00 ,L,80121600,Business law services
"Ministry of Housing, Communities and Local Government",Homes England,LEGAL FEES,Midlands,EVERSHEDS CLIENT ACCOUNT,04/09/2020," 11,006.00 ",L,80121600,Business law services
"Ministry of Housing, Communities and Local Government",Homes England,LEGAL FEES,Midlands,EVERSHEDS CLIENT ACCOUNT,04/09/2020," 2,800.00 ",L,80121600,Business law services
"Ministry of Housing, Communities and Local Government",Homes England,LEGAL FEES,Finance & Corporate Services,EVERSHEDS CLIENT ACCOUNT,15/09/2020," 2,512.00 ",L,80121600,Business law services
"Ministry of Housing, Communities and Local Government",Homes England,DISPOSAL FEES - LEGAL,North West,EVERSHEDS CLIENT ACCOUNT,16/09/2020," 6,923.81 ",L,80121600,Business law services
"Ministry of Housing, Communities and Local Government",Homes England,LEGAL FEES,Midlands,EVERSHEDS CLIENT ACCOUNT,23/09/2020," 16,908.66 ",L,80121600,Business law services
"Ministry of Housing, Communities and Local Government",Homes England,LEGAL FEES,Programmes,EVERSHEDS CLIENT ACCOUNT,23/09/2020, 850.00 ,L,80121600,Business law services
"Ministry of Housing, Communities and Local Government",Homes England,LEGAL FEES,North West,EVERSHEDS CLIENT ACCOUNT,25/09/2020," 15,467.00 ",L,80121600,Business law services
"Ministry of Housing, Communities and Local Government",Homes England,LEGAL FEES,Programmes,EVERSHEDS CLIENT ACCOUNT,30/09/2020," 3,071.00 ",L,80121600,Business law services
"Ministry of Housing, Communities and Local Government",Homes England,LEGAL FEES,Midlands,EVERSHEDS CLIENT ACCOUNT,30/09/2020, 654.00 ,L,80121600,Business law services
"Ministry of Housing, Communities and Local Government",Homes England,ST Fund Loans Additions,Economic Assets Hub,EDEN PROJECTS AND DEVELOPMENTS LTD,30/09/2020," 31,664.89 ",,,Loans
"Ministry of Housing, Communities and Local Government",Homes England,LANDSCAPE MAINT-BUILT ESTATE,South West,ELMTREE GARDEN CONTRACTORS LTD,10/09/2020, 567.50 ,M,72101500,Building maintenance and repair services
"Ministry of Housing, Communities and Local Government",Homes England,LANDSCAPE MAINT-BUILT ESTATE,South West,ELMTREE GARDEN CONTRACTORS LTD,22/09/2020, 567.50 ,M,72101500,Building maintenance and repair services
"Ministry of Housing, Communities and Local Government",Homes England,ESTATE GENERAL MAINTENANCE,North East And Yorkshire,ENVIRONMENTAL SERVICES (CHESTERFIELD) LTD,09/09/2020," 1,610.00 ",S,72101500,Building maintenance and repair services
"Ministry of Housing, Communities and Local Government",Homes England,ESTATE GENERAL MAINTENANCE,Programmes,ENVIRONMENTAL SERVICES (CHESTERFIELD) LTD,10/09/2020," 2,189.00 ",S,72101500,Building maintenance and repair services
"Ministry of Housing, Communities and Local Government",Homes England,ESTATE GENERAL MAINTENANCE,Programmes,ENVIRONMENTAL SERVICES (CHESTERFIELD) LTD,16/09/2020, 310.00 ,S,72101500,Building maintenance and repair services
"Ministry of Housing, Communities and Local Government",Homes England,AGENCY STAFF,North East And Yorkshire,EDEN BROWN BUILT ENVIRONMENT,07/09/2020, 721.70 ,L,80111600,Temporary personnel services
"Ministry of Housing, Communities and Local Government",Homes England,Investment In Assoc Jv Additio,Programmes,ECF (GENERAL PARTNER) LTD,30/09/2020," 572,275.00 ",,,Grants
"Ministry of Housing, Communities and Local Government",Homes England,BUILDINGS-ELECTRICITY,Programmes,EDF ENERGY CUST FIELD SERVICES,18/09/2020, 432.00 ,L,83101800,Electric utilities
"Ministry of Housing, Communities and Local Government",Homes England,BOARD MEMBERS REMUNERATION ,Finance & Corporate Services,EXPERIAN,10/09/2020," 1,233.33 ",L,94101500,Business associations
"Ministry of Housing, Communities and Local Government",Homes England,BOARD MEMBERS REMUNERATION ,Finance & Corporate Services,EXPERIAN,14/09/2020," 1,233.33 ",L,94101500,Business associations
"Ministry of Housing, Communities and Local Government",Homes England,ST Fund Loans Additions,Economic Assets Hub,ECCLESTON HOMES LIMITED,03/09/2020," 1,208,282.00 ",,,Loans
"Ministry of Housing, Communities and Local Government",Homes England,ST Fund Loans Additions,Economic Assets Hub,ECCLESTON HOMES LIMITED,09/09/2020," 520,540.74 ",,,Loans
"Ministry of Housing, Communities and Local Government",Homes England,OTHER PROFESSIONAL FEES,Programmes,EDUCATIONAL FACILITIES MANAGEMENT PARTNERSHIP,16/09/2020," 1,305.00 ",M,86101800,In service training and manpower development
"Ministry of Housing, Communities and Local Government",Homes England,OPEN MARKET VALUATION FEE,North East And Yorkshire,EDDISONS COMMERCIAL LIMITED,02/09/2020, 400.00 ,M,80131800,Real estate management services
"Ministry of Housing, Communities and Local Government",Homes England,Professional Fees Loans Capitalised,Economic Assets Hub,EDDISONS COMMERCIAL LIMITED,03/09/2020," 2,950.00 ",M,80131800,Real estate management services
"Ministry of Housing, Communities and Local Government",Homes England,RI - MONITORING SURVEYOR FEES,Economic Assets Hub,EDDISONS COMMERCIAL LIMITED,04/09/2020, 575.00 ,M,80131800,Real estate management services
"Ministry of Housing, Communities and Local Government",Homes England,Professional Fees Loans Capitalised,Economic Assets Hub,EDDISONS COMMERCIAL LIMITED,16/09/2020," 1,575.00 ",M,80131800,Real estate management services
"Ministry of Housing, Communities and Local Government",Homes England,QUANTITY SURVEYORS FEES,North West,EDDISONS COMMERCIAL LIMITED,21/09/2020," 3,750.00 ",M,80131800,Real estate management services
"Ministry of Housing, Communities and Local Government",Homes England,RI - MONITORING SURVEYOR FEES,Economic Assets Hub,EDDISONS COMMERCIAL LIMITED,30/09/2020, 700.00 ,M,80131800,Real estate management services
"Ministry of Housing, Communities and Local Government",Homes England,PLANNING APPLICATIONS,Programmes,EAST HAMPSHIRE DISTRICT COUNCIL,09/09/2020," 1,875.00 ",G,80131800,Real estate management services
"Ministry of Housing, Communities and Local Government",Homes England,ENGINEERING CONSULTANTS,Midlands,AECOM LIMITED,01/09/2020," 2,252.00 ",L,72101500,Building maintenance and repair services
"Ministry of Housing, Communities and Local Government",Homes England,RI - MONITORING SURVEYOR FEES,Economic Assets Hub,AECOM LIMITED,02/09/2020," 3,217.37 ",L,72101500,Building maintenance and repair services
"Ministry of Housing, Communities and Local Government",Homes England,PROJECT MANAGEMENT,North East And Yorkshire,AECOM LIMITED,07/09/2020," 2,250.00 ",L,72101500,Building maintenance and repair services
"Ministry of Housing, Communities and Local Government",Homes England,ENGINEERING FEES,North West,AECOM LIMITED,08/09/2020," 4,061.00 ",L,72101500,Building maintenance and repair services
"Ministry of Housing, Communities and Local Government",Homes England,RI - MONITORING SURVEYOR FEES,Economic Assets Hub,AECOM LIMITED,11/09/2020," 1,600.00 ",L,72101500,Building maintenance and repair services
"Ministry of Housing, Communities and Local Government",Homes England,MISC PROFESSIONAL FEES,North West,AECOM LIMITED,14/09/2020," 1,189.00 ",L,72101500,Building maintenance and repair services
"Ministry of Housing, Communities and Local Government",Homes England,PROPERTY SERVICES,Midlands,AECOM LIMITED,25/09/2020," 1,085.60 ",L,72101500,Building maintenance and repair services
"Ministry of Housing, Communities and Local Government",Homes England,ENGINEERING FEES,Programmes,AECOM LIMITED,28/09/2020," 2,000.00 ",L,72101500,Building maintenance and repair services
"Ministry of Housing, Communities and Local Government",Homes England,LEGAL FEES,North East And Yorkshire,AECOM LIMITED,29/09/2020," 9,642.00 ",L,72101500,Building maintenance and repair services
"Ministry of Housing, Communities and Local Government",Homes England,RI - MONITORING SURVEYOR FEES,Economic Assets Hub,AECOM LIMITED,30/09/2020," 1,916.98 ",L,72101500,Building maintenance and repair services
"Ministry of Housing, Communities and Local Government",Homes England,MASTERPLANNING FEES,North East And Yorkshire,AECOM LIMITED,30/09/2020," 59,006.57 ",L,72101500,Building maintenance and repair services
"Ministry of Housing, Communities and Local Government",Homes England,OTHER PROFESSIONAL FEES,North East And Yorkshire,AECOM LIMITED,30/09/2020," 1,877.76 ",L,72101500,Building maintenance and repair services
"Ministry of Housing, Communities and Local Government",Homes England,ENGINEERING FEES,North East And Yorkshire,AECOM LIMITED,30/09/2020," 5,980.00 ",L,72101500,Building maintenance and repair services
"Ministry of Housing, Communities and Local Government",Homes England,PROPERTY SERVICES,Midlands,SAVILLS UK LIMITED,01/09/2020," 7,000.00 ",L,80131800,Real estate management services
"Ministry of Housing, Communities and Local Government",Homes England,Professional Fees Loans Capitalised,Economic Assets Hub,SAVILLS UK LIMITED,04/09/2020," 2,500.00 ",L,80131800,Real estate management services
"Ministry of Housing, Communities and Local Government",Homes England,OPEN MARKET VALUATION FEE,North East And Yorkshire,SAVILLS UK LIMITED,10/09/2020," 6,250.00 ",L,80131800,Real estate management services
"Ministry of Housing, Communities and Local Government",Homes England,DISPOSAL FEES - PROPERTY AGENTS & ADVERTISING,Programmes,SAVILLS UK LIMITED,10/09/2020," 6,000.00 ",L,80131800,Real estate management services
"Ministry of Housing, Communities and Local Government",Homes England,DISPOSAL FEES - PROPERTY AGENTS & ADVERTISING,Programmes,SAVILLS UK LIMITED,14/09/2020," 3,040.00 ",L,80131800,Real estate management services
"Ministry of Housing, Communities and Local Government",Homes England,PROPERTY SERVICES,Midlands,SAVILLS UK LIMITED,15/09/2020," 3,500.00 ",L,80131800,Real estate management services
"Ministry of Housing, Communities and Local Government",Homes England,PROPERTY SERVICES,North West,SAVILLS UK LIMITED,15/09/2020," 5,000.00 ",L,80131800,Real estate management services
"Ministry of Housing, Communities and Local Government",Homes England,PROPERTY SERVICES,Midlands,SAVILLS UK LIMITED,17/09/2020," 3,600.00 ",L,80131800,Real estate management services
"Ministry of Housing, Communities and Local Government",Homes England,Professional Fees Loans Capitalised,Economic Assets Hub,SAVILLS UK LIMITED,22/09/2020," 2,650.00 ",L,80131800,Real estate management services
"Ministry of Housing, Communities and Local Government",Homes England,PROPERTY SERVICES,Programmes,SAVILLS UK LIMITED,23/09/2020," 3,500.00 ",L,80131800,Real estate management services
"Ministry of Housing, Communities and Local Government",Homes England,DISPOSAL FEES - PROPERTY AGENTS & ADVERTISING,Programmes,SAVILLS UK LIMITED,28/09/2020," 25,000.00 ",L,80131800,Real estate management services
"Ministry of Housing, Communities and Local Government",Homes England,ST Fund Loans Additions,Economic Assets Hub,FOXGLOVE INVESTMENTS HOMES (MW) LIMITED,14/09/2020," 169,509.00 ",,,Loans
"Ministry of Housing, Communities and Local Government",Homes England,ESTATE GENERAL MAINTENANCE,South West,FOUR SEASONS TREE SERVICES LTD,14/09/2020, 580.00 ,S,72101500,Building maintenance and repair services
"Ministry of Housing, Communities and Local Government",Homes England,MANAGEMENT COSTS,South West,R FOX T/A SOUTHCOAST MAINTENANCE,14/09/2020, 420.00 ,S,72101500,Building maintenance and repair services
"Ministry of Housing, Communities and Local Government",Homes England,MANAGEMENT COSTS,South West,R FOX T/A SOUTHCOAST MAINTENANCE,14/09/2020, 265.00 ,S,72101500,Building maintenance and repair services
"Ministry of Housing, Communities and Local Government",Homes England,MANAGEMENT COSTS,South West,R FOX T/A SOUTHCOAST MAINTENANCE,14/09/2020, 312.00 ,S,72101500,Building maintenance and repair services
"Ministry of Housing, Communities and Local Government",Homes England,FENCE MAINTENANCE,Programmes,R FOX T/A SOUTHCOAST MAINTENANCE,14/09/2020, 300.00 ,S,72101500,Building maintenance and repair services
"Ministry of Housing, Communities and Local Government",Homes England,FENCE MAINTENANCE,Programmes,R FOX T/A SOUTHCOAST MAINTENANCE,14/09/2020, 490.00 ,S,72101500,Building maintenance and repair services
"Ministry of Housing, Communities and Local Government",Homes England,BUILDINGS-ROOF,Programmes,R FOX T/A SOUTHCOAST MAINTENANCE,14/09/2020," 1,700.00 ",S,72101500,Building maintenance and repair services
"Ministry of Housing, Communities and Local Government",Homes England,BUILDINGS-ROOF,Programmes,R FOX T/A SOUTHCOAST MAINTENANCE,14/09/2020," 1,765.00 ",S,72101500,Building maintenance and repair services
"Ministry of Housing, Communities and Local Government",Homes England,MANAGEMENT COSTS,Programmes,R FOX T/A SOUTHCOAST MAINTENANCE,16/09/2020," 1,500.00 ",S,72101500,Building maintenance and repair services
"Ministry of Housing, Communities and Local Government",Homes England,MANAGEMENT COSTS,Programmes,R FOX T/A SOUTHCOAST MAINTENANCE,16/09/2020," 3,000.00 ",S,72101500,Building maintenance and repair services
"Ministry of Housing, Communities and Local Government",Homes England,ESTATE GENERAL MAINTENANCE,South West,R FOX T/A SOUTHCOAST MAINTENANCE,16/09/2020," 1,100.00 ",S,72101500,Building maintenance and repair services
"Ministry of Housing, Communities and Local Government",Homes England,MANAGEMENT COSTS,Programmes,R FOX T/A SOUTHCOAST MAINTENANCE,16/09/2020," 1,000.00 ",S,72101500,Building maintenance and repair services
"Ministry of Housing, Communities and Local Government",Homes England,PROPERTY MAINTENANCE,Programmes,R FOX T/A SOUTHCOAST MAINTENANCE,16/09/2020, 700.00 ,S,72101500,Building maintenance and repair services
"Ministry of Housing, Communities and Local Government",Homes England,PROPERTY MAINTENANCE,Programmes,R FOX T/A SOUTHCOAST MAINTENANCE,16/09/2020," 4,000.00 ",S,72101500,Building maintenance and repair services
"Ministry of Housing, Communities and Local Government",Homes England,MANAGEMENT COSTS,South West,R FOX T/A SOUTHCOAST MAINTENANCE,29/09/2020, 700.00 ,S,72101500,Building maintenance and repair services
"Ministry of Housing, Communities and Local Government",Homes England,MANAGEMENT COSTS,South West,R FOX T/A SOUTHCOAST MAINTENANCE,29/09/2020, 700.00 ,S,72101500,Building maintenance and repair services
"Ministry of Housing, Communities and Local Government",Homes England,MANAGEMENT COSTS,Programmes,R FOX T/A SOUTHCOAST MAINTENANCE,29/09/2020," 1,300.00 ",S,72101500,Building maintenance and repair services
"Ministry of Housing, Communities and Local Government",Homes England,MANAGEMENT COSTS,East And South East,R FOX T/A SOUTHCOAST MAINTENANCE,29/09/2020, 450.00 ,S,72101500,Building maintenance and repair services
"Ministry of Housing, Communities and Local Government",Homes England,MANAGEMENT COSTS,Programmes,R FOX T/A SOUTHCOAST MAINTENANCE,29/09/2020, 630.00 ,S,72101500,Building maintenance and repair services
"Ministry of Housing, Communities and Local Government",Homes England,SECURITY,Midlands,FALCON SECURITY,09/09/2020," 4,115.00 ",M,92121500,Guard services
"Ministry of Housing, Communities and Local Government",Homes England,SECURITY,Midlands,FALCON SECURITY,09/09/2020," 13,648.00 ",M,92121500,Guard services
"Ministry of Housing, Communities and Local Government",Homes England,SECURITY (Incl Fire Prevention),Finance & Corporate Services,FALCON SECURITY,09/09/2020," 3,749.76 ",M,92121500,Guard services
"Ministry of Housing, Communities and Local Government",Homes England,SECURITY,Programmes,FALCON SECURITY,09/09/2020," 22,421.94 ",M,92121500,Guard services
"Ministry of Housing, Communities and Local Government",Homes England,SECURITY,North East And Yorkshire,FALCON SECURITY,09/09/2020," 25,217.36 ",M,92121500,Guard services
"Ministry of Housing, Communities and Local Government",Homes England,SECURITY,Midlands,FALCON SECURITY,11/09/2020," 6,258.00 ",M,92121500,Guard services
"Ministry of Housing, Communities and Local Government",Homes England,SECURITY,Programmes,FALCON SECURITY,14/09/2020," 4,900.00 ",M,92121500,Guard services
"Ministry of Housing, Communities and Local Government",Homes England,SECURITY,Programmes,FALCON SECURITY,23/09/2020, 640.00 ,M,92121500,Guard services
"Ministry of Housing, Communities and Local Government",Homes England,SECURITY,Programmes,FALCON SECURITY,23/09/2020," 1,200.00 ",M,92121500,Guard services
"Ministry of Housing, Communities and Local Government",Homes England,SECURITY,Programmes,FALCON SECURITY,23/09/2020," 20,906.40 ",M,92121500,Guard services
"Ministry of Housing, Communities and Local Government",Homes England,ST Fund Loans Additions,Economic Assets Hub,FOXGLOVE INVESTMENTS (DEVELOPMENTS) LIMITED,25/09/2020," 71,490.00 ",,,Loans
"Ministry of Housing, Communities and Local Government",Homes England,OTHER PROFESSIONAL FEES,Programmes,FIVE PLUS ARCHITECTS LIMITED,16/09/2020," 5,537.25 ",S,80131800,Real estate management services
"Ministry of Housing, Communities and Local Government",Homes England,ESTATE GENERAL MAINTENANCE,South West,FALCON PEST CONTROL,16/09/2020, 370.00 ,S,72102100,Pest control
"Ministry of Housing, Communities and Local Government",Homes England,ESTATE GENERAL MAINTENANCE,South West,FALCON PEST CONTROL,16/09/2020, 590.00 ,S,72102100,Pest control
"Ministry of Housing, Communities and Local Government",Homes England,LANDSCAPE MAINT-BUILT ESTATE,South West,FALCON PEST CONTROL,30/09/2020," 2,400.00 ",S,72102100,Pest control
"Ministry of Housing, Communities and Local Government",Homes England,HEALTH & SAFETY,Programmes,FIRST CHOICE CLEANING & MAINTENANCE LTD,08/09/2020," 1,984.00 ",S,72153501,Building exterior cleaning service  
"Ministry of Housing, Communities and Local Government",Homes England,LEGAL FEES,East And South East,Francis Taylor Building,09/09/2020," 26,712.50 ",S,80121600,Business law services
"Ministry of Housing, Communities and Local Government",Homes England,COURSES & CONFERENCES,Programmes,KAPLAN FINANCIAL,08/09/2020," 1,196.66 ",M,86101800,In service training and manpower development
"Ministry of Housing, Communities and Local Government",Homes England,ESTATE GENERAL MAINTENANCE,East And South East,F T GEARING L/S LTD,14/09/2020, 441.96 ,M,72101500,Building maintenance and repair services
"Ministry of Housing, Communities and Local Government",Homes England,DISPOSAL FEES - PROPERTY AGENTS & ADVERTISING,East And South East,AVISON YOUNG (UK) LTD,01/09/2020," 3,000.00 ",L,80131800,Real estate management services
"Ministry of Housing, Communities and Local Government",Homes England,DISPOSAL FEES - PROPERTY AGENTS & ADVERTISING,South West,AVISON YOUNG (UK) LTD,02/09/2020," 2,495.00 ",L,80131800,Real estate management services
"Ministry of Housing, Communities and Local Government",Homes England,RI - MONITORING SURVEYOR FEES,Economic Assets Hub,AVISON YOUNG (UK) LTD,02/09/2020, 750.00 ,L,80131800,Real estate management services
"Ministry of Housing, Communities and Local Government",Homes England,RI - MONITORING SURVEYOR FEES,Economic Assets Hub,AVISON YOUNG (UK) LTD,02/09/2020, 750.00 ,L,80131800,Real estate management services
"Ministry of Housing, Communities and Local Government",Homes England,RI - MONITORING SURVEYOR FEES,Economic Assets Hub,AVISON YOUNG (UK) LTD,03/09/2020, 800.00 ,L,80131800,Real estate management services
"Ministry of Housing, Communities and Local Government",Homes England,PLANNING APPLICATIONS,Midlands,AVISON YOUNG (UK) LTD,07/09/2020," 4,357.50 ",L,80131800,Real estate management services
"Ministry of Housing, Communities and Local Government",Homes England,MISC PROFESSIONAL FEES (ADMIN ONLY),Finance & Corporate Services,AVISON YOUNG (UK) LTD,07/09/2020," 45,664.00 ",L,80131800,Real estate management services
"Ministry of Housing, Communities and Local Government",Homes England,MISC PROFESSIONAL FEES (ADMIN ONLY),Finance & Corporate Services,AVISON YOUNG (UK) LTD,07/09/2020," 15,100.00 ",L,80131800,Real estate management services
"Ministry of Housing, Communities and Local Government",Homes England,MANAGEMENT COSTS,Programmes,AVISON YOUNG (UK) LTD,10/09/2020," 2,125.00 ",L,80131800,Real estate management services
"Ministry of Housing, Communities and Local Government",Homes England,MISC PROFESSIONAL FEES (ADMIN ONLY),Executive Office,AVISON YOUNG (UK) LTD,10/09/2020," 68,260.00 ",L,80131800,Real estate management services
"Ministry of Housing, Communities and Local Government",Homes England,PROPERTY SERVICES,Programmes,AVISON YOUNG (UK) LTD,10/09/2020," 2,000.00 ",L,80131800,Real estate management services
"Ministry of Housing, Communities and Local Government",Homes England,RI - MONITORING SURVEYOR FEES,Economic Assets Hub,AVISON YOUNG (UK) LTD,14/09/2020, 750.00 ,L,80131800,Real estate management services
"Ministry of Housing, Communities and Local Government",Homes England,MANAGEMENT COSTS,Midlands,AVISON YOUNG (UK) LTD,16/09/2020, 600.00 ,L,80131800,Real estate management services
"Ministry of Housing, Communities and Local Government",Homes England,MANAGEMENT COSTS,Midlands,AVISON YOUNG (UK) LTD,16/09/2020," 1,200.00 ",L,80131800,Real estate management services
"Ministry of Housing, Communities and Local Government",Homes England,MANAGEMENT COSTS,Midlands,AVISON YOUNG (UK) LTD,16/09/2020," 1,000.00 ",L,80131800,Real estate management services
"Ministry of Housing, Communities and Local Government",Homes England,MANAGEMENT COSTS,Programmes,AVISON YOUNG (UK) LTD,16/09/2020," 2,500.00 ",L,80131800,Real estate management services
"Ministry of Housing, Communities and Local Government",Homes England,PROPERTY SERVICES,Programmes,AVISON YOUNG (UK) LTD,22/09/2020, 375.00 ,L,80131800,Real estate management services
"Ministry of Housing, Communities and Local Government",Homes England,PROPERTY SERVICES,Programmes,AVISON YOUNG (UK) LTD,22/09/2020, 475.00 ,L,80131800,Real estate management services
"Ministry of Housing, Communities and Local Government",Homes England,PROPERTY SERVICES,Programmes,AVISON YOUNG (UK) LTD,22/09/2020, 725.00 ,L,80131800,Real estate management services
"Ministry of Housing, Communities and Local Government",Homes England,PROPERTY SERVICES,Programmes,AVISON YOUNG (UK) LTD,22/09/2020, 375.00 ,L,80131800,Real estate management services
"Ministry of Housing, Communities and Local Government",Homes England,MANAGEMENT COSTS,North East And Yorkshire,AVISON YOUNG (UK) LTD,22/09/2020, 375.00 ,L,80131800,Real estate management services
"Ministry of Housing, Communities and Local Government",Homes England,PROPERTY SERVICES,Programmes,AVISON YOUNG (UK) LTD,22/09/2020, 675.00 ,L,80131800,Real estate management services
"Ministry of Housing, Communities and Local Government",Homes England,MANAGEMENT COSTS,North East And Yorkshire,AVISON YOUNG (UK) LTD,22/09/2020, 375.00 ,L,80131800,Real estate management services
"Ministry of Housing, Communities and Local Government",Homes England,MISC PROFESSIONAL FEES,Programmes,AVISON YOUNG (UK) LTD,22/09/2020, 750.00 ,L,80131800,Real estate management services
"Ministry of Housing, Communities and Local Government",Homes England,PROPERTY SERVICES,North East And Yorkshire,AVISON YOUNG (UK) LTD,22/09/2020, 350.00 ,L,80131800,Real estate management services
"Ministry of Housing, Communities and Local Government",Homes England,ESTATE AGENTS FEES,North East And Yorkshire,AVISON YOUNG (UK) LTD,22/09/2020," 1,250.00 ",L,80131800,Real estate management services
"Ministry of Housing, Communities and Local Government",Homes England,OPEN MARKET VALUATION FEE,North West,AVISON YOUNG (UK) LTD,22/09/2020," 3,020.90 ",L,80131800,Real estate management services
"Ministry of Housing, Communities and Local Government",Homes England,MISC PROFESSIONAL FEES (ADMIN ONLY),Executive Office,AVISON YOUNG (UK) LTD,22/09/2020," 64,260.00 ",L,80131800,Real estate management services
"Ministry of Housing, Communities and Local Government",Homes England,MISC PROFESSIONAL FEES (ADMIN ONLY),Executive Office,AVISON YOUNG (UK) LTD,22/09/2020," 55,943.00 ",L,80131800,Real estate management services
"Ministry of Housing, Communities and Local Government",Homes England,MISC PROFESSIONAL FEES (ADMIN ONLY),Executive Office,AVISON YOUNG (UK) LTD,25/09/2020," 89,250.00 ",L,80131800,Real estate management services
"Ministry of Housing, Communities and Local Government",Homes England,RI - MONITORING SURVEYOR FEES,Economic Assets Hub,AVISON YOUNG (UK) LTD,28/09/2020, 750.00 ,L,80131800,Real estate management services
"Ministry of Housing, Communities and Local Government",Homes England,RI - MONITORING SURVEYOR FEES,Economic Assets Hub,AVISON YOUNG (UK) LTD,28/09/2020, 750.00 ,L,80131800,Real estate management services
"Ministry of Housing, Communities and Local Government",Homes England,RI - MONITORING SURVEYOR FEES,Economic Assets Hub,AVISON YOUNG (UK) LTD,28/09/2020," 1,028.50 ",L,80131800,Real estate management services
"Ministry of Housing, Communities and Local Government",Homes England,RI - MONITORING SURVEYOR FEES,Economic Assets Hub,AVISON YOUNG (UK) LTD,29/09/2020," 1,000.00 ",L,80131800,Real estate management services
"Ministry of Housing, Communities and Local Government",Homes England,MANAGEMENT COSTS,Midlands,AVISON YOUNG (UK) LTD,29/09/2020, 553.85 ,L,80131800,Real estate management services
"Ministry of Housing, Communities and Local Government",Homes England,MANAGEMENT COSTS,Midlands,AVISON YOUNG (UK) LTD,29/09/2020," 1,000.00 ",L,80131800,Real estate management services
"Ministry of Housing, Communities and Local Government",Homes England,MANAGEMENT COSTS,Midlands,AVISON YOUNG (UK) LTD,29/09/2020," 1,200.00 ",L,80131800,Real estate management services
"Ministry of Housing, Communities and Local Government",Homes England,MANAGEMENT COSTS,Midlands,AVISON YOUNG (UK) LTD,29/09/2020, 750.00 ,L,80131800,Real estate management services
"Ministry of Housing, Communities and Local Government",Homes England,MISC PROFESSIONAL FEES,East And South East,AVISON YOUNG (UK) LTD,29/09/2020," 2,362.50 ",L,80131800,Real estate management services
"Ministry of Housing, Communities and Local Government",Homes England,RI - MONITORING SURVEYOR FEES,Economic Assets Hub,AVISON YOUNG (UK) LTD,30/09/2020, 800.00 ,L,80131800,Real estate management services
"Ministry of Housing, Communities and Local Government",Homes England,RI - MONITORING SURVEYOR FEES,Economic Assets Hub,AVISON YOUNG (UK) LTD,30/09/2020, 800.00 ,L,80131800,Real estate management services
"Ministry of Housing, Communities and Local Government",Homes England,RI - MONITORING SURVEYOR FEES,Economic Assets Hub,AVISON YOUNG (UK) LTD,30/09/2020, 800.00 ,L,80131800,Real estate management services
"Ministry of Housing, Communities and Local Government",Homes England,RI - MONITORING SURVEYOR FEES,Economic Assets Hub,AVISON YOUNG (UK) LTD,30/09/2020, 800.00 ,L,80131800,Real estate management services
"Ministry of Housing, Communities and Local Government",Homes England,ESTATE GENERAL MAINTENANCE,North East And Yorkshire,GREENFINGERS LANDSCAPES LIMITED,29/09/2020, 340.77 ,M,72101500,Building maintenance and repair services
"Ministry of Housing, Communities and Local Government",Homes England,SERVICE CHARGE,South West,GVA LTD,09/09/2020," 29,631.00 ",L,80131500,Lease and rental of property or building
"Ministry of Housing, Communities and Local Government",Homes England,ST Fund Loans Additions,Economic Assets Hub,GLASSHOUSES123 LIMITED,09/09/2020," 30,539.00 ",,,Loans
"Ministry of Housing, Communities and Local Government",Homes England,ST Fund Loans Additions,Economic Assets Hub,GBR DEVELOPMENTS LLP,25/09/2020," 45,500.00 ",,,Loans
"Ministry of Housing, Communities and Local Government",Homes England,ESTATE GENERAL MAINTENANCE,South West,GREENS (CORNWALL) LIMITED,14/09/2020," 1,524.00 ",S,72101500,Building maintenance and repair services
"Ministry of Housing, Communities and Local Government",Homes England,OTHER PROFESSIONAL FEES,South West,GREENS (CORNWALL) LIMITED,14/09/2020, 481.25 ,S,72101500,Building maintenance and repair services
"Ministry of Housing, Communities and Local Government",Homes England,SERVICE RENTS & ESTATE CHARGES,Midlands,GVA GRIMLEY LTD CLIENT A/C,14/09/2020," 1,116.81 ",L,80131500,Lease and rental of property or building
"Ministry of Housing, Communities and Local Government",Homes England,SERVICE RENTS & ESTATE CHARGES,Midlands,GVA GRIMLEY LTD CLIENT A/C,25/09/2020," 1,116.81 ",L,80131500,Lease and rental of property or building
"Ministry of Housing, Communities and Local Government",Homes England,ST Fund Loans Additions,Economic Assets Hub,GOULDEN SIMPSON LIMITED,10/09/2020," 86,490.00 ",,,Loans
"Ministry of Housing, Communities and Local Government",Homes England,RI - SITE VALUATION FEES,Economic Assets Hub,GERALD EVE LLP,04/09/2020," 2,500.00 ",L,80131800,Real estate management services
"Ministry of Housing, Communities and Local Government",Homes England,RI - MONITORING SURVEYOR FEES,Economic Assets Hub,GERALD EVE LLP,07/09/2020," 1,250.00 ",L,80131800,Real estate management services
"Ministry of Housing, Communities and Local Government",Homes England,SECURITY,East And South East,GUARDING UK LTD,16/09/2020, 932.50 ,L,92121500,Guard services
"Ministry of Housing, Communities and Local Government",Homes England,SECURITY,South West,GUARDING UK LTD,16/09/2020, 932.50 ,L,92121500,Guard services
"Ministry of Housing, Communities and Local Government",Homes England,SECURITY,South West,GUARDING UK LTD,16/09/2020, 932.50 ,L,92121500,Guard services
"Ministry of Housing, Communities and Local Government",Homes England,SECURITY,South West,GUARDING UK LTD,16/09/2020, 932.50 ,L,92121500,Guard services
"Ministry of Housing, Communities and Local Government",Homes England,ESTATE GENERAL MAINTENANCE,North East And Yorkshire,JON GEARY T/A JAG TREE SURGERY,01/09/2020," 1,450.00 ",S,72101500,Building maintenance and repair services
"Ministry of Housing, Communities and Local Government",Homes England,ESTATE GENERAL MAINTENANCE,North East And Yorkshire,JON GEARY T/A JAG TREE SURGERY,02/09/2020, 450.00 ,S,72101500,Building maintenance and repair services
"Ministry of Housing, Communities and Local Government",Homes England,ESTATE GENERAL MAINTENANCE,Programmes,G C LANDSCAPE MANAGEMENT LIMITED,10/09/2020, 287.50 ,S,72101500,Building maintenance and repair services
"Ministry of Housing, Communities and Local Government",Homes England,ESTATE GENERAL MAINTENANCE,Programmes,G C LANDSCAPE MANAGEMENT LIMITED,10/09/2020," 1,380.00 ",S,72101500,Building maintenance and repair services
"Ministry of Housing, Communities and Local Government",Homes England,ESTATE GENERAL MAINTENANCE,Programmes,G C LANDSCAPE MANAGEMENT LIMITED,10/09/2020, 650.00 ,S,72101500,Building maintenance and repair services
"Ministry of Housing, Communities and Local Government",Homes England,SERVICE CHARGES,Finance & Corporate Services,GOVERNMENT PROPERTY AGENCY,09/09/2020," 67,805.81 ",G,80131500,Lease and rental of property or building
"Ministry of Housing, Communities and Local Government",Homes England,RENT,Finance & Corporate Services,GOVERNMENT PROPERTY AGENCY,10/09/2020," 4,125.00 ",G,80131500,Lease and rental of property or building
"Ministry of Housing, Communities and Local Government",Homes England,RENT,Finance & Corporate Services,GOVERNMENT PROPERTY AGENCY,10/09/2020," 31,602.75 ",G,80131500,Lease and rental of property or building
"Ministry of Housing, Communities and Local Government",Homes England,SERVICE CHARGES,Finance & Corporate Services,GOVERNMENT PROPERTY AGENCY,10/09/2020," 59,919.30 ",G,80131500,Lease and rental of property or building
"Ministry of Housing, Communities and Local Government",Homes England,SERVICE CHARGES,Finance & Corporate Services,GOVERNMENT PROPERTY AGENCY,10/09/2020," 303,756.49 ",G,80131500,Lease and rental of property or building
"Ministry of Housing, Communities and Local Government",Homes England,ESTATE GENERAL MAINTENANCE,Programmes,G.D.C LIMITED,16/09/2020, 632.00 ,S,72101500,Building maintenance and repair services
"Ministry of Housing, Communities and Local Government",Homes England,MANAGEMENT DEVELOPMENT,Finance & Corporate Services,HAYMARKET MEDIA GROUP,21/09/2020," 3,000.00 ",M,94101500,Business associations
"Ministry of Housing, Communities and Local Government",Homes England,AGENCY STAFF,Programmes,HAYS ACCOUNTANCY & FINANCE,01/09/2020," 6,583.50 ",L,80111600,Temporary personnel services
"Ministry of Housing, Communities and Local Government",Homes England,AGENCY STAFF,Programmes,HAYS ACCOUNTANCY & FINANCE,01/09/2020, 920.85 ,L,80111600,Temporary personnel services
"Ministry of Housing, Communities and Local Government",Homes England,AGENCY STAFF,Programmes,HAYS ACCOUNTANCY & FINANCE,01/09/2020," 6,583.50 ",L,80111600,Temporary personnel services
"Ministry of Housing, Communities and Local Government",Homes England,AGENCY STAFF,Programmes,HAYS ACCOUNTANCY & FINANCE,01/09/2020," 5,925.15 ",L,80111600,Temporary personnel services
"Ministry of Housing, Communities and Local Government",Homes England,AGENCY STAFF,Programmes,HAYS ACCOUNTANCY & FINANCE,04/09/2020, 658.35 ,L,80111600,Temporary personnel services
"Ministry of Housing, Communities and Local Government",Homes England,AGENCY STAFF,Programmes,HAYS ACCOUNTANCY & FINANCE,11/09/2020, 920.85 ,L,80111600,Temporary personnel services
"Ministry of Housing, Communities and Local Government",Homes England,AGENCY STAFF,Programmes,HAYS ACCOUNTANCY & FINANCE,14/09/2020," 5,266.80 ",L,80111600,Temporary personnel services
"Ministry of Housing, Communities and Local Government",Homes England,AGENCY STAFF,Programmes,HAYS ACCOUNTANCY & FINANCE,16/09/2020, 736.68 ,L,80111600,Temporary personnel services
"Ministry of Housing, Communities and Local Government",Homes England,AGENCY STAFF,Executive Office,HAYS ACCOUNTANCY & FINANCE,21/09/2020," 5,206.74 ",L,80111600,Temporary personnel services
"Ministry of Housing, Communities and Local Government",Homes England,MANAGEMENT DEVELOPMENT,Finance & Corporate Services,HAYS ACCOUNTANCY & FINANCE,21/09/2020," 4,295.70 ",L,80111600,Temporary personnel services
"Ministry of Housing, Communities and Local Government",Homes England,AGENCY STAFF,Executive Office,HAYS ACCOUNTANCY & FINANCE,21/09/2020," 2,130.03 ",L,80111600,Temporary personnel services
"Ministry of Housing, Communities and Local Government",Homes England,AGENCY STAFF,Programmes,HAYS ACCOUNTANCY & FINANCE,22/09/2020," 6,583.50 ",L,80111600,Temporary personnel services
"Ministry of Housing, Communities and Local Government",Homes England,AGENCY STAFF,Programmes,HAYS ACCOUNTANCY & FINANCE,28/09/2020," 6,583.50 ",L,80111600,Temporary personnel services
"Ministry of Housing, Communities and Local Government",Homes England,AGENCY STAFF,Programmes,HAYS ACCOUNTANCY & FINANCE,28/09/2020, 920.85 ,L,80111600,Temporary personnel services
"Ministry of Housing, Communities and Local Government",Homes England,AGENCY STAFF,Executive Office,HAYS ACCOUNTANCY & FINANCE,29/09/2020," 1,183.35 ",L,80111600,Temporary personnel services
"Ministry of Housing, Communities and Local Government",Homes England,OTHER PROFESSIONAL FEES,East And South East,ARCADIS CONSULTING (UK) LIMITED,01/09/2020," 48,758.00 ",L,811001500,Civil Engineering
"Ministry of Housing, Communities and Local Government",Homes England,OTHER PROFESSIONAL FEES,East And South East,ARCADIS CONSULTING (UK) LIMITED,01/09/2020," 33,958.00 ",L,811001500,Civil Engineering
"Ministry of Housing, Communities and Local Government",Homes England,AGENCY STAFF,Programmes,ARCADIS CONSULTING (UK) LIMITED,01/09/2020," 12,350.00 ",L,811001500,Civil Engineering
"Ministry of Housing, Communities and Local Government",Homes England,RI - MONITORING SURVEYOR FEES,Economic Assets Hub,ARCADIS CONSULTING (UK) LIMITED,03/09/2020," 1,450.00 ",L,811001500,Civil Engineering
"Ministry of Housing, Communities and Local Government",Homes England,PLANNING APPLICATIONS,East And South East,ARCADIS CONSULTING (UK) LIMITED,03/09/2020," 21,000.00 ",L,811001500,Civil Engineering
"Ministry of Housing, Communities and Local Government",Homes England,Professional Fees Loans Capitalised,Economic Assets Hub,ARCADIS CONSULTING (UK) LIMITED,14/09/2020," 2,500.00 ",L,811001500,Civil Engineering
"Ministry of Housing, Communities and Local Government",Homes England,Professional Fees Loans Capitalised,Economic Assets Hub,ARCADIS CONSULTING (UK) LIMITED,14/09/2020," 2,500.00 ",L,811001500,Civil Engineering
"Ministry of Housing, Communities and Local Government",Homes England,Professional Fees Loans Capitalised,Economic Assets Hub,ARCADIS CONSULTING (UK) LIMITED,14/09/2020," 1,500.00 ",L,811001500,Civil Engineering
"Ministry of Housing, Communities and Local Government",Homes England,Professional Fees Loans Capitalised,Economic Assets Hub,ARCADIS CONSULTING (UK) LIMITED,14/09/2020," 2,500.00 ",L,811001500,Civil Engineering
"Ministry of Housing, Communities and Local Government",Homes England,RI - MONITORING SURVEYOR FEES,Economic Assets Hub,ARCADIS CONSULTING (UK) LIMITED,18/09/2020," 1,450.00 ",L,811001500,Civil Engineering
"Ministry of Housing, Communities and Local Government",Homes England,RI - MONITORING SURVEYOR FEES,Economic Assets Hub,ARCADIS CONSULTING (UK) LIMITED,18/09/2020," 1,400.00 ",L,811001500,Civil Engineering
"Ministry of Housing, Communities and Local Government",Homes England,RI - MONITORING SURVEYOR FEES,Economic Assets Hub,ARCADIS CONSULTING (UK) LIMITED,22/09/2020," 1,450.00 ",L,811001500,Civil Engineering
"Ministry of Housing, Communities and Local Government",Homes England,PLANNING APPLICATIONS,East And South East,ARCADIS CONSULTING (UK) LIMITED,25/09/2020," 33,000.00 ",L,811001500,Civil Engineering
"Ministry of Housing, Communities and Local Government",Homes England,OTHER PROFESSIONAL FEES,South West,ARCADIS CONSULTING (UK) LIMITED,28/09/2020," 40,000.00 ",L,811001500,Civil Engineering
"Ministry of Housing, Communities and Local Government",Homes England,OTHER PROFESSIONAL FEES,South West,ARCADIS CONSULTING (UK) LIMITED,28/09/2020," 22,000.00 ",L,811001500,Civil Engineering
"Ministry of Housing, Communities and Local Government",Homes England,ENGINEERING FEES,East And South East,ARCADIS CONSULTING (UK) LIMITED,29/09/2020," 44,971.39 ",L,811001500,Civil Engineering
"Ministry of Housing, Communities and Local Government",Homes England,ENGINEERING FEES,East And South East,ARCADIS CONSULTING (UK) LIMITED,29/09/2020," 52,563.00 ",L,811001500,Civil Engineering
"Ministry of Housing, Communities and Local Government",Homes England,ENGINEERING FEES,East And South East,ARCADIS CONSULTING (UK) LIMITED,29/09/2020," 35,379.00 ",L,811001500,Civil Engineering
"Ministry of Housing, Communities and Local Government",Homes England,PLANNING APPLICATIONS,East And South East,ARCADIS CONSULTING (UK) LIMITED,29/09/2020," 21,000.00 ",L,811001500,Civil Engineering
"Ministry of Housing, Communities and Local Government",Homes England,ENGINEERING FEES,East And South East,ARCADIS CONSULTING (UK) LIMITED,29/09/2020," 47,565.00 ",L,811001500,Civil Engineering
"Ministry of Housing, Communities and Local Government",Homes England,OTHER PROFESSIONAL FEES,East And South East,ARCADIS CONSULTING (UK) LIMITED,30/09/2020," 27,755.00 ",L,811001500,Civil Engineering
"Ministry of Housing, Communities and Local Government",Homes England,FURNITURE & EQUIPMENT-MAINTENANCE,Finance & Corporate Services,HSS HIRE SERVICE GROUP PLC,15/09/2020," 1,095.00 ",L,72102900,Facility maintenance and repair services
"Ministry of Housing, Communities and Local Government",Homes England,PROPERTY SERVICES,Programmes,MALCOLM HOLLIS LLP,17/09/2020," 7,598.00 ",S,80131500,Lease and rental of property or building
"Ministry of Housing, Communities and Local Government",Homes England,PROPERTY SERVICES,South West,HENDERSON & TAYLOR FM LIMITED,07/09/2020, 520.00 ,S,72101500,Building maintenance and repair services
"Ministry of Housing, Communities and Local Government",Homes England,LANDSCAPE MAINT-BUILT ESTATE,South West,HENDERSON & TAYLOR FM LIMITED,22/09/2020," 3,465.00 ",S,72101500,Building maintenance and repair services
"Ministry of Housing, Communities and Local Government",Homes England,PROPERTY SERVICES,South West,HARTNELL TAYLOR COOK LLP,10/09/2020," 3,900.00 ",M,80131800,Real estate management services
"Ministry of Housing, Communities and Local Government",Homes England,PROPERTY SERVICES,South West,HARTNELL TAYLOR COOK LLP,10/09/2020," 1,760.00 ",M,80131800,Real estate management services
"Ministry of Housing, Communities and Local Government",Homes England,PROPERTY SERVICES,South West,HARTNELL TAYLOR COOK LLP,11/09/2020, 352.00 ,M,80131800,Real estate management services
"Ministry of Housing, Communities and Local Government",Homes England,PROPERTY SERVICES,Programmes,HARTNELL TAYLOR COOK LLP,18/09/2020," 1,850.00 ",M,80131800,Real estate management services
"Ministry of Housing, Communities and Local Government",Homes England,MANAGEMENT COSTS,South West,HARTNELL TAYLOR COOK LLP,30/09/2020, 465.00 ,M,80131800,Real estate management services
"Ministry of Housing, Communities and Local Government",Homes England,PROPERTY SERVICES,South West,HARTNELL TAYLOR COOK LLP,30/09/2020, 575.00 ,M,80131800,Real estate management services
"Ministry of Housing, Communities and Local Government",Homes England,PROPERTY SERVICES,South West,HARTNELL TAYLOR COOK LLP,30/09/2020," 1,437.50 ",M,80131800,Real estate management services
"Ministry of Housing, Communities and Local Government",Homes England,PROPERTY SERVICES,South West,HARTNELL TAYLOR COOK LLP,30/09/2020, 487.50 ,M,80131800,Real estate management services
"Ministry of Housing, Communities and Local Government",Homes England,PROPERTY SERVICES,South West,HARTNELL TAYLOR COOK LLP,30/09/2020," 1,050.00 ",M,80131800,Real estate management services
"Ministry of Housing, Communities and Local Government",Homes England,PROPERTY SERVICES,South West,HARTNELL TAYLOR COOK LLP,30/09/2020, 937.50 ,M,80131800,Real estate management services
"Ministry of Housing, Communities and Local Government",Homes England,MANAGEMENT COSTS,South West,HARTNELL TAYLOR COOK LLP,30/09/2020," 1,030.00 ",M,80131800,Real estate management services
"Ministry of Housing, Communities and Local Government",Homes England,PROPERTY SERVICES,South West,HARTNELL TAYLOR COOK LLP,30/09/2020," 1,755.00 ",M,80131800,Real estate management services
"Ministry of Housing, Communities and Local Government",Homes England,PROPERTY SERVICES,South West,HARTNELL TAYLOR COOK LLP,30/09/2020, 687.50 ,M,80131800,Real estate management services
"Ministry of Housing, Communities and Local Government",Homes England,PROPERTY SERVICES,South West,HARTNELL TAYLOR COOK LLP,30/09/2020," 1,830.00 ",M,80131800,Real estate management services
"Ministry of Housing, Communities and Local Government",Homes England,MISC PROFESSIONAL FEES,South West,HARTNELL TAYLOR COOK LLP,30/09/2020, 755.00 ,M,80131800,Real estate management services
"Ministry of Housing, Communities and Local Government",Homes England,PROPERTY SERVICES,South West,HARTNELL TAYLOR COOK LLP,30/09/2020, 950.00 ,M,80131800,Real estate management services
"Ministry of Housing, Communities and Local Government",Homes England,PROPERTY SERVICES,South West,HARTNELL TAYLOR COOK LLP,30/09/2020," 1,000.00 ",M,80131800,Real estate management services
"Ministry of Housing, Communities and Local Government",Homes England,PROPERTY SERVICES,South West,HARTNELL TAYLOR COOK LLP,30/09/2020, 935.00 ,M,80131800,Real estate management services
"Ministry of Housing, Communities and Local Government",Homes England,PROPERTY SERVICES,South West,HARTNELL TAYLOR COOK LLP,30/09/2020," 1,551.00 ",M,80131800,Real estate management services
"Ministry of Housing, Communities and Local Government",Homes England,PROPERTY SERVICES,South West,HARTNELL TAYLOR COOK LLP,30/09/2020," 1,100.00 ",M,80131800,Real estate management services
"Ministry of Housing, Communities and Local Government",Homes England,PROPERTY SERVICES,South West,HARTNELL TAYLOR COOK LLP,30/09/2020, 575.00 ,M,80131800,Real estate management services
"Ministry of Housing, Communities and Local Government",Homes England,PROPERTY SERVICES,South West,HARTNELL TAYLOR COOK LLP,30/09/2020, 950.00 ,M,80131800,Real estate management services
"Ministry of Housing, Communities and Local Government",Homes England,ST Fund Loans Additions,Economic Assets Hub,HARTFORTH HOMES (WEST WITTON) LIMITED,18/09/2020," 87,803.97 ",,,Loans
"Ministry of Housing, Communities and Local Government",Homes England,PENSION SCHEME FEES,Finance & Corporate Services,HYMANS ROBERTSON,15/09/2020," 9,475.00 ",L,84131700,Pension funds
"Ministry of Housing, Communities and Local Government",Homes England,MISC PROFESSIONAL FEES (ADMIN ONLY),Finance & Corporate Services,HARVEYHR LTD,02/09/2020, 900.00 ,S,86101800,In service training and manpower development
"Ministry of Housing, Communities and Local Government",Homes England,MISC PROFESSIONAL FEES (ADMIN ONLY),Finance & Corporate Services,HARVEYHR LTD,30/09/2020, 450.00 ,S,86101800,In service training and manpower development
"Ministry of Housing, Communities and Local Government",Homes England,Managed Funds - Additions,Programmes,HOUSING GROWTH PARTNERSHIP LIMITED,28/09/2020," 959,590.63 ",,,Loans
"Ministry of Housing, Communities and Local Government",Homes England,OFFICE RELOCATION COSTS,Finance & Corporate Services,HARROW GREEN LIMITED,18/09/2020, 675.00 ,L,72102900,Facility maintenance and repair services
"Ministry of Housing, Communities and Local Government",Homes England,OFFICE RELOCATION COSTS,Finance & Corporate Services,HARROW GREEN LIMITED,22/09/2020," 2,080.00 ",L,72102900,Facility maintenance and repair services
"Ministry of Housing, Communities and Local Government",Homes England,OFFICE RELOCATION COSTS,Finance & Corporate Services,HARROW GREEN LIMITED,22/09/2020, 577.00 ,L,72102900,Facility maintenance and repair services
"Ministry of Housing, Communities and Local Government",Homes England,OFFICE RELOCATION COSTS,Finance & Corporate Services,HARROW GREEN LIMITED,22/09/2020," 2,470.00 ",L,72102900,Facility maintenance and repair services
"Ministry of Housing, Communities and Local Government",Homes England,OFFICE RELOCATION COSTS,Finance & Corporate Services,HARROW GREEN LIMITED,30/09/2020," 2,940.00 ",L,72102900,Facility maintenance and repair services
"Ministry of Housing, Communities and Local Government",Homes England,FENCE MAINTENANCE,Programmes,HERON CONSTRUCTIVE SOLUTIONS LTD,21/09/2020, 875.00 ,S,80131800,Real estate management services
"Ministry of Housing, Communities and Local Government",Homes England,LT Fund Loans (Ps) Additions,Economic Assets Hub,HENLEY CAMLAND EBBSFLEET 801 LIMITED,22/09/2020," 295,375.00 ",,,Loans
"Ministry of Housing, Communities and Local Government",Homes England,LT Fund Loans (Ps) Additions,Economic Assets Hub,HODSON DEVELOPMENTS (ASHFORD) LTD.,21/09/2020," 110,869.65 ",,,Loans
"Ministry of Housing, Communities and Local Government",Homes England,ESTATE GENERAL MAINTENANCE,Programmes,T HODGSON PLANT HIRE,29/09/2020," 2,695.00 ",S,72102900,Facility maintenance and repair services
"Ministry of Housing, Communities and Local Government",Homes England,AGENCY STAFF,Finance & Corporate Services,HALES GROUP LTD,23/09/2020, 334.29 ,M,80111600,Temporary personnel services
"Ministry of Housing, Communities and Local Government",Homes England,ESTATE GENERAL MAINTENANCE,North West,HORIZON ARBORICULTURE,30/09/2020, 330.00 ,S,72101500,Building maintenance and repair services
"Ministry of Housing, Communities and Local Government",Homes England,LEGAL FEES,East And South East,HEWITSONS SOLICITORS,01/09/2020," 1,794.00 ",M,80121600,Business law services
"Ministry of Housing, Communities and Local Government",Homes England,LEGAL FEES,East And South East,HEWITSONS SOLICITORS,02/09/2020," 1,345.50 ",M,80121600,Business law services
"Ministry of Housing, Communities and Local Government",Homes England,Professional Fees Loans Capitalised,Economic Assets Hub,HEWITSONS SOLICITORS,03/09/2020," 10,875.40 ",M,80121600,Business law services
"Ministry of Housing, Communities and Local Government",Homes England,LEGAL FEES,North West,HEWITSONS SOLICITORS,03/09/2020, 380.00 ,M,80121600,Business law services
"Ministry of Housing, Communities and Local Government",Homes England,LEGAL FEES,Economic Assets Hub,HEWITSONS SOLICITORS,04/09/2020, 352.31 ,M,80121600,Business law services
"Ministry of Housing, Communities and Local Government",Homes England,LEGAL FEES,East And South East,HEWITSONS SOLICITORS,04/09/2020," 1,017.00 ",M,80121600,Business law services
"Ministry of Housing, Communities and Local Government",Homes England,LEGAL FEES,North East And Yorkshire,HEWITSONS SOLICITORS,07/09/2020, 285.00 ,M,80121600,Business law services
"Ministry of Housing, Communities and Local Government",Homes England,LEGAL FEES,North West,HEWITSONS SOLICITORS,09/09/2020, 925.00 ,M,80121600,Business law services
"Ministry of Housing, Communities and Local Government",Homes England,LEGAL FEES (ADMIN ONLY),Programmes,HEWITSONS SOLICITORS,10/09/2020," 3,740.00 ",M,80121600,Business law services
"Ministry of Housing, Communities and Local Government",Homes England,DISPOSAL FEES - LEGAL,Midlands,HEWITSONS SOLICITORS,11/09/2020, 760.00 ,M,80121600,Business law services
"Ministry of Housing, Communities and Local Government",Homes England,LEGAL FEES,North West,HEWITSONS SOLICITORS,14/09/2020, 285.00 ,M,80121600,Business law services
"Ministry of Housing, Communities and Local Government",Homes England,DISPOSAL FEES - LEGAL,North West,HEWITSONS SOLICITORS,21/09/2020, 570.00 ,M,80121600,Business law services
"Ministry of Housing, Communities and Local Government",Homes England,DISPOSAL FEES - LEGAL,South West,HEWITSONS SOLICITORS,23/09/2020, 700.00 ,M,80121600,Business law services
"Ministry of Housing, Communities and Local Government",Homes England,LEGAL FEES,North West,HEWITSONS SOLICITORS,30/09/2020, 507.10 ,M,80121600,Business law services
"Ministry of Housing, Communities and Local Government",Homes England,DISPOSAL FEES - LEGAL,East And South East,HEWITSONS SOLICITORS,30/09/2020," 1,608.17 ",M,80121600,Business law services
"Ministry of Housing, Communities and Local Government",Homes England,MISC PROFESSIONAL FEES (ADMIN ONLY),Finance & Corporate Services,KORN FERRY (UK)LIMITED,23/09/2020," 16,000.00 ",L,86101800,In service training and manpower development
"Ministry of Housing, Communities and Local Government",Homes England,SIGNS & NOTICEBOARDS,Midlands,INNOVATIVE IGLOO LIMITED,23/09/2020, 550.00 ,S,55121700,Signage
"Ministry of Housing, Communities and Local Government",Homes England,LANDSCAPING & PLANTS,Finance & Corporate Services,INDUSTRIAL LANDSCAPES LIMITED,03/09/2020, 411.06 ,S,72101500,Building maintenance and repair services
"Ministry of Housing, Communities and Local Government",Homes England,CLEANING,Finance & Corporate Services,INDEPTH MANAGED SERVICES,02/09/2020, 318.36 ,L,76111500,General building and office cleaining and maintenance services
"Ministry of Housing, Communities and Local Government",Homes England,CLEANING,Finance & Corporate Services,INDEPTH MANAGED SERVICES,02/09/2020," 4,229.64 ",L,76111500,General building and office cleaining and maintenance services
"Ministry of Housing, Communities and Local Government",Homes England,Other Intangibles Additions,Finance & Corporate Services,INVESTIGO LIMITED,02/09/2020," 3,125.00 ",L,80111600,Temporary personnel services
"Ministry of Housing, Communities and Local Government",Homes England,Other Intangibles Additions,Finance & Corporate Services,INVESTIGO LIMITED,02/09/2020," 2,812.50 ",L,80111600,Temporary personnel services
"Ministry of Housing, Communities and Local Government",Homes England,Other Intangibles Additions,Finance & Corporate Services,INVESTIGO LIMITED,02/09/2020," 3,125.00 ",L,80111600,Temporary personnel services
"Ministry of Housing, Communities and Local Government",Homes England,Other Intangibles Additions,Finance & Corporate Services,INVESTIGO LIMITED,02/09/2020," 2,500.00 ",L,80111600,Temporary personnel services
"Ministry of Housing, Communities and Local Government",Homes England,Other Intangibles Additions,Finance & Corporate Services,INVESTIGO LIMITED,02/09/2020," 3,125.00 ",L,80111600,Temporary personnel services
"Ministry of Housing, Communities and Local Government",Homes England,Other Intangibles Additions,Finance & Corporate Services,INVESTIGO LIMITED,02/09/2020," 3,125.00 ",L,80111600,Temporary personnel services
"Ministry of Housing, Communities and Local Government",Homes England,Other Intangibles Additions,Finance & Corporate Services,INVESTIGO LIMITED,02/09/2020," 3,200.00 ",L,80111600,Temporary personnel services
"Ministry of Housing, Communities and Local Government",Homes England,Other Intangibles Additions,Finance & Corporate Services,INVESTIGO LIMITED,02/09/2020," 2,925.00 ",L,80111600,Temporary personnel services
"Ministry of Housing, Communities and Local Government",Homes England,Other Intangibles Additions,Finance & Corporate Services,INVESTIGO LIMITED,29/09/2020," 3,250.00 ",L,80111600,Temporary personnel services
"Ministry of Housing, Communities and Local Government",Homes England,Other Intangibles Additions,Finance & Corporate Services,INVESTIGO LIMITED,29/09/2020," 3,250.00 ",L,80111600,Temporary personnel services
"Ministry of Housing, Communities and Local Government",Homes England,Other Intangibles Additions,Finance & Corporate Services,INVESTIGO LIMITED,29/09/2020," 2,600.00 ",L,80111600,Temporary personnel services
"Ministry of Housing, Communities and Local Government",Homes England,Other Intangibles Additions,Finance & Corporate Services,INVESTIGO LIMITED,29/09/2020," 3,250.00 ",L,80111600,Temporary personnel services
"Ministry of Housing, Communities and Local Government",Homes England,Other Intangibles Additions,Finance & Corporate Services,INVESTIGO LIMITED,29/09/2020," 3,250.00 ",L,80111600,Temporary personnel services
"Ministry of Housing, Communities and Local Government",Homes England,ST Fund Loans Additions,Economic Assets Hub,IPCJC LIMITED,23/09/2020," 131,045.00 ",,,Loans
"Ministry of Housing, Communities and Local Government",Homes England,Other Intangibles Additions,Finance & Corporate Services,INTERQUEST GROUP UK LIMITED,02/09/2020," 6,154.00 ",L,80111600,Temporary personnel services
"Ministry of Housing, Communities and Local Government",Homes England,Other Intangibles Additions,Finance & Corporate Services,INTERQUEST GROUP UK LIMITED,02/09/2020," 3,000.00 ",L,80111600,Temporary personnel services
"Ministry of Housing, Communities and Local Government",Homes England,Other Intangibles Additions,Finance & Corporate Services,INTERQUEST GROUP UK LIMITED,04/09/2020," 9,500.00 ",L,80111600,Temporary personnel services
"Ministry of Housing, Communities and Local Government",Homes England,Other Intangibles Additions,Finance & Corporate Services,INTERQUEST GROUP UK LIMITED,09/09/2020," 12,000.00 ",L,80111600,Temporary personnel services
"Ministry of Housing, Communities and Local Government",Homes England,Other Intangibles Additions,Finance & Corporate Services,INTERQUEST GROUP UK LIMITED,11/09/2020," 2,400.00 ",L,80111600,Temporary personnel services
"Ministry of Housing, Communities and Local Government",Homes England,BESPOKE DEVELOPMENT SUPPORT,Finance & Corporate Services,INTERQUEST GROUP UK LIMITED,18/09/2020," 10,483.20 ",L,80111600,Temporary personnel services
"Ministry of Housing, Communities and Local Government",Homes England,Other Intangibles Additions,Finance & Corporate Services,INTERQUEST GROUP UK LIMITED,18/09/2020," 3,000.00 ",L,80111600,Temporary personnel services
"Ministry of Housing, Communities and Local Government",Homes England,Other Intangibles Additions,Finance & Corporate Services,INTERQUEST GROUP UK LIMITED,30/09/2020," 6,000.00 ",L,80111600,Temporary personnel services
"Ministry of Housing, Communities and Local Government",Homes England,PLANNING APPLICATIONS,South West,JONES LANG LASALLE,07/09/2020," 4,000.00 ",L,80131800,Real estate management services
"Ministry of Housing, Communities and Local Government",Homes England,DISPOSAL FEES - PROPERTY AGENTS & ADVERTISING,North West,JONES LANG LASALLE,17/09/2020," 1,750.00 ",L,80131800,Real estate management services
"Ministry of Housing, Communities and Local Government",Homes England,Professional Fees Loans Capitalised,Economic Assets Hub,JONES LANG LASALLE,18/09/2020," 2,750.00 ",L,80131800,Real estate management services
"Ministry of Housing, Communities and Local Government",Homes England,ST Fund Loans Additions,Economic Assets Hub,JG CHATHAM LIMITED,28/09/2020," 3,542,700.00 ",,,Loans
"Ministry of Housing, Communities and Local Government",Homes England,ESTATE GENERAL MAINTENANCE,East And South East,JB LANDSCAPE & PROPERTY MAINTENANCE LTD,04/09/2020, 285.00 ,S,72101500,Building maintenance and repair services
"Ministry of Housing, Communities and Local Government",Homes England,ESTATE GENERAL MAINTENANCE,East And South East,JB LANDSCAPE & PROPERTY MAINTENANCE LTD,30/09/2020, 285.00 ,S,72101500,Building maintenance and repair services
"Ministry of Housing, Communities and Local Government",Homes England,SERVICE CHARGE,Programmes,JONES LANG LASALLE,28/09/2020," 9,317.59 ",L,80131800,Real estate management services
"Ministry of Housing, Communities and Local Government",Homes England,SERVICE CHARGE,Programmes,JONES LANG LASALLE,28/09/2020," 13,512.50 ",L,80131800,Real estate management services
"Ministry of Housing, Communities and Local Government",Homes England,POSTAGE/COURIERS,Finance & Corporate Services,JCP LIGHT HAULAGE,11/09/2020," 4,415.00 ",S,78102200,Postal and small parcel and courier services
"Ministry of Housing, Communities and Local Government",Homes England,ENGINEERING FEES,Programmes,KITCHEN CIVILS LTD,23/09/2020," 106,354.53 ",M,72141500,Land preparation services
"Ministry of Housing, Communities and Local Government",Homes England,MISC PROFESSIONAL FEES (ADMIN ONLY),Executive Office,CSL - KPMG LLP,23/09/2020," 101,400.00 ",L,86101800,In service training and manpower development
"Ministry of Housing, Communities and Local Government",Homes England,SECURITY (Incl Fire Prevention),Finance & Corporate Services,CHUBB FIRE LIMITED,11/09/2020," 2,210.54 ",L,72102900,Facility maintenance and repair services
"Ministry of Housing, Communities and Local Government",Homes England,ST Fund Loans Additions,Economic Assets Hub,KINGSWOOD HOMES (FORTON) LIMITED,22/09/2020," 310,564.00 ",,,Loans
"Ministry of Housing, Communities and Local Government",Homes England,ST Fund Loans Additions,Economic Assets Hub,KINGSTON REAL ESTATE (NEW HOMES) LIMITED,02/09/2020," 123,649.00 ",,,Loans
"Ministry of Housing, Communities and Local Government",Homes England,ST Fund Loans Additions,Economic Assets Hub,KINGSTON REAL ESTATE (NEW HOMES) LIMITED,25/09/2020," 143,078.00 ",,,Loans
"Ministry of Housing, Communities and Local Government",Homes England,ST Fund Loans Additions,Economic Assets Hub,KINGSWOOD HOMES ESTATES LIMITED,30/09/2020," 1,027,019.79 ",,,Loans
"Ministry of Housing, Communities and Local Government",Homes England,ST Fund Loans Additions,Economic Assets Hub,KINGSWOOD HOMES DEVON LIMITED,21/09/2020," 275,184.33 ",,,Loans
"Ministry of Housing, Communities and Local Government",Homes England,ESTATE GENERAL MAINTENANCE,East And South East,KINGS LANDSCAPES,04/09/2020, 300.00 ,S,72101500,Building maintenance and repair services
"Ministry of Housing, Communities and Local Government",Homes England,ESTATE GENERAL MAINTENANCE,East And South East,KINGS LANDSCAPES,04/09/2020, 400.00 ,S,72101500,Building maintenance and repair services
"Ministry of Housing, Communities and Local Government",Homes England,ESTATE GENERAL MAINTENANCE,East And South East,KINGS LANDSCAPES,04/09/2020, 550.00 ,S,72101500,Building maintenance and repair services
"Ministry of Housing, Communities and Local Government",Homes England,SUNDRIES,East And South East,KINGS LANDSCAPES,04/09/2020, 700.00 ,S,72101500,Building maintenance and repair services
"Ministry of Housing, Communities and Local Government",Homes England,FENCE MAINTENANCE,East And South East,KINGS LANDSCAPES,04/09/2020, 750.00 ,S,72101500,Building maintenance and repair services
"Ministry of Housing, Communities and Local Government",Homes England,FENCE MAINTENANCE,East And South East,KINGS LANDSCAPES,04/09/2020," 1,160.00 ",S,72101500,Building maintenance and repair services
"Ministry of Housing, Communities and Local Government",Homes England,FENCE MAINTENANCE,East And South East,KINGS LANDSCAPES,04/09/2020," 1,950.00 ",S,72101500,Building maintenance and repair services
"Ministry of Housing, Communities and Local Government",Homes England,ESTATE GENERAL MAINTENANCE,South West,KINGS LANDSCAPES,07/09/2020, 276.62 ,S,72101500,Building maintenance and repair services
"Ministry of Housing, Communities and Local Government",Homes England,ESTATE GENERAL MAINTENANCE,South West,KINGS LANDSCAPES,07/09/2020, 293.25 ,S,72101500,Building maintenance and repair services
"Ministry of Housing, Communities and Local Government",Homes England,ESTATE GENERAL MAINTENANCE,South West,KINGS LANDSCAPES,07/09/2020, 325.00 ,S,72101500,Building maintenance and repair services
"Ministry of Housing, Communities and Local Government",Homes England,ESTATE GENERAL MAINTENANCE,South East,KINGS LANDSCAPES,10/09/2020, 260.00 ,S,72101500,Building maintenance and repair services
"Ministry of Housing, Communities and Local Government",Homes England,COURSES & CONFERENCES,Finance & Corporate Services,THE KNOWLEDGE ACADEMY LIMITED,01/09/2020," 1,795.00 ",M,86101800,In service training and manpower development
"Ministry of Housing, Communities and Local Government",Homes England,DRAINS & SEWERS,North East And Yorkshire,KELMEC LTD,10/09/2020," 1,250.00 ",S,72101500,Building maintenance and repair services
"Ministry of Housing, Communities and Local Government",Homes England,RI - MONITORING SURVEYOR FEES,Economic Assets Hub,LAMBERT SMITH HAMPTON,02/09/2020, 700.00 ,L,80131800,Real estate management services
"Ministry of Housing, Communities and Local Government",Homes England,RI - MONITORING SURVEYOR FEES,Economic Assets Hub,LAMBERT SMITH HAMPTON,02/09/2020, 750.00 ,L,80131800,Real estate management services
"Ministry of Housing, Communities and Local Government",Homes England,DISPOSAL FEES - LEGAL,North East And Yorkshire,LAMBERT SMITH HAMPTON,02/09/2020, 750.00 ,L,80131800,Real estate management services
"Ministry of Housing, Communities and Local Government",Homes England,RI - MONITORING SURVEYOR FEES,Economic Assets Hub,LAMBERT SMITH HAMPTON,02/09/2020," 5,963.00 ",L,80131800,Real estate management services
"Ministry of Housing, Communities and Local Government",Homes England,Professional Fees Loans Capitalised,Economic Assets Hub,LAMBERT SMITH HAMPTON,03/09/2020," 2,100.00 ",L,80131800,Real estate management services
"Ministry of Housing, Communities and Local Government",Homes England,RI - MONITORING SURVEYOR FEES,Economic Assets Hub,LAMBERT SMITH HAMPTON,03/09/2020, 650.00 ,L,80131800,Real estate management services
"Ministry of Housing, Communities and Local Government",Homes England,RI - MONITORING SURVEYOR FEES,Economic Assets Hub,LAMBERT SMITH HAMPTON,04/09/2020, 650.00 ,L,80131800,Real estate management services
"Ministry of Housing, Communities and Local Government",Homes England,OPEN MARKET VALUATION FEE,South West,LAMBERT SMITH HAMPTON,07/09/2020," 4,250.00 ",L,80131800,Real estate management services
"Ministry of Housing, Communities and Local Government",Homes England,OPEN MARKET VALUATION FEE,South West,LAMBERT SMITH HAMPTON,08/09/2020," 3,500.00 ",L,80131800,Real estate management services
"Ministry of Housing, Communities and Local Government",Homes England,PROPERTY SERVICES,South West,LAMBERT SMITH HAMPTON,10/09/2020," 6,450.00 ",L,80131800,Real estate management services
"Ministry of Housing, Communities and Local Government",Homes England,PROPERTY SERVICES,North West,LAMBERT SMITH HAMPTON,14/09/2020," 7,000.00 ",L,80131800,Real estate management services
"Ministry of Housing, Communities and Local Government",Homes England,Professional Fees Loans Capitalised,Economic Assets Hub,LAMBERT SMITH HAMPTON,16/09/2020," 4,500.00 ",L,80131800,Real estate management services
"Ministry of Housing, Communities and Local Government",Homes England,ESTATE AGENTS FEES,North East And Yorkshire,LAMBERT SMITH HAMPTON,23/09/2020, 375.00 ,L,80131800,Real estate management services
"Ministry of Housing, Communities and Local Government",Homes England,Professional Fees Loans Capitalised,Economic Assets Hub,LAMBERT SMITH HAMPTON,28/09/2020," 1,950.00 ",L,80131800,Real estate management services
"Ministry of Housing, Communities and Local Government",Homes England,RI - MONITORING SURVEYOR FEES,Economic Assets Hub,LAMBERT SMITH HAMPTON,28/09/2020, 950.00 ,L,80131800,Real estate management services
"Ministry of Housing, Communities and Local Government",Homes England,RI - MONITORING SURVEYOR FEES,Economic Assets Hub,LAMBERT SMITH HAMPTON,28/09/2020, 950.00 ,L,80131800,Real estate management services
"Ministry of Housing, Communities and Local Government",Homes England,RI - MONITORING SURVEYOR FEES,Economic Assets Hub,LAMBERT SMITH HAMPTON,28/09/2020, 850.00 ,L,80131800,Real estate management services
"Ministry of Housing, Communities and Local Government",Homes England,REVENUE GRANTS TO RPs,Midlands,STONEWATER (2) LTD,11/09/2020," 51,400.00 ",L,,Grants
"Ministry of Housing, Communities and Local Government",Homes England,Professional Fees Loans Capitalised,Programmes,LOCKTON COMPANIES LLP,23/09/2020," 2,000.00 ",L,84131500,Insurance services for strcutures and property and possessions
"Ministry of Housing, Communities and Local Government",Homes England,CAPITAL GRANTS TO RPs (NOT LA),South West,SANCTUARY HOUSING ASSOCIATION,28/09/2020," 99,527.00 ",L,,Grants
"Ministry of Housing, Communities and Local Government",Homes England,CAPITAL GRANTS TO RPs (NOT LA),South West,SANCTUARY HOUSING ASSOCIATION,28/09/2020," 71,216.00 ",L,,Grants
"Ministry of Housing, Communities and Local Government",Homes England,REVENUE GRANTS TO RPs,Midlands,STONEWATER (3) LTD,23/09/2020," 40,500.00 ",,,Grants
"Ministry of Housing, Communities and Local Government",Homes England,CAPITAL GRANTS TO RPs (NOT LA),South West,KNIGHTSTONE HOUSING ASSOCIATION LIMITED,11/09/2020," 140,000.00 ",,,Grants
"Ministry of Housing, Communities and Local Government",Homes England,CAPITAL GRANTS TO RPs (NOT LA),South West,KNIGHTSTONE HOUSING ASSOCIATION LIMITED,30/09/2020," 288,479.00 ",,,Grants
"Ministry of Housing, Communities and Local Government",Homes England,ST Fund Loans Additions,Economic Assets Hub,L M W DEVELOPMENT SOLUTIONS LIMITED,08/09/2020," 82,846.34 ",,,Loans
"Ministry of Housing, Communities and Local Government",Homes England,CAPITAL GRANTS TO RPs (NOT LA),North West,WARRINGTON HOUSING ASSOCIATION LIMITED,29/09/2020," 187,500.00 ",,,Grants
"Ministry of Housing, Communities and Local Government",Homes England,PROPERTY SERVICES,Midlands,THOMAS LISTER LTD,01/09/2020," 2,422.00 ",S,80131800,Real estate management services
"Ministry of Housing, Communities and Local Government",Homes England,OPEN MARKET VALUATION FEE,Programmes,THOMAS LISTER LTD,01/09/2020," 2,500.00 ",S,80131800,Real estate management services
"Ministry of Housing, Communities and Local Government",Homes England,OPEN MARKET VALUATION FEE,Programmes,THOMAS LISTER LTD,01/09/2020," 2,579.00 ",S,80131800,Real estate management services
"Ministry of Housing, Communities and Local Government",Homes England,Professional Fees Loans Capitalised,Economic Assets Hub,THOMAS LISTER LTD,03/09/2020," 2,000.00 ",S,80131800,Real estate management services
"Ministry of Housing, Communities and Local Government",Homes England,OPEN MARKET VALUATION FEE,Programmes,THOMAS LISTER LTD,07/09/2020," 4,000.00 ",S,80131800,Real estate management services
"Ministry of Housing, Communities and Local Government",Homes England,OPEN MARKET VALUATION FEE,Programmes,THOMAS LISTER LTD,14/09/2020," 2,500.00 ",S,80131800,Real estate management services
"Ministry of Housing, Communities and Local Government",Homes England,DISPOSAL FEES - PROPERTY AGENTS & ADVERTISING,Programmes,THOMAS LISTER LTD,23/09/2020, 475.00 ,S,80131800,Real estate management services
"Ministry of Housing, Communities and Local Government",Homes England,Professional Fees Loans Capitalised,Economic Assets Hub,THOMAS LISTER LTD,30/09/2020, 600.00 ,S,80131800,Real estate management services
"Ministry of Housing, Communities and Local Government",Homes England,PROPERTY SERVICES,Midlands,THOMAS LISTER LTD,30/09/2020," 1,410.00 ",S,80131800,Real estate management services
"Ministry of Housing, Communities and Local Government",Homes England,Help To Buy Additions,South West,PLACES FOR PEOPLE,25/09/2020," 44,000.00 ",L,,Grants
"Ministry of Housing, Communities and Local Government",Homes England,Help To Buy Additions,South West,PLACES FOR PEOPLE,25/09/2020," 43,000.00 ",L,,Grants
"Ministry of Housing, Communities and Local Government",Homes England,CAPITAL GRANTS TO RPs (NOT LA),South West,SWAYTHLING HOUSING SOCIETY LIMITED,22/09/2020," 236,500.00 ",L,,Grants
"Ministry of Housing, Communities and Local Government",Homes England,REVENUE GRANTS TO RPs,South West,SWAYTHLING HOUSING SOCIETY LIMITED,30/09/2020," 4,826.00 ",L,,Grants
"Ministry of Housing, Communities and Local Government",Homes England,CONTRIBUTIONS,Programmes,Bournville Village Trust,09/09/2020," 32,137.40 ",,,Grants
"Ministry of Housing, Communities and Local Government",Homes England,REVENUE GRANTS TO RPs,Midlands,DERWENT HOUSING ASSOCIATION LIMITED,25/09/2020," 58,400.00 ",,,Grants
"Ministry of Housing, Communities and Local Government",Homes England,CAPITAL GRANTS TO RPs (NOT LA),East & South East,HUNDRED HOUSES SOCIETY LIMITED,22/09/2020," 16,000.00 ",,,Grants
"Ministry of Housing, Communities and Local Government",Homes England,REVENUE GRANTS TO RPs,Midlands,METROPOLITAN HOUSING TRUST LIMITED,23/09/2020," 53,750.00 ",,,Grants
"Ministry of Housing, Communities and Local Government",Homes England,CAR LEASING - HIRE CHARGES,Programmes,LOOKERS LEASING,08/09/2020," 2,322.84 ",S,25101500,Passenger motor vehicles
"Ministry of Housing, Communities and Local Government",Homes England,CAR LEASING - HIRE CHARGES,Programmes,LOOKERS LEASING,08/09/2020," 2,947.44 ",S,25101500,Passenger motor vehicles
"Ministry of Housing, Communities and Local Government",Homes England,CAR LEASING - HIRE CHARGES,Programmes,LOOKERS LEASING,08/09/2020," 1,219.56 ",S,25101500,Passenger motor vehicles
"Ministry of Housing, Communities and Local Government",Homes England,CAR LEASING - HIRE CHARGES,Programmes,LOOKERS LEASING,08/09/2020," 1,740.60 ",S,25101500,Passenger motor vehicles
"Ministry of Housing, Communities and Local Government",Homes England,CAR LEASING - HIRE CHARGES,North East And Yorkshire,LEX AUTOLEASE LTD,08/09/2020," 1,750.98 ",L,25101500,Passenger motor vehicles
"Ministry of Housing, Communities and Local Government",Homes England,CAR LEASING - HIRE CHARGES,North East And Yorkshire,LEX AUTOLEASE LTD,08/09/2020," 2,414.10 ",L,25101500,Passenger motor vehicles
"Ministry of Housing, Communities and Local Government",Homes England,CAR LEASING - OTHER COSTS,Programmes,LEX AUTOLEASE LTD,08/09/2020, 554.02 ,L,25101500,Passenger motor vehicles
"Ministry of Housing, Communities and Local Government",Homes England,CAR LEASING - HIRE CHARGES,Programmes,LEX AUTOLEASE LTD,09/09/2020," 2,435.82 ",L,25101500,Passenger motor vehicles
"Ministry of Housing, Communities and Local Government",Homes England,CAR LEASING - HIRE CHARGES,Programmes,LEX AUTOLEASE LTD,09/09/2020," 3,322.86 ",L,25101500,Passenger motor vehicles
"Ministry of Housing, Communities and Local Government",Homes England,CAR LEASING - HIRE CHARGES,Programmes,LEX AUTOLEASE LTD,10/09/2020, 260.95 ,L,25101500,Passenger motor vehicles
"Ministry of Housing, Communities and Local Government",Homes England,CAR LEASING - HIRE CHARGES,Programmes,LEX AUTOLEASE LTD,15/09/2020, 254.05 ,L,25101500,Passenger motor vehicles
"Ministry of Housing, Communities and Local Government",Homes England,CAR LEASING - HIRE CHARGES,Programmes,LEX AUTOLEASE LTD,15/09/2020," 2,334.12 ",L,25101500,Passenger motor vehicles
"Ministry of Housing, Communities and Local Government",Homes England,CAR LEASING - HIRE CHARGES,Programmes,LEX AUTOLEASE LTD,15/09/2020," 3,042.00 ",L,25101500,Passenger motor vehicles
"Ministry of Housing, Communities and Local Government",Homes England,LT Fund Loans (Ps) Additions,Economic Assets Hub,THE LINDHURST GROUP,07/09/2020," 53,883.22 ",S,81151604,Land surveying�
"Ministry of Housing, Communities and Local Government",Homes England,LT Fund Loans (Ps) Additions,Economic Assets Hub,THE LINDHURST GROUP,28/09/2020," 33,742.50 ",,,Loans
"Ministry of Housing, Communities and Local Government",Homes England,CONTRACT WORKS,Programmes,LILLEKER BROS LIMITED,16/09/2020," 5,245.38 ",S,81151604,Land surveying�
"Ministry of Housing, Communities and Local Government",Homes England,CAPITAL GRANTS TO RPs (NOT LA),North West,GREAT PLACES HOUSING ASSOCIATION,11/09/2020," 450,765.00 ",L,,Grants
"Ministry of Housing, Communities and Local Government",Homes England,Help To Buy Additions,North West,GREAT PLACES HOUSING ASSOCIATION,15/09/2020," 112,000.00 ",L,,Grants
"Ministry of Housing, Communities and Local Government",Homes England,CAPITAL GRANTS TO RPs (NOT LA),North West,GREAT PLACES HOUSING ASSOCIATION,16/09/2020," 8,500.00 ",L,,Grants
"Ministry of Housing, Communities and Local Government",Homes England,CAPITAL GRANTS TO RPs (NOT LA),North West,GREAT PLACES HOUSING ASSOCIATION,16/09/2020," 8,500.00 ",L,,Grants
"Ministry of Housing, Communities and Local Government",Homes England,CAPITAL GRANTS TO RPs (NOT LA),North West,GREAT PLACES HOUSING ASSOCIATION,18/09/2020," 880,000.00 ",L,,Grants
"Ministry of Housing, Communities and Local Government",Homes England,CAPITAL GRANTS TO RPs (NOT LA),North West,GREAT PLACES HOUSING ASSOCIATION,18/09/2020," 80,000.00 ",L,,Grants
"Ministry of Housing, Communities and Local Government",Homes England,Help To Buy Additions,North West,GREAT PLACES HOUSING ASSOCIATION,21/09/2020," 37,300.00 ",L,,Grants
"Ministry of Housing, Communities and Local Government",Homes England,Help To Buy Additions,North West,GREAT PLACES HOUSING ASSOCIATION,21/09/2020," 37,300.00 ",L,,Grants
"Ministry of Housing, Communities and Local Government",Homes England,CAPITAL GRANTS TO RPs (NOT LA),North West,GREAT PLACES HOUSING ASSOCIATION,23/09/2020," 8,500.00 ",L,,Grants
"Ministry of Housing, Communities and Local Government",Homes England,Help To Buy Additions,North West,GREAT PLACES HOUSING ASSOCIATION,25/09/2020," 31,000.00 ",L,,Grants
"Ministry of Housing, Communities and Local Government",Homes England,Help To Buy Additions,North West,GREAT PLACES HOUSING ASSOCIATION,25/09/2020," 31,000.00 ",L,,Grants
"Ministry of Housing, Communities and Local Government",Homes England,Help To Buy Additions,North West,GREAT PLACES HOUSING ASSOCIATION,29/09/2020," 31,000.00 ",L,,Grants
"Ministry of Housing, Communities and Local Government",Homes England,MASTERPLANNING FEES,North West,LEES ROXBURGH LTD,14/09/2020," 3,205.00 ",S,80131800,Real estate management services
"Ministry of Housing, Communities and Local Government",Homes England,ENGINEERING FEES,North West,LEES ROXBURGH LTD,16/09/2020," 1,734.73 ",S,80131800,Real estate management services
"Ministry of Housing, Communities and Local Government",Homes England,CAPITAL GRANTS TO RPs (NOT LA),South West,STONEWATER LIMITED,30/09/2020," 176,400.00 ",L,,Grants
"Ministry of Housing, Communities and Local Government",Homes England,CAPITAL GRANTS TO RPs (NOT LA),South West,STONEWATER LIMITED,30/09/2020," 74,000.00 ",L,,Grants
"Ministry of Housing, Communities and Local Government",Homes England,CAPITAL GRANTS TO RPs (NOT LA),North West,YOUR HOUSING LIMITED,29/09/2020," 9,000.00 ",,,Grants
"Ministry of Housing, Communities and Local Government",Homes England,CAPITAL GRANTS TO RPs (NOT LA),"North East, Yorkshire & the Humber",TEES VALLEY HOUSING LIMITED,10/09/2020," 10,400.00 ",L,,Grants
"Ministry of Housing, Communities and Local Government",Homes England,CAPITAL GRANTS TO RPs (NOT LA),"North East, Yorkshire & the Humber",TEES VALLEY HOUSING LIMITED,11/09/2020," 40,000.00 ",L,,Grants
"Ministry of Housing, Communities and Local Government",Homes England,CAPITAL GRANTS TO RPs (NOT LA),"North East, Yorkshire & the Humber",TEES VALLEY HOUSING LIMITED,18/09/2020," 6,500.00 ",L,,Grants
"Ministry of Housing, Communities and Local Government",Homes England,CAPITAL GRANTS TO RPs (NOT LA),"North East, Yorkshire & the Humber",TEES VALLEY HOUSING LIMITED,18/09/2020," 50,000.00 ",L,,Grants
"Ministry of Housing, Communities and Local Government",Homes England,CAPITAL GRANTS TO RPs (NOT LA),"North East, Yorkshire & the Humber",TEES VALLEY HOUSING LIMITED,18/09/2020," 100,000.00 ",L,,Grants
"Ministry of Housing, Communities and Local Government",Homes England,CAPITAL GRANTS TO RPs (NOT LA),"North East, Yorkshire & the Humber",TEES VALLEY HOUSING LIMITED,18/09/2020," 39,000.00 ",L,,Grants
"Ministry of Housing, Communities and Local Government",Homes England,CAPITAL GRANTS TO RPs (NOT LA),"North East, Yorkshire & the Humber",TEES VALLEY HOUSING LIMITED,30/09/2020," 19,000.00 ",L,,Grants
"Ministry of Housing, Communities and Local Government",Homes England,CAPITAL GRANTS TO RPs (NOT LA),"North East, Yorkshire & the Humber",CONNECT HOUSING ASSOCIATION LIMITED,24/09/2020," 11,250.00 ",,,Grants
"Ministry of Housing, Communities and Local Government",Homes England,CAPITAL GRANTS TO RPs (NOT LA),"North East, Yorkshire & the Humber",CONNECT HOUSING ASSOCIATION LIMITED,24/09/2020," 7,500.00 ",,,Grants
"Ministry of Housing, Communities and Local Government",Homes England,CAPITAL GRANTS TO RPs (NOT LA),"North East, Yorkshire & the Humber",CONNECT HOUSING ASSOCIATION LIMITED,24/09/2020," 33,750.00 ",,,Grants
"Ministry of Housing, Communities and Local Government",Homes England,Help To Buy Additions,East & South East,HOME GROUP LIMITED,15/09/2020," 71,000.00 ",L,,Grants
"Ministry of Housing, Communities and Local Government",Homes England,Help To Buy Additions,East & South East,HOME GROUP LIMITED,21/09/2020," 55,500.00 ",L,,Grants
"Ministry of Housing, Communities and Local Government",Homes England,Help To Buy Additions,East & South East,HOME GROUP LIMITED,21/09/2020," 79,000.00 ",L,,Grants
"Ministry of Housing, Communities and Local Government",Homes England,Help To Buy Additions,East & South East,HOME GROUP LIMITED,21/09/2020," 81,000.00 ",L,,Grants
"Ministry of Housing, Communities and Local Government",Homes England,Help To Buy Additions,East & South East,HOME GROUP LIMITED,21/09/2020," 73,000.00 ",L,,Grants
"Ministry of Housing, Communities and Local Government",Homes England,Help To Buy Additions,East & South East,HOME GROUP LIMITED,21/09/2020," 57,000.00 ",L,,Grants
"Ministry of Housing, Communities and Local Government",Homes England,Help To Buy Additions,East & South East,HOME GROUP LIMITED,22/09/2020," 85,000.00 ",L,,Grants
"Ministry of Housing, Communities and Local Government",Homes England,Help To Buy Additions,East & South East,HOME GROUP LIMITED,28/09/2020," 39,800.00 ",L,,Grants
"Ministry of Housing, Communities and Local Government",Homes England,Help To Buy Additions,East & South East,HOME GROUP LIMITED,28/09/2020," 77,000.00 ",L,,Grants
"Ministry of Housing, Communities and Local Government",Homes England,Help To Buy Additions,East & South East,HOME GROUP LIMITED,30/09/2020," 73,400.00 ",L,,Grants
"Ministry of Housing, Communities and Local Government",Homes England,CAPITAL GRANTS TO RPs (NOT LA),North West,CONTOUR HOMES LIMITED,16/09/2020," 210,000.00 ",,,Grants
"Ministry of Housing, Communities and Local Government",Homes England,CAPITAL GRANTS TO RPs (NOT LA),North West,CONTOUR HOMES LIMITED,21/09/2020," 11,000.00 ",,,Grants
"Ministry of Housing, Communities and Local Government",Homes England,CAPITAL GRANTS TO RPs (NOT LA),North West,CONTOUR HOMES LIMITED,28/09/2020," 86,218.00 ",,,Grants
"Ministry of Housing, Communities and Local Government",Homes England,CAPITAL GRANTS TO RPs (NOT LA),South West,SHA 2016 LIMITED,23/09/2020," 46,000.00 ",,,Grants
"Ministry of Housing, Communities and Local Government",Homes England,CAPITAL GRANTS TO RPs (NOT LA),South West,SHA 2016 LIMITED,24/09/2020," 180,000.00 ",,,Grants
"Ministry of Housing, Communities and Local Government",Homes England,Help To Buy Additions,East & South East,ORBIT HOUSING GROUP LTD,23/09/2020," 69,999.00 ",L,,Grants
"Ministry of Housing, Communities and Local Government",Homes England,Help To Buy Additions,East & South East,ORBIT HOUSING GROUP LTD,23/09/2020," 83,000.00 ",L,,Grants
"Ministry of Housing, Communities and Local Government",Homes England,CAPITAL GRANTS TO RPs (NOT LA),Midlands,ORBIT HOUSING GROUP LTD,30/09/2020," 5,400,000.00 ",L,,Grants
"Ministry of Housing, Communities and Local Government",Homes England,CAPITAL GRANTS TO RPs (NOT LA),Midlands,BENTILEE COMMUNITY HOUSING LIMITED,22/09/2020," 15,750.00 ",L,,Grants
"Ministry of Housing, Communities and Local Government",Homes England,CAPITAL GRANTS TO RPs (NOT LA),Midlands,BENTILEE COMMUNITY HOUSING LIMITED,22/09/2020," 15,750.00 ",L,,Grants
"Ministry of Housing, Communities and Local Government",Homes England,CAPITAL GRANTS TO RPs (NOT LA),Midlands,BENTILEE COMMUNITY HOUSING LIMITED,23/09/2020," 11,250.00 ",L,,Grants
"Ministry of Housing, Communities and Local Government",Homes England,CAPITAL GRANTS TO RPs (NOT LA),Midlands,BENTILEE COMMUNITY HOUSING LIMITED,23/09/2020," 8,750.00 ",L,,Grants
"Ministry of Housing, Communities and Local Government",Homes England,CAPITAL GRANTS TO RPs (NOT LA),Midlands,CITIZEN HOUSING GROUP LIMITED,22/09/2020," 81,250.00 ",,,Grants
"Ministry of Housing, Communities and Local Government",Homes England,CAPITAL GRANTS TO RPs (NOT LA),South West,SIGNPOST HOUSING GROUP LTD - SPECTRUM HG LTD,24/09/2020," 146,250.00 ",,,Grants
"Ministry of Housing, Communities and Local Government",Homes England,CAPITAL GRANTS TO RPs (NOT LA),South West,SIGNPOST HOUSING GROUP LTD - SPECTRUM HG LTD,24/09/2020," 29,557.00 ",,,Grants
"Ministry of Housing, Communities and Local Government",Homes England,CAPITAL GRANTS TO RPs (NOT LA),East & South East,TOWN AND COUNTRY HOUSING GROUP,30/09/2020," 28,125.00 ",,,Grants
"Ministry of Housing, Communities and Local Government",Homes England,CAPITAL GRANTS TO RPs (NOT LA),East & South East,TOWN AND COUNTRY HOUSING GROUP,30/09/2020," 97,500.00 ",,,Grants
"Ministry of Housing, Communities and Local Government",Homes England,CAPITAL GRANTS TO RPs (NOT LA),North West,CALICO HOMES LIMITED,10/09/2020," 6,875.00 ",M,,Grants
"Ministry of Housing, Communities and Local Government",Homes England,CAPITAL GRANTS TO RPs (NOT LA),North West,CALICO HOMES LIMITED,11/09/2020," 9,625.00 ",M,,Grants
"Ministry of Housing, Communities and Local Government",Homes England,CAPITAL GRANTS TO RPs (NOT LA),North West,CALICO HOMES LIMITED,11/09/2020," 9,625.00 ",M,,Grants
"Ministry of Housing, Communities and Local Government",Homes England,CAPITAL GRANTS TO RPs (NOT LA),North West,CALICO HOMES LIMITED,14/09/2020," 9,625.00 ",M,,Grants
"Ministry of Housing, Communities and Local Government",Homes England,CAPITAL GRANTS TO RPs (NOT LA),North West,CALICO HOMES LIMITED,17/09/2020," 9,625.00 ",M,,Grants
"Ministry of Housing, Communities and Local Government",Homes England,CAPITAL GRANTS TO RPs (NOT LA),North West,CALICO HOMES LIMITED,28/09/2020," 6,875.00 ",M,,Grants
"Ministry of Housing, Communities and Local Government",Homes England,CAPITAL GRANTS TO RPs (NOT LA),Midlands,LONGHURST GROUP LIMITED,11/09/2020," 117,600.00 ",,,Grants
"Ministry of Housing, Communities and Local Government",Homes England,CAPITAL GRANTS TO RPs (NOT LA),Midlands,LONGHURST GROUP LIMITED,11/09/2020," 252,000.00 ",,,Grants
"Ministry of Housing, Communities and Local Government",Homes England,CAPITAL GRANTS TO RPs (NOT LA),Midlands,LONGHURST GROUP LIMITED,11/09/2020," 142,800.00 ",,,Grants
"Ministry of Housing, Communities and Local Government",Homes England,Help To Buy Additions,East & South East,LONGHURST GROUP LIMITED,16/09/2020," 51,000.00 ",,,Grants
"Ministry of Housing, Communities and Local Government",Homes England,CAPITAL GRANTS TO RPs (NOT LA),Midlands,LONGHURST GROUP LIMITED,29/09/2020," 225,000.00 ",,,Grants
"Ministry of Housing, Communities and Local Government",Homes England,CAPITAL GRANTS TO RPs (NOT LA),Midlands,LONGHURST GROUP LIMITED,29/09/2020," 52,500.00 ",,,Grants
"Ministry of Housing, Communities and Local Government",Homes England,CAPITAL GRANTS TO RPs (NOT LA),Midlands,TRENT & DOVE HOUSE,22/09/2020," 92,500.00 ",,,Grants
